{"text_format":"1","workbook":"xlsx","n_sheets":3,"sheets":["Copertina","estrazione casuale MACRO","Foglio1"],"not_rendered":{"charts":0,"images":2,"macros":1,"external_links":0,"defined_names":7,"comments":0,"pivot_tables":0},"unopened":[],"bounds":{"document_bytes":16777216,"sheet_cells":100000,"rows_first":2000,"rows_last":500,"rows_between":2000,"halvings":0,"cell_chars":16384,"cell_head_chars":4096},"cells_cut":0,"cells_raw":0,"read":"whole","date_system":"1900"}

{"sheet":"Copertina","index":0,"n_rows":30,"n_cols":2,"rows_kept":30,"cut":false,"hidden":false,"merged":[]}
[]
[]
[]
[]
[]
[]
[]
[]
[]
[]
[]
[]
[]
[]
[]
[]
[]
[]
[]
[]
[]
[]
[]
[]
[]
[]
[]
[]
[]
[null,"Allegato 9C – Metodo della stima delle differenze - MACRO"]

{"sheet":"estrazione casuale MACRO","index":1,"n_rows":10003,"n_cols":12,"rows_kept":4500,"cut":true,"hidden":false,"merged":[[0,6,0,7],[0,10,0,11],[0,4,0,5]],"bounds":{"rows_first":2000,"rows_last":500,"rows_between":2000,"halvings":0}}
[null,null,null,null,"Data Base",null,"Data Base",null,null,null,"Campione casuale"]
[null,null,null,null,"Cod.","Spesa certificata","Cod.","Spesa certificata","N. casuale",null,"Cod.","Spesa certificata"]
[null,"Popolazione N",{"$f":"COUNTIF(E3:E10002,\">0\")","v":0},null,null,null,null,null,{"$f":"IF(H3>0,RANDBETWEEN(1,$C$3))","v":false},1,{"$f":"IF(J3<=_xlnm.Criteria,G3,\" \")","v":" "},{"$f":"IF(J3<=_xlnm.Criteria,H3,\" \")","v":" "}]
[null,"Dimensione del campione n",null,null,null,null,null,null,false,2,{"$f":"IF(J4<=_xlnm.Criteria,G4,\" \")","v":" "}," "]
[null,"Programma Operativo",null,null,null,null,null,null,false,3,{"$f":"IF(J5<=_xlnm.Criteria,G5,\" \")","v":" "}," "]
[null,"Codice CCI",null,null,null,null,null,null,false,4,{"$f":"IF(J6<=_xlnm.Criteria,G6,\" \")","v":" "}," "]
[null,"Asse",null,null,null,null,null,null,false,5,{"$f":"IF(J7<=_xlnm.Criteria,G7,\" \")","v":" "}," "]
[null,"Obiettivo prioritario",null,null,null,null,null,null,false,6,{"$f":"IF(J8<=_xlnm.Criteria,G8,\" \")","v":" "}," "]
[null,null,null,null,null,null,null,null,false,7," "," "]
[null,null,null,null,null,null,null,null,false,8," "," "]
[null,null,null,null,null,null,null,null,false,9," "," "]
[null,null,null,null,null,null,null,null,false,10," "," "]
[null,null,null,null,null,null,null,null,false,11," "," "]
[null,null,null,null,null,null,null,null,false,12," "," "]
[null,null,null,null,null,null,null,null,false,13," "," "]
[null,null,null,null,null,null,null,null,false,14," "," "]
[null,null,null,null,null,null,null,null,false,15," "," "]
[null,null,null,null,null,null,null,null,false,16," "," "]
[null,null,null,null,null,null,null,null,false,17," "," "]
[null,null,null,null,null,null,null,null,false,18," "," "]
[null,null,null,null,null,null,null,null,false,19," "," "]
[null,null,null,null,null,null,null,null,false,20," "," "]
[null,null,null,null,null,null,null,null,false,21," "," "]
[null,null,null,null,null,null,null,null,false,22," "," "]
[null,null,null,null,null,null,null,null,false,23," "," "]
[null,null,null,null,null,null,null,null,false,24," "," "]
[null,null,null,null,null,null,null,null,false,25," "," "]
[null,null,null,null,null,null,null,null,false,26," "," "]
[null,null,null,null,null,null,null,null,false,27," "," "]
[null,null,null,null,null,null,null,null,false,28," "," "]
[null,null,null,null,null,null,null,null,false,29," "," "]
[null,null,null,null,null,null,null,null,false,30," "," "]
[null,null,null,null,null,null,null,null,false,31," "," "]
[null,null,null,null,null,null,null,null,false,32," "," "]
[null,null,null,null,null,null,null,null,false,33," "," "]
[null,null,null,null,null,null,null,null,false,34," "," "]
[null,null,null,null,null,null,null,null,false,35," "," "]
[null,null,null,null,null,null,null,null,false,36," "," "]
[null,null,null,null,null,null,null,null,false,37," "," "]
[null,null,null,null,null,null,null,null,false,38," "," "]
[null,null,null,null,null,null,null,null,false,39," "," "]
[null,null,null,null,null,null,null,null,false,40," "," "]
[null,null,null,null,null,null,null,null,false,41," "," "]
[null,null,null,null,null,null,null,null,false,42," "," "]
[null,null,null,null,null,null,null,null,false,43," "," "]
[null,null,null,null,null,null,null,null,false,44," "," "]
[null,null,null,null,null,null,null,null,false,45," "," "]
[null,null,null,null,null,null,null,null,false,46," "," "]
[null,null,null,null,null,null,null,null,false,47," "," "]
[null,null,null,null,null,null,null,null,false,48," "," "]
[null,null,null,null,null,null,null,null,false,49," "," "]
[null,null,null,null,null,null,null,null,false,50," "," "]
[null,null,null,null,null,null,null,null,false,51," "," "]
[null,null,null,null,null,null,null,null,false,52," "," "]
[null,null,null,null,null,null,null,null,false,53," "," "]
[null,null,null,null,null,null,null,null,false,54," "," "]
[null,null,null,null,null,null,null,null,false,55," "," "]
[null,null,null,null,null,null,null,null,false,56," "," "]
[null,null,null,null,null,null,null,null,false,57," "," "]
[null,null,null,null,null,null,null,null,false,58," "," "]
[null,null,null,null,null,null,null,null,false,59," "," "]
[null,null,null,null,null,null,null,null,false,60," "," "]
[null,null,null,null,null,null,null,null,false,61," "," "]
[null,null,null,null,null,null,null,null,false,62," "," "]
[null,null,null,null,null,null,null,null,false,63," "," "]
[null,null,null,null,null,null,null,null,false,64," "," "]
[null,null,null,null,null,null,null,null,{"$f":"IF(H67>0,RANDBETWEEN(1,$C$3))","v":false},65,{"$f":"IF(J67<=_xlnm.Criteria,G67,\" \")","v":" "},{"$f":"IF(J67<=_xlnm.Criteria,H67,\" \")","v":" "}]
[null,null,null,null,null,null,null,null,false,66," "," "]
[null,null,null,null,null,null,null,null,false,67," "," "]
[null,null,null,null,null,null,null,null,false,68," "," "]
[null,null,null,null,null,null,null,null,false,69," "," "]
[null,null,null,null,null,null,null,null,false,70," "," "]
[null,null,null,null,null,null,null,null,false,71," "," "]
[null,null,null,null,null,null,null,null,false,72," "," "]
[null,null,null,null,null,null,null,null,false,73," "," "]
[null,null,null,null,null,null,null,null,false,74," "," "]
[null,null,null,null,null,null,null,null,false,75," "," "]
[null,null,null,null,null,null,null,null,false,76," "," "]
[null,null,null,null,null,null,null,null,false,77," "," "]
[null,null,null,null,null,null,null,null,false,78," "," "]
[null,null,null,null,null,null,null,null,false,79," "," "]
[null,null,null,null,null,null,null,null,false,80," "," "]
[null,null,null,null,null,null,null,null,false,81," "," "]
[null,null,null,null,null,null,null,null,false,82," "," "]
[null,null,null,null,null,null,null,null,false,83," "," "]
[null,null,null,null,null,null,null,null,false,84," "," "]
[null,null,null,null,null,null,null,null,false,85," "," "]
[null,null,null,null,null,null,null,null,false,86," "," "]
[null,null,null,null,null,null,null,null,false,87," "," "]
[null,null,null,null,null,null,null,null,false,88," "," "]
[null,null,null,null,null,null,null,null,false,89," "," "]
[null,null,null,null,null,null,null,null,false,90," "," "]
[null,null,null,null,null,null,null,null,false,91," "," "]
[null,null,null,null,null,null,null,null,false,92," "," "]
[null,null,null,null,null,null,null,null,false,93," "," "]
[null,null,null,null,null,null,null,null,false,94," "," "]
[null,null,null,null,null,null,null,null,false,95," "," "]
[null,null,null,null,null,null,null,null,false,96," "," "]
[null,null,null,null,null,null,null,null,false,97," "," "]
[null,null,null,null,null,null,null,null,false,98," "," "]
[null,null,null,null,null,null,null,null,false,99," "," "]
[null,null,null,null,null,null,null,null,false,100," "," "]
[null,null,null,null,null,null,null,null,false,101," "," "]
[null,null,null,null,null,null,null,null,false,102," "," "]
[null,null,null,null,null,null,null,null,false,103," "," "]
[null,null,null,null,null,null,null,null,false,104," "," "]
[null,null,null,null,null,null,null,null,false,105," "," "]
[null,null,null,null,null,null,null,null,false,106," "," "]
[null,null,null,null,null,null,null,null,false,107," "," "]
[null,null,null,null,null,null,null,null,false,108," "," "]
[null,null,null,null,null,null,null,null,false,109," "," "]
[null,null,null,null,null,null,null,null,false,110," "," "]
[null,null,null,null,null,null,null,null,false,111," "," "]
[null,null,null,null,null,null,null,null,false,112," "," "]
[null,null,null,null,null,null,null,null,false,113," "," "]
[null,null,null,null,null,null,null,null,false,114," "," "]
[null,null,null,null,null,null,null,null,false,115," "," "]
[null,null,null,null,null,null,null,null,false,116," "," "]
[null,null,null,null,null,null,null,null,false,117," "," "]
[null,null,null,null,null,null,null,null,false,118," "," "]
[null,null,null,null,null,null,null,null,false,119," "," "]
[null,null,null,null,null,null,null,null,false,120," "," "]
[null,null,null,null,null,null,null,null,false,121," "," "]
[null,null,null,null,null,null,null,null,false,122," "," "]
[null,null,null,null,null,null,null,null,false,123," "," "]
[null,null,null,null,null,null,null,null,false,124," "," "]
[null,null,null,null,null,null,null,null,false,125," "," "]
[null,null,null,null,null,null,null,null,false,126," "," "]
[null,null,null,null,null,null,null,null,false,127," "," "]
[null,null,null,null,null,null,null,null,false,128," "," "]
[null,null,null,null,null,null,null,null,{"$f":"IF(H131>0,RANDBETWEEN(1,$C$3))","v":false},129,{"$f":"IF(J131<=_xlnm.Criteria,G131,\" \")","v":" "},{"$f":"IF(J131<=_xlnm.Criteria,H131,\" \")","v":" "}]
[null,null,null,null,null,null,null,null,false,130," "," "]
[null,null,null,null,null,null,null,null,false,131," "," "]
[null,null,null,null,null,null,null,null,false,132," "," "]
[null,null,null,null,null,null,null,null,false,133," "," "]
[null,null,null,null,null,null,null,null,false,134," "," "]
[null,null,null,null,null,null,null,null,false,135," "," "]
[null,null,null,null,null,null,null,null,false,136," "," "]
[null,null,null,null,null,null,null,null,false,137," "," "]
[null,null,null,null,null,null,null,null,false,138," "," "]
[null,null,null,null,null,null,null,null,false,139," "," "]
[null,null,null,null,null,null,null,null,false,140," "," "]
[null,null,null,null,null,null,null,null,false,141," "," "]
[null,null,null,null,null,null,null,null,false,142," "," "]
[null,null,null,null,null,null,null,null,false,143," "," "]
[null,null,null,null,null,null,null,null,false,144," "," "]
[null,null,null,null,null,null,null,null,false,145," "," "]
[null,null,null,null,null,null,null,null,false,146," "," "]
[null,null,null,null,null,null,null,null,false,147," "," "]
[null,null,null,null,null,null,null,null,false,148," "," "]
[null,null,null,null,null,null,null,null,false,149," "," "]
[null,null,null,null,null,null,null,null,false,150," "," "]
[null,null,null,null,null,null,null,null,false,151," "," "]
[null,null,null,null,null,null,null,null,false,152," "," "]
[null,null,null,null,null,null,null,null,false,153," "," "]
[null,null,null,null,null,null,null,null,false,154," "," "]
[null,null,null,null,null,null,null,null,false,155," "," "]
[null,null,null,null,null,null,null,null,false,156," "," "]
[null,null,null,null,null,null,null,null,false,157," "," "]
[null,null,null,null,null,null,null,null,false,158," "," "]
[null,null,null,null,null,null,null,null,false,159," "," "]
[null,null,null,null,null,null,null,null,false,160," "," "]
[null,null,null,null,null,null,null,null,false,161," "," "]
[null,null,null,null,null,null,null,null,false,162," "," "]
[null,null,null,null,null,null,null,null,false,163," "," "]
[null,null,null,null,null,null,null,null,false,164," "," "]
[null,null,null,null,null,null,null,null,false,165," "," "]
[null,null,null,null,null,null,null,null,false,166," "," "]
[null,null,null,null,null,null,null,null,false,167," "," "]
[null,null,null,null,null,null,null,null,false,168," "," "]
[null,null,null,null,null,null,null,null,false,169," "," "]
[null,null,null,null,null,null,null,null,false,170," "," "]
[null,null,null,null,null,null,null,null,false,171," "," "]
[null,null,null,null,null,null,null,null,false,172," "," "]
[null,null,null,null,null,null,null,null,false,173," "," "]
[null,null,null,null,null,null,null,null,false,174," "," "]
[null,null,null,null,null,null,null,null,false,175," "," "]
[null,null,null,null,null,null,null,null,false,176," "," "]
[null,null,null,null,null,null,null,null,false,177," "," "]
[null,null,null,null,null,null,null,null,false,178," "," "]
[null,null,null,null,null,null,null,null,false,179," "," "]
[null,null,null,null,null,null,null,null,false,180," "," "]
[null,null,null,null,null,null,null,null,false,181," "," "]
[null,null,null,null,null,null,null,null,false,182," "," "]
[null,null,null,null,null,null,null,null,false,183," "," "]
[null,null,null,null,null,null,null,null,false,184," "," "]
[null,null,null,null,null,null,null,null,false,185," "," "]
[null,null,null,null,null,null,null,null,false,186," "," "]
[null,null,null,null,null,null,null,null,false,187," "," "]
[null,null,null,null,null,null,null,null,false,188," "," "]
[null,null,null,null,null,null,null,null,false,189," "," "]
[null,null,null,null,null,null,null,null,false,190," "," "]
[null,null,null,null,null,null,null,null,false,191," "," "]
[null,null,null,null,null,null,null,null,false,192," "," "]
[null,null,null,null,null,null,null,null,{"$f":"IF(H195>0,RANDBETWEEN(1,$C$3))","v":false},193,{"$f":"IF(J195<=_xlnm.Criteria,G195,\" \")","v":" "},{"$f":"IF(J195<=_xlnm.Criteria,H195,\" \")","v":" "}]
[null,null,null,null,null,null,null,null,false,194," "," "]
[null,null,null,null,null,null,null,null,false,195," "," "]
[null,null,null,null,null,null,null,null,false,196," "," "]
[null,null,null,null,null,null,null,null,false,197," "," "]
[null,null,null,null,null,null,null,null,false,198," "," "]
[null,null,null,null,null,null,null,null,false,199," "," "]
[null,null,null,null,null,null,null,null,false,200," "," "]
[null,null,null,null,null,null,null,null,false,201," "," "]
[null,null,null,null,null,null,null,null,false,202," "," "]
[null,null,null,null,null,null,null,null,false,203," "," "]
[null,null,null,null,null,null,null,null,false,204," "," "]
[null,null,null,null,null,null,null,null,false,205," "," "]
[null,null,null,null,null,null,null,null,false,206," "," "]
[null,null,null,null,null,null,null,null,false,207," "," "]
[null,null,null,null,null,null,null,null,false,208," "," "]
[null,null,null,null,null,null,null,null,false,209," "," "]
[null,null,null,null,null,null,null,null,false,210," "," "]
[null,null,null,null,null,null,null,null,false,211," "," "]
[null,null,null,null,null,null,null,null,false,212," "," "]
[null,null,null,null,null,null,null,null,false,213," "," "]
[null,null,null,null,null,null,null,null,false,214," "," "]
[null,null,null,null,null,null,null,null,false,215," "," "]
[null,null,null,null,null,null,null,null,false,216," "," "]
[null,null,null,null,null,null,null,null,false,217," "," "]
[null,null,null,null,null,null,null,null,false,218," "," "]
[null,null,null,null,null,null,null,null,false,219," "," "]
[null,null,null,null,null,null,null,null,false,220," "," "]
[null,null,null,null,null,null,null,null,false,221," "," "]
[null,null,null,null,null,null,null,null,false,222," "," "]
[null,null,null,null,null,null,null,null,false,223," "," "]
[null,null,null,null,null,null,null,null,false,224," "," "]
[null,null,null,null,null,null,null,null,false,225," "," "]
[null,null,null,null,null,null,null,null,false,226," "," "]
[null,null,null,null,null,null,null,null,false,227," "," "]
[null,null,null,null,null,null,null,null,false,228," "," "]
[null,null,null,null,null,null,null,null,false,229," "," "]
[null,null,null,null,null,null,null,null,false,230," "," "]
[null,null,null,null,null,null,null,null,false,231," "," "]
[null,null,null,null,null,null,null,null,false,232," "," "]
[null,null,null,null,null,null,null,null,false,233," "," "]
[null,null,null,null,null,null,null,null,false,234," "," "]
[null,null,null,null,null,null,null,null,false,235," "," "]
[null,null,null,null,null,null,null,null,false,236," "," "]
[null,null,null,null,null,null,null,null,false,237," "," "]
[null,null,null,null,null,null,null,null,false,238," "," "]
[null,null,null,null,null,null,null,null,false,239," "," "]
[null,null,null,null,null,null,null,null,false,240," "," "]
[null,null,null,null,null,null,null,null,false,241," "," "]
[null,null,null,null,null,null,null,null,false,242," "," "]
[null,null,null,null,null,null,null,null,false,243," "," "]
[null,null,null,null,null,null,null,null,false,244," "," "]
[null,null,null,null,null,null,null,null,false,245," "," "]
[null,null,null,null,null,null,null,null,false,246," "," "]
[null,null,null,null,null,null,null,null,false,247," "," "]
[null,null,null,null,null,null,null,null,false,248," "," "]
[null,null,null,null,null,null,null,null,false,249," "," "]
[null,null,null,null,null,null,null,null,false,250," "," "]
[null,null,null,null,null,null,null,null,false,251," "," "]
[null,null,null,null,null,null,null,null,false,252," "," "]
[null,null,null,null,null,null,null,null,false,253," "," "]
[null,null,null,null,null,null,null,null,false,254," "," "]
[null,null,null,null,null,null,null,null,false,255," "," "]
[null,null,null,null,null,null,null,null,false,256," "," "]
[null,null,null,null,null,null,null,null,{"$f":"IF(H259>0,RANDBETWEEN(1,$C$3))","v":false},257,{"$f":"IF(J259<=_xlnm.Criteria,G259,\" \")","v":" "},{"$f":"IF(J259<=_xlnm.Criteria,H259,\" \")","v":" "}]
[null,null,null,null,null,null,null,null,false,258," "," "]
[null,null,null,null,null,null,null,null,false,259," "," "]
[null,null,null,null,null,null,null,null,false,260," "," "]
[null,null,null,null,null,null,null,null,false,261," "," "]
[null,null,null,null,null,null,null,null,false,262," "," "]
[null,null,null,null,null,null,null,null,false,263," "," "]
[null,null,null,null,null,null,null,null,false,264," "," "]
[null,null,null,null,null,null,null,null,false,265," "," "]
[null,null,null,null,null,null,null,null,false,266," "," "]
[null,null,null,null,null,null,null,null,false,267," "," "]
[null,null,null,null,null,null,null,null,false,268," "," "]
[null,null,null,null,null,null,null,null,false,269," "," "]
[null,null,null,null,null,null,null,null,false,270," "," "]
[null,null,null,null,null,null,null,null,false,271," "," "]
[null,null,null,null,null,null,null,null,false,272," "," "]
[null,null,null,null,null,null,null,null,false,273," "," "]
[null,null,null,null,null,null,null,null,false,274," "," "]
[null,null,null,null,null,null,null,null,false,275," "," "]
[null,null,null,null,null,null,null,null,false,276," "," "]
[null,null,null,null,null,null,null,null,false,277," "," "]
[null,null,null,null,null,null,null,null,false,278," "," "]
[null,null,null,null,null,null,null,null,false,279," "," "]
[null,null,null,null,null,null,null,null,false,280," "," "]
[null,null,null,null,null,null,null,null,false,281," "," "]
[null,null,null,null,null,null,null,null,false,282," "," "]
[null,null,null,null,null,null,null,null,false,283," "," "]
[null,null,null,null,null,null,null,null,false,284," "," "]
[null,null,null,null,null,null,null,null,false,285," "," "]
[null,null,null,null,null,null,null,null,false,286," "," "]
[null,null,null,null,null,null,null,null,false,287," "," "]
[null,null,null,null,null,null,null,null,false,288," "," "]
[null,null,null,null,null,null,null,null,false,289," "," "]
[null,null,null,null,null,null,null,null,false,290," "," "]
[null,null,null,null,null,null,null,null,false,291," "," "]
[null,null,null,null,null,null,null,null,false,292," "," "]
[null,null,null,null,null,null,null,null,false,293," "," "]
[null,null,null,null,null,null,null,null,false,294," "," "]
[null,null,null,null,null,null,null,null,false,295," "," "]
[null,null,null,null,null,null,null,null,false,296," "," "]
[null,null,null,null,null,null,null,null,false,297," "," "]
[null,null,null,null,null,null,null,null,false,298," "," "]
[null,null,null,null,null,null,null,null,false,299," "," "]
[null,null,null,null,null,null,null,null,false,300," "," "]
[null,null,null,null,null,null,null,null,false,301," "," "]
[null,null,null,null,null,null,null,null,false,302," "," "]
[null,null,null,null,null,null,null,null,false,303," "," "]
[null,null,null,null,null,null,null,null,false,304," "," "]
[null,null,null,null,null,null,null,null,false,305," "," "]
[null,null,null,null,null,null,null,null,false,306," "," "]
[null,null,null,null,null,null,null,null,false,307," "," "]
[null,null,null,null,null,null,null,null,false,308," "," "]
[null,null,null,null,null,null,null,null,false,309," "," "]
[null,null,null,null,null,null,null,null,false,310," "," "]
[null,null,null,null,null,null,null,null,false,311," "," "]
[null,null,null,null,null,null,null,null,false,312," "," "]
[null,null,null,null,null,null,null,null,false,313," "," "]
[null,null,null,null,null,null,null,null,false,314," "," "]
[null,null,null,null,null,null,null,null,false,315," "," "]
[null,null,null,null,null,null,null,null,false,316," "," "]
[null,null,null,null,null,null,null,null,false,317," "," "]
[null,null,null,null,null,null,null,null,false,318," "," "]
[null,null,null,null,null,null,null,null,false,319," "," "]
[null,null,null,null,null,null,null,null,false,320," "," "]
[null,null,null,null,null,null,null,null,{"$f":"IF(H323>0,RANDBETWEEN(1,$C$3))","v":false},321,{"$f":"IF(J323<=_xlnm.Criteria,G323,\" \")","v":" "},{"$f":"IF(J323<=_xlnm.Criteria,H323,\" \")","v":" "}]
[null,null,null,null,null,null,null,null,false,322," "," "]
[null,null,null,null,null,null,null,null,false,323," "," "]
[null,null,null,null,null,null,null,null,false,324," "," "]
[null,null,null,null,null,null,null,null,false,325," "," "]
[null,null,null,null,null,null,null,null,false,326," "," "]
[null,null,null,null,null,null,null,null,false,327," "," "]
[null,null,null,null,null,null,null,null,false,328," "," "]
[null,null,null,null,null,null,null,null,false,329," "," "]
[null,null,null,null,null,null,null,null,false,330," "," "]
[null,null,null,null,null,null,null,null,false,331," "," "]
[null,null,null,null,null,null,null,null,false,332," "," "]
[null,null,null,null,null,null,null,null,false,333," "," "]
[null,null,null,null,null,null,null,null,false,334," "," "]
[null,null,null,null,null,null,null,null,false,335," "," "]
[null,null,null,null,null,null,null,null,false,336," "," "]
[null,null,null,null,null,null,null,null,false,337," "," "]
[null,null,null,null,null,null,null,null,false,338," "," "]
[null,null,null,null,null,null,null,null,false,339," "," "]
[null,null,null,null,null,null,null,null,false,340," "," "]
[null,null,null,null,null,null,null,null,false,341," "," "]
[null,null,null,null,null,null,null,null,false,342," "," "]
[null,null,null,null,null,null,null,null,false,343," "," "]
[null,null,null,null,null,null,null,null,false,344," "," "]
[null,null,null,null,null,null,null,null,false,345," "," "]
[null,null,null,null,null,null,null,null,false,346," "," "]
[null,null,null,null,null,null,null,null,false,347," "," "]
[null,null,null,null,null,null,null,null,false,348," "," "]
[null,null,null,null,null,null,null,null,false,349," "," "]
[null,null,null,null,null,null,null,null,false,350," "," "]
[null,null,null,null,null,null,null,null,false,351," "," "]
[null,null,null,null,null,null,null,null,false,352," "," "]
[null,null,null,null,null,null,null,null,false,353," "," "]
[null,null,null,null,null,null,null,null,false,354," "," "]
[null,null,null,null,null,null,null,null,false,355," "," "]
[null,null,null,null,null,null,null,null,false,356," "," "]
[null,null,null,null,null,null,null,null,false,357," "," "]
[null,null,null,null,null,null,null,null,false,358," "," "]
[null,null,null,null,null,null,null,null,false,359," "," "]
[null,null,null,null,null,null,null,null,false,360," "," "]
[null,null,null,null,null,null,null,null,false,361," "," "]
[null,null,null,null,null,null,null,null,false,362," "," "]
[null,null,null,null,null,null,null,null,false,363," "," "]
[null,null,null,null,null,null,null,null,false,364," "," "]
[null,null,null,null,null,null,null,null,false,365," "," "]
[null,null,null,null,null,null,null,null,false,366," "," "]
[null,null,null,null,null,null,null,null,false,367," "," "]
[null,null,null,null,null,null,null,null,false,368," "," "]
[null,null,null,null,null,null,null,null,false,369," "," "]
[null,null,null,null,null,null,null,null,false,370," "," "]
[null,null,null,null,null,null,null,null,false,371," "," "]
[null,null,null,null,null,null,null,null,false,372," "," "]
[null,null,null,null,null,null,null,null,false,373," "," "]
[null,null,null,null,null,null,null,null,false,374," "," "]
[null,null,null,null,null,null,null,null,false,375," "," "]
[null,null,null,null,null,null,null,null,false,376," "," "]
[null,null,null,null,null,null,null,null,false,377," "," "]
[null,null,null,null,null,null,null,null,false,378," "," "]
[null,null,null,null,null,null,null,null,false,379," "," "]
[null,null,null,null,null,null,null,null,false,380," "," "]
[null,null,null,null,null,null,null,null,false,381," "," "]
[null,null,null,null,null,null,null,null,false,382," "," "]
[null,null,null,null,null,null,null,null,false,383," "," "]
[null,null,null,null,null,null,null,null,false,384," "," "]
[null,null,null,null,null,null,null,null,{"$f":"IF(H387>0,RANDBETWEEN(1,$C$3))","v":false},385,{"$f":"IF(J387<=_xlnm.Criteria,G387,\" \")","v":" "},{"$f":"IF(J387<=_xlnm.Criteria,H387,\" \")","v":" "}]
[null,null,null,null,null,null,null,null,false,386," "," "]
[null,null,null,null,null,null,null,null,false,387," "," "]
[null,null,null,null,null,null,null,null,false,388," "," "]
[null,null,null,null,null,null,null,null,false,389," "," "]
[null,null,null,null,null,null,null,null,false,390," "," "]
[null,null,null,null,null,null,null,null,false,391," "," "]
[null,null,null,null,null,null,null,null,false,392," "," "]
[null,null,null,null,null,null,null,null,false,393," "," "]
[null,null,null,null,null,null,null,null,false,394," "," "]
[null,null,null,null,null,null,null,null,false,395," "," "]
[null,null,null,null,null,null,null,null,false,396," "," "]
[null,null,null,null,null,null,null,null,false,397," "," "]
[null,null,null,null,null,null,null,null,false,398," "," "]
[null,null,null,null,null,null,null,null,false,399," "," "]
[null,null,null,null,null,null,null,null,false,400," "," "]
[null,null,null,null,null,null,null,null,false,401," "," "]
[null,null,null,null,null,null,null,null,false,402," "," "]
[null,null,null,null,null,null,null,null,false,403," "," "]
[null,null,null,null,null,null,null,null,false,404," "," "]
[null,null,null,null,null,null,null,null,false,405," "," "]
[null,null,null,null,null,null,null,null,false,406," "," "]
[null,null,null,null,null,null,null,null,false,407," "," "]
[null,null,null,null,null,null,null,null,false,408," "," "]
[null,null,null,null,null,null,null,null,false,409," "," "]
[null,null,null,null,null,null,null,null,false,410," "," "]
[null,null,null,null,null,null,null,null,false,411," "," "]
[null,null,null,null,null,null,null,null,false,412," "," "]
[null,null,null,null,null,null,null,null,false,413," "," "]
[null,null,null,null,null,null,null,null,false,414," "," "]
[null,null,null,null,null,null,null,null,false,415," "," "]
[null,null,null,null,null,null,null,null,false,416," "," "]
[null,null,null,null,null,null,null,null,false,417," "," "]
[null,null,null,null,null,null,null,null,false,418," "," "]
[null,null,null,null,null,null,null,null,false,419," "," "]
[null,null,null,null,null,null,null,null,false,420," "," "]
[null,null,null,null,null,null,null,null,false,421," "," "]
[null,null,null,null,null,null,null,null,false,422," "," "]
[null,null,null,null,null,null,null,null,false,423," "," "]
[null,null,null,null,null,null,null,null,false,424," "," "]
[null,null,null,null,null,null,null,null,false,425," "," "]
[null,null,null,null,null,null,null,null,false,426," "," "]
[null,null,null,null,null,null,null,null,false,427," "," "]
[null,null,null,null,null,null,null,null,false,428," "," "]
[null,null,null,null,null,null,null,null,false,429," "," "]
[null,null,null,null,null,null,null,null,false,430," "," "]
[null,null,null,null,null,null,null,null,false,431," "," "]
[null,null,null,null,null,null,null,null,false,432," "," "]
[null,null,null,null,null,null,null,null,false,433," "," "]
[null,null,null,null,null,null,null,null,false,434," "," "]
[null,null,null,null,null,null,null,null,false,435," "," "]
[null,null,null,null,null,null,null,null,false,436," "," "]
[null,null,null,null,null,null,null,null,false,437," "," "]
[null,null,null,null,null,null,null,null,false,438," "," "]
[null,null,null,null,null,null,null,null,false,439," "," "]
[null,null,null,null,null,null,null,null,false,440," "," "]
[null,null,null,null,null,null,null,null,false,441," "," "]
[null,null,null,null,null,null,null,null,false,442," "," "]
[null,null,null,null,null,null,null,null,false,443," "," "]
[null,null,null,null,null,null,null,null,false,444," "," "]
[null,null,null,null,null,null,null,null,false,445," "," "]
[null,null,null,null,null,null,null,null,false,446," "," "]
[null,null,null,null,null,null,null,null,false,447," "," "]
[null,null,null,null,null,null,null,null,false,448," "," "]
[null,null,null,null,null,null,null,null,{"$f":"IF(H451>0,RANDBETWEEN(1,$C$3))","v":false},449,{"$f":"IF(J451<=_xlnm.Criteria,G451,\" \")","v":" "},{"$f":"IF(J451<=_xlnm.Criteria,H451,\" \")","v":" "}]
[null,null,null,null,null,null,null,null,false,450," "," "]
[null,null,null,null,null,null,null,null,false,451," "," "]
[null,null,null,null,null,null,null,null,false,452," "," "]
[null,null,null,null,null,null,null,null,false,453," "," "]
[null,null,null,null,null,null,null,null,false,454," "," "]
[null,null,null,null,null,null,null,null,false,455," "," "]
[null,null,null,null,null,null,null,null,false,456," "," "]
[null,null,null,null,null,null,null,null,false,457," "," "]
[null,null,null,null,null,null,null,null,false,458," "," "]
[null,null,null,null,null,null,null,null,false,459," "," "]
[null,null,null,null,null,null,null,null,false,460," "," "]
[null,null,null,null,null,null,null,null,false,461," "," "]
[null,null,null,null,null,null,null,null,false,462," "," "]
[null,null,null,null,null,null,null,null,false,463," "," "]
[null,null,null,null,null,null,null,null,false,464," "," "]
[null,null,null,null,null,null,null,null,false,465," "," "]
[null,null,null,null,null,null,null,null,false,466," "," "]
[null,null,null,null,null,null,null,null,false,467," "," "]
[null,null,null,null,null,null,null,null,false,468," "," "]
[null,null,null,null,null,null,null,null,false,469," "," "]
[null,null,null,null,null,null,null,null,false,470," "," "]
[null,null,null,null,null,null,null,null,false,471," "," "]
[null,null,null,null,null,null,null,null,false,472," "," "]
[null,null,null,null,null,null,null,null,false,473," "," "]
[null,null,null,null,null,null,null,null,false,474," "," "]
[null,null,null,null,null,null,null,null,false,475," "," "]
[null,null,null,null,null,null,null,null,false,476," "," "]
[null,null,null,null,null,null,null,null,false,477," "," "]
[null,null,null,null,null,null,null,null,false,478," "," "]
[null,null,null,null,null,null,null,null,false,479," "," "]
[null,null,null,null,null,null,null,null,false,480," "," "]
[null,null,null,null,null,null,null,null,false,481," "," "]
[null,null,null,null,null,null,null,null,false,482," "," "]
[null,null,null,null,null,null,null,null,false,483," "," "]
[null,null,null,null,null,null,null,null,false,484," "," "]
[null,null,null,null,null,null,null,null,false,485," "," "]
[null,null,null,null,null,null,null,null,false,486," "," "]
[null,null,null,null,null,null,null,null,false,487," "," "]
[null,null,null,null,null,null,null,null,false,488," "," "]
[null,null,null,null,null,null,null,null,false,489," "," "]
[null,null,null,null,null,null,null,null,false,490," "," "]
[null,null,null,null,null,null,null,null,false,491," "," "]
[null,null,null,null,null,null,null,null,false,492," "," "]
[null,null,null,null,null,null,null,null,false,493," "," "]
[null,null,null,null,null,null,null,null,false,494," "," "]
[null,null,null,null,null,null,null,null,false,495," "," "]
[null,null,null,null,null,null,null,null,false,496," "," "]
[null,null,null,null,null,null,null,null,false,497," "," "]
[null,null,null,null,null,null,null,null,false,498," "," "]
[null,null,null,null,null,null,null,null,false,499," "," "]
[null,null,null,null,null,null,null,null,false,500," "," "]
[null,null,null,null,null,null,null,null,false,501," "," "]
[null,null,null,null,null,null,null,null,false,502," "," "]
[null,null,null,null,null,null,null,null,false,503," "," "]
[null,null,null,null,null,null,null,null,false,504," "," "]
[null,null,null,null,null,null,null,null,false,505," "," "]
[null,null,null,null,null,null,null,null,false,506," "," "]
[null,null,null,null,null,null,null,null,false,507," "," "]
[null,null,null,null,null,null,null,null,false,508," "," "]
[null,null,null,null,null,null,null,null,false,509," "," "]
[null,null,null,null,null,null,null,null,false,510," "," "]
[null,null,null,null,null,null,null,null,false,511," "," "]
[null,null,null,null,null,null,null,null,false,512," "," "]
[null,null,null,null,null,null,null,null,{"$f":"IF(H515>0,RANDBETWEEN(1,$C$3))","v":false},513,{"$f":"IF(J515<=_xlnm.Criteria,G515,\" \")","v":" "},{"$f":"IF(J515<=_xlnm.Criteria,H515,\" \")","v":" "}]
[null,null,null,null,null,null,null,null,false,514," "," "]
[null,null,null,null,null,null,null,null,false,515," "," "]
[null,null,null,null,null,null,null,null,false,516," "," "]
[null,null,null,null,null,null,null,null,false,517," "," "]
[null,null,null,null,null,null,null,null,false,518," "," "]
[null,null,null,null,null,null,null,null,false,519," "," "]
[null,null,null,null,null,null,null,null,false,520," "," "]
[null,null,null,null,null,null,null,null,false,521," "," "]
[null,null,null,null,null,null,null,null,false,522," "," "]
[null,null,null,null,null,null,null,null,false,523," "," "]
[null,null,null,null,null,null,null,null,false,524," "," "]
[null,null,null,null,null,null,null,null,false,525," "," "]
[null,null,null,null,null,null,null,null,false,526," "," "]
[null,null,null,null,null,null,null,null,false,527," "," "]
[null,null,null,null,null,null,null,null,false,528," "," "]
[null,null,null,null,null,null,null,null,false,529," "," "]
[null,null,null,null,null,null,null,null,false,530," "," "]
[null,null,null,null,null,null,null,null,false,531," "," "]
[null,null,null,null,null,null,null,null,false,532," "," "]
[null,null,null,null,null,null,null,null,false,533," "," "]
[null,null,null,null,null,null,null,null,false,534," "," "]
[null,null,null,null,null,null,null,null,false,535," "," "]
[null,null,null,null,null,null,null,null,false,536," "," "]
[null,null,null,null,null,null,null,null,false,537," "," "]
[null,null,null,null,null,null,null,null,false,538," "," "]
[null,null,null,null,null,null,null,null,false,539," "," "]
[null,null,null,null,null,null,null,null,false,540," "," "]
[null,null,null,null,null,null,null,null,false,541," "," "]
[null,null,null,null,null,null,null,null,false,542," "," "]
[null,null,null,null,null,null,null,null,false,543," "," "]
[null,null,null,null,null,null,null,null,false,544," "," "]
[null,null,null,null,null,null,null,null,false,545," "," "]
[null,null,null,null,null,null,null,null,false,546," "," "]
[null,null,null,null,null,null,null,null,false,547," "," "]
[null,null,null,null,null,null,null,null,false,548," "," "]
[null,null,null,null,null,null,null,null,false,549," "," "]
[null,null,null,null,null,null,null,null,false,550," "," "]
[null,null,null,null,null,null,null,null,false,551," "," "]
[null,null,null,null,null,null,null,null,false,552," "," "]
[null,null,null,null,null,null,null,null,false,553," "," "]
[null,null,null,null,null,null,null,null,false,554," "," "]
[null,null,null,null,null,null,null,null,false,555," "," "]
[null,null,null,null,null,null,null,null,false,556," "," "]
[null,null,null,null,null,null,null,null,false,557," "," "]
[null,null,null,null,null,null,null,null,false,558," "," "]
[null,null,null,null,null,null,null,null,false,559," "," "]
[null,null,null,null,null,null,null,null,false,560," "," "]
[null,null,null,null,null,null,null,null,false,561," "," "]
[null,null,null,null,null,null,null,null,false,562," "," "]
[null,null,null,null,null,null,null,null,false,563," "," "]
[null,null,null,null,null,null,null,null,false,564," "," "]
[null,null,null,null,null,null,null,null,false,565," "," "]
[null,null,null,null,null,null,null,null,false,566," "," "]
[null,null,null,null,null,null,null,null,false,567," "," "]
[null,null,null,null,null,null,null,null,false,568," "," "]
[null,null,null,null,null,null,null,null,false,569," "," "]
[null,null,null,null,null,null,null,null,false,570," "," "]
[null,null,null,null,null,null,null,null,false,571," "," "]
[null,null,null,null,null,null,null,null,false,572," "," "]
[null,null,null,null,null,null,null,null,false,573," "," "]
[null,null,null,null,null,null,null,null,false,574," "," "]
[null,null,null,null,null,null,null,null,false,575," "," "]
[null,null,null,null,null,null,null,null,false,576," "," "]
[null,null,null,null,null,null,null,null,{"$f":"IF(H579>0,RANDBETWEEN(1,$C$3))","v":false},577,{"$f":"IF(J579<=_xlnm.Criteria,G579,\" \")","v":" "},{"$f":"IF(J579<=_xlnm.Criteria,H579,\" \")","v":" "}]
[null,null,null,null,null,null,null,null,false,578," "," "]
[null,null,null,null,null,null,null,null,false,579," "," "]
[null,null,null,null,null,null,null,null,false,580," "," "]
[null,null,null,null,null,null,null,null,false,581," "," "]
[null,null,null,null,null,null,null,null,false,582," "," "]
[null,null,null,null,null,null,null,null,false,583," "," "]
[null,null,null,null,null,null,null,null,false,584," "," "]
[null,null,null,null,null,null,null,null,false,585," "," "]
[null,null,null,null,null,null,null,null,false,586," "," "]
[null,null,null,null,null,null,null,null,false,587," "," "]
[null,null,null,null,null,null,null,null,false,588," "," "]
[null,null,null,null,null,null,null,null,false,589," "," "]
[null,null,null,null,null,null,null,null,false,590," "," "]
[null,null,null,null,null,null,null,null,false,591," "," "]
[null,null,null,null,null,null,null,null,false,592," "," "]
[null,null,null,null,null,null,null,null,false,593," "," "]
[null,null,null,null,null,null,null,null,false,594," "," "]
[null,null,null,null,null,null,null,null,false,595," "," "]
[null,null,null,null,null,null,null,null,false,596," "," "]
[null,null,null,null,null,null,null,null,false,597," "," "]
[null,null,null,null,null,null,null,null,false,598," "," "]
[null,null,null,null,null,null,null,null,false,599," "," "]
[null,null,null,null,null,null,null,null,false,600," "," "]
[null,null,null,null,null,null,null,null,false,601," "," "]
[null,null,null,null,null,null,null,null,false,602," "," "]
[null,null,null,null,null,null,null,null,false,603," "," "]
[null,null,null,null,null,null,null,null,false,604," "," "]
[null,null,null,null,null,null,null,null,false,605," "," "]
[null,null,null,null,null,null,null,null,false,606," "," "]
[null,null,null,null,null,null,null,null,false,607," "," "]
[null,null,null,null,null,null,null,null,false,608," "," "]
[null,null,null,null,null,null,null,null,false,609," "," "]
[null,null,null,null,null,null,null,null,false,610," "," "]
[null,null,null,null,null,null,null,null,false,611," "," "]
[null,null,null,null,null,null,null,null,false,612," "," "]
[null,null,null,null,null,null,null,null,false,613," "," "]
[null,null,null,null,null,null,null,null,false,614," "," "]
[null,null,null,null,null,null,null,null,false,615," "," "]
[null,null,null,null,null,null,null,null,false,616," "," "]
[null,null,null,null,null,null,null,null,false,617," "," "]
[null,null,null,null,null,null,null,null,false,618," "," "]
[null,null,null,null,null,null,null,null,false,619," "," "]
[null,null,null,null,null,null,null,null,false,620," "," "]
[null,null,null,null,null,null,null,null,false,621," "," "]
[null,null,null,null,null,null,null,null,false,622," "," "]
[null,null,null,null,null,null,null,null,false,623," "," "]
[null,null,null,null,null,null,null,null,false,624," "," "]
[null,null,null,null,null,null,null,null,false,625," "," "]
[null,null,null,null,null,null,null,null,false,626," "," "]
[null,null,null,null,null,null,null,null,false,627," "," "]
[null,null,null,null,null,null,null,null,false,628," "," "]
[null,null,null,null,null,null,null,null,false,629," "," "]
[null,null,null,null,null,null,null,null,false,630," "," "]
[null,null,null,null,null,null,null,null,false,631," "," "]
[null,null,null,null,null,null,null,null,false,632," "," "]
[null,null,null,null,null,null,null,null,false,633," "," "]
[null,null,null,null,null,null,null,null,false,634," "," "]
[null,null,null,null,null,null,null,null,false,635," "," "]
[null,null,null,null,null,null,null,null,false,636," "," "]
[null,null,null,null,null,null,null,null,false,637," "," "]
[null,null,null,null,null,null,null,null,false,638," "," "]
[null,null,null,null,null,null,null,null,false,639," "," "]
[null,null,null,null,null,null,null,null,false,640," "," "]
[null,null,null,null,null,null,null,null,{"$f":"IF(H643>0,RANDBETWEEN(1,$C$3))","v":false},641,{"$f":"IF(J643<=_xlnm.Criteria,G643,\" \")","v":" "},{"$f":"IF(J643<=_xlnm.Criteria,H643,\" \")","v":" "}]
[null,null,null,null,null,null,null,null,false,642," "," "]
[null,null,null,null,null,null,null,null,false,643," "," "]
[null,null,null,null,null,null,null,null,false,644," "," "]
[null,null,null,null,null,null,null,null,false,645," "," "]
[null,null,null,null,null,null,null,null,false,646," "," "]
[null,null,null,null,null,null,null,null,false,647," "," "]
[null,null,null,null,null,null,null,null,false,648," "," "]
[null,null,null,null,null,null,null,null,false,649," "," "]
[null,null,null,null,null,null,null,null,false,650," "," "]
[null,null,null,null,null,null,null,null,false,651," "," "]
[null,null,null,null,null,null,null,null,false,652," "," "]
[null,null,null,null,null,null,null,null,false,653," "," "]
[null,null,null,null,null,null,null,null,false,654," "," "]
[null,null,null,null,null,null,null,null,false,655," "," "]
[null,null,null,null,null,null,null,null,false,656," "," "]
[null,null,null,null,null,null,null,null,false,657," "," "]
[null,null,null,null,null,null,null,null,false,658," "," "]
[null,null,null,null,null,null,null,null,false,659," "," "]
[null,null,null,null,null,null,null,null,false,660," "," "]
[null,null,null,null,null,null,null,null,false,661," "," "]
[null,null,null,null,null,null,null,null,false,662," "," "]
[null,null,null,null,null,null,null,null,false,663," "," "]
[null,null,null,null,null,null,null,null,false,664," "," "]
[null,null,null,null,null,null,null,null,false,665," "," "]
[null,null,null,null,null,null,null,null,false,666," "," "]
[null,null,null,null,null,null,null,null,false,667," "," "]
[null,null,null,null,null,null,null,null,false,668," "," "]
[null,null,null,null,null,null,null,null,false,669," "," "]
[null,null,null,null,null,null,null,null,false,670," "," "]
[null,null,null,null,null,null,null,null,false,671," "," "]
[null,null,null,null,null,null,null,null,false,672," "," "]
[null,null,null,null,null,null,null,null,false,673," "," "]
[null,null,null,null,null,null,null,null,false,674," "," "]
[null,null,null,null,null,null,null,null,false,675," "," "]
[null,null,null,null,null,null,null,null,false,676," "," "]
[null,null,null,null,null,null,null,null,false,677," "," "]
[null,null,null,null,null,null,null,null,false,678," "," "]
[null,null,null,null,null,null,null,null,false,679," "," "]
[null,null,null,null,null,null,null,null,false,680," "," "]
[null,null,null,null,null,null,null,null,false,681," "," "]
[null,null,null,null,null,null,null,null,false,682," "," "]
[null,null,null,null,null,null,null,null,false,683," "," "]
[null,null,null,null,null,null,null,null,false,684," "," "]
[null,null,null,null,null,null,null,null,false,685," "," "]
[null,null,null,null,null,null,null,null,false,686," "," "]
[null,null,null,null,null,null,null,null,false,687," "," "]
[null,null,null,null,null,null,null,null,false,688," "," "]
[null,null,null,null,null,null,null,null,false,689," "," "]
[null,null,null,null,null,null,null,null,false,690," "," "]
[null,null,null,null,null,null,null,null,false,691," "," "]
[null,null,null,null,null,null,null,null,false,692," "," "]
[null,null,null,null,null,null,null,null,false,693," "," "]
[null,null,null,null,null,null,null,null,false,694," "," "]
[null,null,null,null,null,null,null,null,false,695," "," "]
[null,null,null,null,null,null,null,null,false,696," "," "]
[null,null,null,null,null,null,null,null,false,697," "," "]
[null,null,null,null,null,null,null,null,false,698," "," "]
[null,null,null,null,null,null,null,null,false,699," "," "]
[null,null,null,null,null,null,null,null,false,700," "," "]
[null,null,null,null,null,null,null,null,false,701," "," "]
[null,null,null,null,null,null,null,null,false,702," "," "]
[null,null,null,null,null,null,null,null,false,703," "," "]
[null,null,null,null,null,null,null,null,false,704," "," "]
[null,null,null,null,null,null,null,null,{"$f":"IF(H707>0,RANDBETWEEN(1,$C$3))","v":false},705,{"$f":"IF(J707<=_xlnm.Criteria,G707,\" \")","v":" "},{"$f":"IF(J707<=_xlnm.Criteria,H707,\" \")","v":" "}]
[null,null,null,null,null,null,null,null,false,706," "," "]
[null,null,null,null,null,null,null,null,false,707," "," "]
[null,null,null,null,null,null,null,null,false,708," "," "]
[null,null,null,null,null,null,null,null,false,709," "," "]
[null,null,null,null,null,null,null,null,false,710," "," "]
[null,null,null,null,null,null,null,null,false,711," "," "]
[null,null,null,null,null,null,null,null,false,712," "," "]
[null,null,null,null,null,null,null,null,false,713," "," "]
[null,null,null,null,null,null,null,null,false,714," "," "]
[null,null,null,null,null,null,null,null,false,715," "," "]
[null,null,null,null,null,null,null,null,false,716," "," "]
[null,null,null,null,null,null,null,null,false,717," "," "]
[null,null,null,null,null,null,null,null,false,718," "," "]
[null,null,null,null,null,null,null,null,false,719," "," "]
[null,null,null,null,null,null,null,null,false,720," "," "]
[null,null,null,null,null,null,null,null,false,721," "," "]
[null,null,null,null,null,null,null,null,false,722," "," "]
[null,null,null,null,null,null,null,null,false,723," "," "]
[null,null,null,null,null,null,null,null,false,724," "," "]
[null,null,null,null,null,null,null,null,false,725," "," "]
[null,null,null,null,null,null,null,null,false,726," "," "]
[null,null,null,null,null,null,null,null,false,727," "," "]
[null,null,null,null,null,null,null,null,false,728," "," "]
[null,null,null,null,null,null,null,null,false,729," "," "]
[null,null,null,null,null,null,null,null,false,730," "," "]
[null,null,null,null,null,null,null,null,false,731," "," "]
[null,null,null,null,null,null,null,null,false,732," "," "]
[null,null,null,null,null,null,null,null,false,733," "," "]
[null,null,null,null,null,null,null,null,false,734," "," "]
[null,null,null,null,null,null,null,null,false,735," "," "]
[null,null,null,null,null,null,null,null,false,736," "," "]
[null,null,null,null,null,null,null,null,false,737," "," "]
[null,null,null,null,null,null,null,null,false,738," "," "]
[null,null,null,null,null,null,null,null,false,739," "," "]
[null,null,null,null,null,null,null,null,false,740," "," "]
[null,null,null,null,null,null,null,null,false,741," "," "]
[null,null,null,null,null,null,null,null,false,742," "," "]
[null,null,null,null,null,null,null,null,false,743," "," "]
[null,null,null,null,null,null,null,null,false,744," "," "]
[null,null,null,null,null,null,null,null,false,745," "," "]
[null,null,null,null,null,null,null,null,false,746," "," "]
[null,null,null,null,null,null,null,null,false,747," "," "]
[null,null,null,null,null,null,null,null,false,748," "," "]
[null,null,null,null,null,null,null,null,false,749," "," "]
[null,null,null,null,null,null,null,null,false,750," "," "]
[null,null,null,null,null,null,null,null,false,751," "," "]
[null,null,null,null,null,null,null,null,false,752," "," "]
[null,null,null,null,null,null,null,null,false,753," "," "]
[null,null,null,null,null,null,null,null,false,754," "," "]
[null,null,null,null,null,null,null,null,false,755," "," "]
[null,null,null,null,null,null,null,null,false,756," "," "]
[null,null,null,null,null,null,null,null,false,757," "," "]
[null,null,null,null,null,null,null,null,false,758," "," "]
[null,null,null,null,null,null,null,null,false,759," "," "]
[null,null,null,null,null,null,null,null,false,760," "," "]
[null,null,null,null,null,null,null,null,false,761," "," "]
[null,null,null,null,null,null,null,null,false,762," "," "]
[null,null,null,null,null,null,null,null,false,763," "," "]
[null,null,null,null,null,null,null,null,false,764," "," "]
[null,null,null,null,null,null,null,null,false,765," "," "]
[null,null,null,null,null,null,null,null,false,766," "," "]
[null,null,null,null,null,null,null,null,false,767," "," "]
[null,null,null,null,null,null,null,null,false,768," "," "]
[null,null,null,null,null,null,null,null,{"$f":"IF(H771>0,RANDBETWEEN(1,$C$3))","v":false},769,{"$f":"IF(J771<=_xlnm.Criteria,G771,\" \")","v":" "},{"$f":"IF(J771<=_xlnm.Criteria,H771,\" \")","v":" "}]
[null,null,null,null,null,null,null,null,false,770," "," "]
[null,null,null,null,null,null,null,null,false,771," "," "]
[null,null,null,null,null,null,null,null,false,772," "," "]
[null,null,null,null,null,null,null,null,false,773," "," "]
[null,null,null,null,null,null,null,null,false,774," "," "]
[null,null,null,null,null,null,null,null,false,775," "," "]
[null,null,null,null,null,null,null,null,false,776," "," "]
[null,null,null,null,null,null,null,null,false,777," "," "]
[null,null,null,null,null,null,null,null,false,778," "," "]
[null,null,null,null,null,null,null,null,false,779," "," "]
[null,null,null,null,null,null,null,null,false,780," "," "]
[null,null,null,null,null,null,null,null,false,781," "," "]
[null,null,null,null,null,null,null,null,false,782," "," "]
[null,null,null,null,null,null,null,null,false,783," "," "]
[null,null,null,null,null,null,null,null,false,784," "," "]
[null,null,null,null,null,null,null,null,false,785," "," "]
[null,null,null,null,null,null,null,null,false,786," "," "]
[null,null,null,null,null,null,null,null,false,787," "," "]
[null,null,null,null,null,null,null,null,false,788," "," "]
[null,null,null,null,null,null,null,null,false,789," "," "]
[null,null,null,null,null,null,null,null,false,790," "," "]
[null,null,null,null,null,null,null,null,false,791," "," "]
[null,null,null,null,null,null,null,null,false,792," "," "]
[null,null,null,null,null,null,null,null,false,793," "," "]
[null,null,null,null,null,null,null,null,false,794," "," "]
[null,null,null,null,null,null,null,null,false,795," "," "]
[null,null,null,null,null,null,null,null,false,796," "," "]
[null,null,null,null,null,null,null,null,false,797," "," "]
[null,null,null,null,null,null,null,null,false,798," "," "]
[null,null,null,null,null,null,null,null,false,799," "," "]
[null,null,null,null,null,null,null,null,false,800," "," "]
[null,null,null,null,null,null,null,null,false,801," "," "]
[null,null,null,null,null,null,null,null,false,802," "," "]
[null,null,null,null,null,null,null,null,false,803," "," "]
[null,null,null,null,null,null,null,null,false,804," "," "]
[null,null,null,null,null,null,null,null,false,805," "," "]
[null,null,null,null,null,null,null,null,false,806," "," "]
[null,null,null,null,null,null,null,null,false,807," "," "]
[null,null,null,null,null,null,null,null,false,808," "," "]
[null,null,null,null,null,null,null,null,false,809," "," "]
[null,null,null,null,null,null,null,null,false,810," "," "]
[null,null,null,null,null,null,null,null,false,811," "," "]
[null,null,null,null,null,null,null,null,false,812," "," "]
[null,null,null,null,null,null,null,null,false,813," "," "]
[null,null,null,null,null,null,null,null,false,814," "," "]
[null,null,null,null,null,null,null,null,false,815," "," "]
[null,null,null,null,null,null,null,null,false,816," "," "]
[null,null,null,null,null,null,null,null,false,817," "," "]
[null,null,null,null,null,null,null,null,false,818," "," "]
[null,null,null,null,null,null,null,null,false,819," "," "]
[null,null,null,null,null,null,null,null,false,820," "," "]
[null,null,null,null,null,null,null,null,false,821," "," "]
[null,null,null,null,null,null,null,null,false,822," "," "]
[null,null,null,null,null,null,null,null,false,823," "," "]
[null,null,null,null,null,null,null,null,false,824," "," "]
[null,null,null,null,null,null,null,null,false,825," "," "]
[null,null,null,null,null,null,null,null,false,826," "," "]
[null,null,null,null,null,null,null,null,false,827," "," "]
[null,null,null,null,null,null,null,null,false,828," "," "]
[null,null,null,null,null,null,null,null,false,829," "," "]
[null,null,null,null,null,null,null,null,false,830," "," "]
[null,null,null,null,null,null,null,null,false,831," "," "]
[null,null,null,null,null,null,null,null,false,832," "," "]
[null,null,null,null,null,null,null,null,{"$f":"IF(H835>0,RANDBETWEEN(1,$C$3))","v":false},833,{"$f":"IF(J835<=_xlnm.Criteria,G835,\" \")","v":" "},{"$f":"IF(J835<=_xlnm.Criteria,H835,\" \")","v":" "}]
[null,null,null,null,null,null,null,null,false,834," "," "]
[null,null,null,null,null,null,null,null,false,835," "," "]
[null,null,null,null,null,null,null,null,false,836," "," "]
[null,null,null,null,null,null,null,null,false,837," "," "]
[null,null,null,null,null,null,null,null,false,838," "," "]
[null,null,null,null,null,null,null,null,false,839," "," "]
[null,null,null,null,null,null,null,null,false,840," "," "]
[null,null,null,null,null,null,null,null,false,841," "," "]
[null,null,null,null,null,null,null,null,false,842," "," "]
[null,null,null,null,null,null,null,null,false,843," "," "]
[null,null,null,null,null,null,null,null,false,844," "," "]
[null,null,null,null,null,null,null,null,false,845," "," "]
[null,null,null,null,null,null,null,null,false,846," "," "]
[null,null,null,null,null,null,null,null,false,847," "," "]
[null,null,null,null,null,null,null,null,false,848," "," "]
[null,null,null,null,null,null,null,null,false,849," "," "]
[null,null,null,null,null,null,null,null,false,850," "," "]
[null,null,null,null,null,null,null,null,false,851," "," "]
[null,null,null,null,null,null,null,null,false,852," "," "]
[null,null,null,null,null,null,null,null,false,853," "," "]
[null,null,null,null,null,null,null,null,false,854," "," "]
[null,null,null,null,null,null,null,null,false,855," "," "]
[null,null,null,null,null,null,null,null,false,856," "," "]
[null,null,null,null,null,null,null,null,false,857," "," "]
[null,null,null,null,null,null,null,null,false,858," "," "]
[null,null,null,null,null,null,null,null,false,859," "," "]
[null,null,null,null,null,null,null,null,false,860," "," "]
[null,null,null,null,null,null,null,null,false,861," "," "]
[null,null,null,null,null,null,null,null,false,862," "," "]
[null,null,null,null,null,null,null,null,false,863," "," "]
[null,null,null,null,null,null,null,null,false,864," "," "]
[null,null,null,null,null,null,null,null,false,865," "," "]
[null,null,null,null,null,null,null,null,false,866," "," "]
[null,null,null,null,null,null,null,null,false,867," "," "]
[null,null,null,null,null,null,null,null,false,868," "," "]
[null,null,null,null,null,null,null,null,false,869," "," "]
[null,null,null,null,null,null,null,null,false,870," "," "]
[null,null,null,null,null,null,null,null,false,871," "," "]
[null,null,null,null,null,null,null,null,false,872," "," "]
[null,null,null,null,null,null,null,null,false,873," "," "]
[null,null,null,null,null,null,null,null,false,874," "," "]
[null,null,null,null,null,null,null,null,false,875," "," "]
[null,null,null,null,null,null,null,null,false,876," "," "]
[null,null,null,null,null,null,null,null,false,877," "," "]
[null,null,null,null,null,null,null,null,false,878," "," "]
[null,null,null,null,null,null,null,null,false,879," "," "]
[null,null,null,null,null,null,null,null,false,880," "," "]
[null,null,null,null,null,null,null,null,false,881," "," "]
[null,null,null,null,null,null,null,null,false,882," "," "]
[null,null,null,null,null,null,null,null,false,883," "," "]
[null,null,null,null,null,null,null,null,false,884," "," "]
[null,null,null,null,null,null,null,null,false,885," "," "]
[null,null,null,null,null,null,null,null,false,886," "," "]
[null,null,null,null,null,null,null,null,false,887," "," "]
[null,null,null,null,null,null,null,null,false,888," "," "]
[null,null,null,null,null,null,null,null,false,889," "," "]
[null,null,null,null,null,null,null,null,false,890," "," "]
[null,null,null,null,null,null,null,null,false,891," "," "]
[null,null,null,null,null,null,null,null,false,892," "," "]
[null,null,null,null,null,null,null,null,false,893," "," "]
[null,null,null,null,null,null,null,null,false,894," "," "]
[null,null,null,null,null,null,null,null,false,895," "," "]
[null,null,null,null,null,null,null,null,false,896," "," "]
[null,null,null,null,null,null,null,null,{"$f":"IF(H899>0,RANDBETWEEN(1,$C$3))","v":false},897,{"$f":"IF(J899<=_xlnm.Criteria,G899,\" \")","v":" "},{"$f":"IF(J899<=_xlnm.Criteria,H899,\" \")","v":" "}]
[null,null,null,null,null,null,null,null,false,898," "," "]
[null,null,null,null,null,null,null,null,false,899," "," "]
[null,null,null,null,null,null,null,null,false,900," "," "]
[null,null,null,null,null,null,null,null,false,901," "," "]
[null,null,null,null,null,null,null,null,false,902," "," "]
[null,null,null,null,null,null,null,null,false,903," "," "]
[null,null,null,null,null,null,null,null,false,904," "," "]
[null,null,null,null,null,null,null,null,false,905," "," "]
[null,null,null,null,null,null,null,null,false,906," "," "]
[null,null,null,null,null,null,null,null,false,907," "," "]
[null,null,null,null,null,null,null,null,false,908," "," "]
[null,null,null,null,null,null,null,null,false,909," "," "]
[null,null,null,null,null,null,null,null,false,910," "," "]
[null,null,null,null,null,null,null,null,false,911," "," "]
[null,null,null,null,null,null,null,null,false,912," "," "]
[null,null,null,null,null,null,null,null,false,913," "," "]
[null,null,null,null,null,null,null,null,false,914," "," "]
[null,null,null,null,null,null,null,null,false,915," "," "]
[null,null,null,null,null,null,null,null,false,916," "," "]
[null,null,null,null,null,null,null,null,false,917," "," "]
[null,null,null,null,null,null,null,null,false,918," "," "]
[null,null,null,null,null,null,null,null,false,919," "," "]
[null,null,null,null,null,null,null,null,false,920," "," "]
[null,null,null,null,null,null,null,null,false,921," "," "]
[null,null,null,null,null,null,null,null,false,922," "," "]
[null,null,null,null,null,null,null,null,false,923," "," "]
[null,null,null,null,null,null,null,null,false,924," "," "]
[null,null,null,null,null,null,null,null,false,925," "," "]
[null,null,null,null,null,null,null,null,false,926," "," "]
[null,null,null,null,null,null,null,null,false,927," "," "]
[null,null,null,null,null,null,null,null,false,928," "," "]
[null,null,null,null,null,null,null,null,false,929," "," "]
[null,null,null,null,null,null,null,null,false,930," "," "]
[null,null,null,null,null,null,null,null,false,931," "," "]
[null,null,null,null,null,null,null,null,false,932," "," "]
[null,null,null,null,null,null,null,null,false,933," "," "]
[null,null,null,null,null,null,null,null,false,934," "," "]
[null,null,null,null,null,null,null,null,false,935," "," "]
[null,null,null,null,null,null,null,null,false,936," "," "]
[null,null,null,null,null,null,null,null,false,937," "," "]
[null,null,null,null,null,null,null,null,false,938," "," "]
[null,null,null,null,null,null,null,null,false,939," "," "]
[null,null,null,null,null,null,null,null,false,940," "," "]
[null,null,null,null,null,null,null,null,false,941," "," "]
[null,null,null,null,null,null,null,null,false,942," "," "]
[null,null,null,null,null,null,null,null,false,943," "," "]
[null,null,null,null,null,null,null,null,false,944," "," "]
[null,null,null,null,null,null,null,null,false,945," "," "]
[null,null,null,null,null,null,null,null,false,946," "," "]
[null,null,null,null,null,null,null,null,false,947," "," "]
[null,null,null,null,null,null,null,null,false,948," "," "]
[null,null,null,null,null,null,null,null,false,949," "," "]
[null,null,null,null,null,null,null,null,false,950," "," "]
[null,null,null,null,null,null,null,null,false,951," "," "]
[null,null,null,null,null,null,null,null,false,952," "," "]
[null,null,null,null,null,null,null,null,false,953," "," "]
[null,null,null,null,null,null,null,null,false,954," "," "]
[null,null,null,null,null,null,null,null,false,955," "," "]
[null,null,null,null,null,null,null,null,false,956," "," "]
[null,null,null,null,null,null,null,null,false,957," "," "]
[null,null,null,null,null,null,null,null,false,958," "," "]
[null,null,null,null,null,null,null,null,false,959," "," "]
[null,null,null,null,null,null,null,null,false,960," "," "]
[null,null,null,null,null,null,null,null,{"$f":"IF(H963>0,RANDBETWEEN(1,$C$3))","v":false},961,{"$f":"IF(J963<=_xlnm.Criteria,G963,\" \")","v":" "},{"$f":"IF(J963<=_xlnm.Criteria,H963,\" \")","v":" "}]
[null,null,null,null,null,null,null,null,false,962," "," "]
[null,null,null,null,null,null,null,null,false,963," "," "]
[null,null,null,null,null,null,null,null,false,964," "," "]
[null,null,null,null,null,null,null,null,false,965," "," "]
[null,null,null,null,null,null,null,null,false,966," "," "]
[null,null,null,null,null,null,null,null,false,967," "," "]
[null,null,null,null,null,null,null,null,false,968," "," "]
[null,null,null,null,null,null,null,null,false,969," "," "]
[null,null,null,null,null,null,null,null,false,970," "," "]
[null,null,null,null,null,null,null,null,false,971," "," "]
[null,null,null,null,null,null,null,null,false,972," "," "]
[null,null,null,null,null,null,null,null,false,973," "," "]
[null,null,null,null,null,null,null,null,false,974," "," "]
[null,null,null,null,null,null,null,null,false,975," "," "]
[null,null,null,null,null,null,null,null,false,976," "," "]
[null,null,null,null,null,null,null,null,false,977," "," "]
[null,null,null,null,null,null,null,null,false,978," "," "]
[null,null,null,null,null,null,null,null,false,979," "," "]
[null,null,null,null,null,null,null,null,false,980," "," "]
[null,null,null,null,null,null,null,null,false,981," "," "]
[null,null,null,null,null,null,null,null,false,982," "," "]
[null,null,null,null,null,null,null,null,false,983," "," "]
[null,null,null,null,null,null,null,null,false,984," "," "]
[null,null,null,null,null,null,null,null,false,985," "," "]
[null,null,null,null,null,null,null,null,false,986," "," "]
[null,null,null,null,null,null,null,null,false,987," "," "]
[null,null,null,null,null,null,null,null,false,988," "," "]
[null,null,null,null,null,null,null,null,false,989," "," "]
[null,null,null,null,null,null,null,null,false,990," "," "]
[null,null,null,null,null,null,null,null,false,991," "," "]
[null,null,null,null,null,null,null,null,false,992," "," "]
[null,null,null,null,null,null,null,null,false,993," "," "]
[null,null,null,null,null,null,null,null,false,994," "," "]
[null,null,null,null,null,null,null,null,false,995," "," "]
[null,null,null,null,null,null,null,null,false,996," "," "]
[null,null,null,null,null,null,null,null,false,997," "," "]
[null,null,null,null,null,null,null,null,false,998," "," "]
[null,null,null,null,null,null,null,null,false,999," "," "]
[null,null,null,null,null,null,null,null,false,1000," "," "]
[null,null,null,null,null,null,null,null,false,1001," "," "]
[null,null,null,null,null,null,null,null,false,1002," "," "]
[null,null,null,null,null,null,null,null,false,1003," "," "]
[null,null,null,null,null,null,null,null,false,1004," "," "]
[null,null,null,null,null,null,null,null,false,1005," "," "]
[null,null,null,null,null,null,null,null,false,1006," "," "]
[null,null,null,null,null,null,null,null,false,1007," "," "]
[null,null,null,null,null,null,null,null,false,1008," "," "]
[null,null,null,null,null,null,null,null,false,1009," "," "]
[null,null,null,null,null,null,null,null,false,1010," "," "]
[null,null,null,null,null,null,null,null,false,1011," "," "]
[null,null,null,null,null,null,null,null,false,1012," "," "]
[null,null,null,null,null,null,null,null,false,1013," "," "]
[null,null,null,null,null,null,null,null,false,1014," "," "]
[null,null,null,null,null,null,null,null,false,1015," "," "]
[null,null,null,null,null,null,null,null,false,1016," "," "]
[null,null,null,null,null,null,null,null,false,1017," "," "]
[null,null,null,null,null,null,null,null,false,1018," "," "]
[null,null,null,null,null,null,null,null,false,1019," "," "]
[null,null,null,null,null,null,null,null,false,1020," "," "]
[null,null,null,null,null,null,null,null,false,1021," "," "]
[null,null,null,null,null,null,null,null,false,1022," "," "]
[null,null,null,null,null,null,null,null,false,1023," "," "]
[null,null,null,null,null,null,null,null,false,1024," "," "]
[null,null,null,null,null,null,null,null,{"$f":"IF(H1027>0,RANDBETWEEN(1,$C$3))","v":false},1025,{"$f":"IF(J1027<=_xlnm.Criteria,G1027,\" \")","v":" "},{"$f":"IF(J1027<=_xlnm.Criteria,H1027,\" \")","v":" "}]
[null,null,null,null,null,null,null,null,false,1026," "," "]
[null,null,null,null,null,null,null,null,false,1027," "," "]
[null,null,null,null,null,null,null,null,false,1028," "," "]
[null,null,null,null,null,null,null,null,false,1029," "," "]
[null,null,null,null,null,null,null,null,false,1030," "," "]
[null,null,null,null,null,null,null,null,false,1031," "," "]
[null,null,null,null,null,null,null,null,false,1032," "," "]
[null,null,null,null,null,null,null,null,false,1033," "," "]
[null,null,null,null,null,null,null,null,false,1034," "," "]
[null,null,null,null,null,null,null,null,false,1035," "," "]
[null,null,null,null,null,null,null,null,false,1036," "," "]
[null,null,null,null,null,null,null,null,false,1037," "," "]
[null,null,null,null,null,null,null,null,false,1038," "," "]
[null,null,null,null,null,null,null,null,false,1039," "," "]
[null,null,null,null,null,null,null,null,false,1040," "," "]
[null,null,null,null,null,null,null,null,false,1041," "," "]
[null,null,null,null,null,null,null,null,false,1042," "," "]
[null,null,null,null,null,null,null,null,false,1043," "," "]
[null,null,null,null,null,null,null,null,false,1044," "," "]
[null,null,null,null,null,null,null,null,false,1045," "," "]
[null,null,null,null,null,null,null,null,false,1046," "," "]
[null,null,null,null,null,null,null,null,false,1047," "," "]
[null,null,null,null,null,null,null,null,false,1048," "," "]
[null,null,null,null,null,null,null,null,false,1049," "," "]
[null,null,null,null,null,null,null,null,false,1050," "," "]
[null,null,null,null,null,null,null,null,false,1051," "," "]
[null,null,null,null,null,null,null,null,false,1052," "," "]
[null,null,null,null,null,null,null,null,false,1053," "," "]
[null,null,null,null,null,null,null,null,false,1054," "," "]
[null,null,null,null,null,null,null,null,false,1055," "," "]
[null,null,null,null,null,null,null,null,false,1056," "," "]
[null,null,null,null,null,null,null,null,false,1057," "," "]
[null,null,null,null,null,null,null,null,false,1058," "," "]
[null,null,null,null,null,null,null,null,false,1059," "," "]
[null,null,null,null,null,null,null,null,false,1060," "," "]
[null,null,null,null,null,null,null,null,false,1061," "," "]
[null,null,null,null,null,null,null,null,false,1062," "," "]
[null,null,null,null,null,null,null,null,false,1063," "," "]
[null,null,null,null,null,null,null,null,false,1064," "," "]
[null,null,null,null,null,null,null,null,false,1065," "," "]
[null,null,null,null,null,null,null,null,false,1066," "," "]
[null,null,null,null,null,null,null,null,false,1067," "," "]
[null,null,null,null,null,null,null,null,false,1068," "," "]
[null,null,null,null,null,null,null,null,false,1069," "," "]
[null,null,null,null,null,null,null,null,false,1070," "," "]
[null,null,null,null,null,null,null,null,false,1071," "," "]
[null,null,null,null,null,null,null,null,false,1072," "," "]
[null,null,null,null,null,null,null,null,false,1073," "," "]
[null,null,null,null,null,null,null,null,false,1074," "," "]
[null,null,null,null,null,null,null,null,false,1075," "," "]
[null,null,null,null,null,null,null,null,false,1076," "," "]
[null,null,null,null,null,null,null,null,false,1077," "," "]
[null,null,null,null,null,null,null,null,false,1078," "," "]
[null,null,null,null,null,null,null,null,false,1079," "," "]
[null,null,null,null,null,null,null,null,false,1080," "," "]
[null,null,null,null,null,null,null,null,false,1081," "," "]
[null,null,null,null,null,null,null,null,false,1082," "," "]
[null,null,null,null,null,null,null,null,false,1083," "," "]
[null,null,null,null,null,null,null,null,false,1084," "," "]
[null,null,null,null,null,null,null,null,false,1085," "," "]
[null,null,null,null,null,null,null,null,false,1086," "," "]
[null,null,null,null,null,null,null,null,false,1087," "," "]
[null,null,null,null,null,null,null,null,false,1088," "," "]
[null,null,null,null,null,null,null,null,{"$f":"IF(H1091>0,RANDBETWEEN(1,$C$3))","v":false},1089,{"$f":"IF(J1091<=_xlnm.Criteria,G1091,\" \")","v":" "},{"$f":"IF(J1091<=_xlnm.Criteria,H1091,\" \")","v":" "}]
[null,null,null,null,null,null,null,null,false,1090," "," "]
[null,null,null,null,null,null,null,null,false,1091," "," "]
[null,null,null,null,null,null,null,null,false,1092," "," "]
[null,null,null,null,null,null,null,null,false,1093," "," "]
[null,null,null,null,null,null,null,null,false,1094," "," "]
[null,null,null,null,null,null,null,null,false,1095," "," "]
[null,null,null,null,null,null,null,null,false,1096," "," "]
[null,null,null,null,null,null,null,null,false,1097," "," "]
[null,null,null,null,null,null,null,null,false,1098," "," "]
[null,null,null,null,null,null,null,null,false,1099," "," "]
[null,null,null,null,null,null,null,null,false,1100," "," "]
[null,null,null,null,null,null,null,null,false,1101," "," "]
[null,null,null,null,null,null,null,null,false,1102," "," "]
[null,null,null,null,null,null,null,null,false,1103," "," "]
[null,null,null,null,null,null,null,null,false,1104," "," "]
[null,null,null,null,null,null,null,null,false,1105," "," "]
[null,null,null,null,null,null,null,null,false,1106," "," "]
[null,null,null,null,null,null,null,null,false,1107," "," "]
[null,null,null,null,null,null,null,null,false,1108," "," "]
[null,null,null,null,null,null,null,null,false,1109," "," "]
[null,null,null,null,null,null,null,null,false,1110," "," "]
[null,null,null,null,null,null,null,null,false,1111," "," "]
[null,null,null,null,null,null,null,null,false,1112," "," "]
[null,null,null,null,null,null,null,null,false,1113," "," "]
[null,null,null,null,null,null,null,null,false,1114," "," "]
[null,null,null,null,null,null,null,null,false,1115," "," "]
[null,null,null,null,null,null,null,null,false,1116," "," "]
[null,null,null,null,null,null,null,null,false,1117," "," "]
[null,null,null,null,null,null,null,null,false,1118," "," "]
[null,null,null,null,null,null,null,null,false,1119," "," "]
[null,null,null,null,null,null,null,null,false,1120," "," "]
[null,null,null,null,null,null,null,null,false,1121," "," "]
[null,null,null,null,null,null,null,null,false,1122," "," "]
[null,null,null,null,null,null,null,null,false,1123," "," "]
[null,null,null,null,null,null,null,null,false,1124," "," "]
[null,null,null,null,null,null,null,null,false,1125," "," "]
[null,null,null,null,null,null,null,null,false,1126," "," "]
[null,null,null,null,null,null,null,null,false,1127," "," "]
[null,null,null,null,null,null,null,null,false,1128," "," "]
[null,null,null,null,null,null,null,null,false,1129," "," "]
[null,null,null,null,null,null,null,null,false,1130," "," "]
[null,null,null,null,null,null,null,null,false,1131," "," "]
[null,null,null,null,null,null,null,null,false,1132," "," "]
[null,null,null,null,null,null,null,null,false,1133," "," "]
[null,null,null,null,null,null,null,null,false,1134," "," "]
[null,null,null,null,null,null,null,null,false,1135," "," "]
[null,null,null,null,null,null,null,null,false,1136," "," "]
[null,null,null,null,null,null,null,null,false,1137," "," "]
[null,null,null,null,null,null,null,null,false,1138," "," "]
[null,null,null,null,null,null,null,null,false,1139," "," "]
[null,null,null,null,null,null,null,null,false,1140," "," "]
[null,null,null,null,null,null,null,null,false,1141," "," "]
[null,null,null,null,null,null,null,null,false,1142," "," "]
[null,null,null,null,null,null,null,null,false,1143," "," "]
[null,null,null,null,null,null,null,null,false,1144," "," "]
[null,null,null,null,null,null,null,null,false,1145," "," "]
[null,null,null,null,null,null,null,null,false,1146," "," "]
[null,null,null,null,null,null,null,null,false,1147," "," "]
[null,null,null,null,null,null,null,null,false,1148," "," "]
[null,null,null,null,null,null,null,null,false,1149," "," "]
[null,null,null,null,null,null,null,null,false,1150," "," "]
[null,null,null,null,null,null,null,null,false,1151," "," "]
[null,null,null,null,null,null,null,null,false,1152," "," "]
[null,null,null,null,null,null,null,null,{"$f":"IF(H1155>0,RANDBETWEEN(1,$C$3))","v":false},1153,{"$f":"IF(J1155<=_xlnm.Criteria,G1155,\" \")","v":" "},{"$f":"IF(J1155<=_xlnm.Criteria,H1155,\" \")","v":" "}]
[null,null,null,null,null,null,null,null,false,1154," "," "]
[null,null,null,null,null,null,null,null,false,1155," "," "]
[null,null,null,null,null,null,null,null,false,1156," "," "]
[null,null,null,null,null,null,null,null,false,1157," "," "]
[null,null,null,null,null,null,null,null,false,1158," "," "]
[null,null,null,null,null,null,null,null,false,1159," "," "]
[null,null,null,null,null,null,null,null,false,1160," "," "]
[null,null,null,null,null,null,null,null,false,1161," "," "]
[null,null,null,null,null,null,null,null,false,1162," "," "]
[null,null,null,null,null,null,null,null,false,1163," "," "]
[null,null,null,null,null,null,null,null,false,1164," "," "]
[null,null,null,null,null,null,null,null,false,1165," "," "]
[null,null,null,null,null,null,null,null,false,1166," "," "]
[null,null,null,null,null,null,null,null,false,1167," "," "]
[null,null,null,null,null,null,null,null,false,1168," "," "]
[null,null,null,null,null,null,null,null,false,1169," "," "]
[null,null,null,null,null,null,null,null,false,1170," "," "]
[null,null,null,null,null,null,null,null,false,1171," "," "]
[null,null,null,null,null,null,null,null,false,1172," "," "]
[null,null,null,null,null,null,null,null,false,1173," "," "]
[null,null,null,null,null,null,null,null,false,1174," "," "]
[null,null,null,null,null,null,null,null,false,1175," "," "]
[null,null,null,null,null,null,null,null,false,1176," "," "]
[null,null,null,null,null,null,null,null,false,1177," "," "]
[null,null,null,null,null,null,null,null,false,1178," "," "]
[null,null,null,null,null,null,null,null,false,1179," "," "]
[null,null,null,null,null,null,null,null,false,1180," "," "]
[null,null,null,null,null,null,null,null,false,1181," "," "]
[null,null,null,null,null,null,null,null,false,1182," "," "]
[null,null,null,null,null,null,null,null,false,1183," "," "]
[null,null,null,null,null,null,null,null,false,1184," "," "]
[null,null,null,null,null,null,null,null,false,1185," "," "]
[null,null,null,null,null,null,null,null,false,1186," "," "]
[null,null,null,null,null,null,null,null,false,1187," "," "]
[null,null,null,null,null,null,null,null,false,1188," "," "]
[null,null,null,null,null,null,null,null,false,1189," "," "]
[null,null,null,null,null,null,null,null,false,1190," "," "]
[null,null,null,null,null,null,null,null,false,1191," "," "]
[null,null,null,null,null,null,null,null,false,1192," "," "]
[null,null,null,null,null,null,null,null,false,1193," "," "]
[null,null,null,null,null,null,null,null,false,1194," "," "]
[null,null,null,null,null,null,null,null,false,1195," "," "]
[null,null,null,null,null,null,null,null,false,1196," "," "]
[null,null,null,null,null,null,null,null,false,1197," "," "]
[null,null,null,null,null,null,null,null,false,1198," "," "]
[null,null,null,null,null,null,null,null,false,1199," "," "]
[null,null,null,null,null,null,null,null,false,1200," "," "]
[null,null,null,null,null,null,null,null,false,1201," "," "]
[null,null,null,null,null,null,null,null,false,1202," "," "]
[null,null,null,null,null,null,null,null,false,1203," "," "]
[null,null,null,null,null,null,null,null,false,1204," "," "]
[null,null,null,null,null,null,null,null,false,1205," "," "]
[null,null,null,null,null,null,null,null,false,1206," "," "]
[null,null,null,null,null,null,null,null,false,1207," "," "]
[null,null,null,null,null,null,null,null,false,1208," "," "]
[null,null,null,null,null,null,null,null,false,1209," "," "]
[null,null,null,null,null,null,null,null,false,1210," "," "]
[null,null,null,null,null,null,null,null,false,1211," "," "]
[null,null,null,null,null,null,null,null,false,1212," "," "]
[null,null,null,null,null,null,null,null,false,1213," "," "]
[null,null,null,null,null,null,null,null,false,1214," "," "]
[null,null,null,null,null,null,null,null,false,1215," "," "]
[null,null,null,null,null,null,null,null,false,1216," "," "]
[null,null,null,null,null,null,null,null,{"$f":"IF(H1219>0,RANDBETWEEN(1,$C$3))","v":false},1217,{"$f":"IF(J1219<=_xlnm.Criteria,G1219,\" \")","v":" "},{"$f":"IF(J1219<=_xlnm.Criteria,H1219,\" \")","v":" "}]
[null,null,null,null,null,null,null,null,false,1218," "," "]
[null,null,null,null,null,null,null,null,false,1219," "," "]
[null,null,null,null,null,null,null,null,false,1220," "," "]
[null,null,null,null,null,null,null,null,false,1221," "," "]
[null,null,null,null,null,null,null,null,false,1222," "," "]
[null,null,null,null,null,null,null,null,false,1223," "," "]
[null,null,null,null,null,null,null,null,false,1224," "," "]
[null,null,null,null,null,null,null,null,false,1225," "," "]
[null,null,null,null,null,null,null,null,false,1226," "," "]
[null,null,null,null,null,null,null,null,false,1227," "," "]
[null,null,null,null,null,null,null,null,false,1228," "," "]
[null,null,null,null,null,null,null,null,false,1229," "," "]
[null,null,null,null,null,null,null,null,false,1230," "," "]
[null,null,null,null,null,null,null,null,false,1231," "," "]
[null,null,null,null,null,null,null,null,false,1232," "," "]
[null,null,null,null,null,null,null,null,false,1233," "," "]
[null,null,null,null,null,null,null,null,false,1234," "," "]
[null,null,null,null,null,null,null,null,false,1235," "," "]
[null,null,null,null,null,null,null,null,false,1236," "," "]
[null,null,null,null,null,null,null,null,false,1237," "," "]
[null,null,null,null,null,null,null,null,false,1238," "," "]
[null,null,null,null,null,null,null,null,false,1239," "," "]
[null,null,null,null,null,null,null,null,false,1240," "," "]
[null,null,null,null,null,null,null,null,false,1241," "," "]
[null,null,null,null,null,null,null,null,false,1242," "," "]
[null,null,null,null,null,null,null,null,false,1243," "," "]
[null,null,null,null,null,null,null,null,false,1244," "," "]
[null,null,null,null,null,null,null,null,false,1245," "," "]
[null,null,null,null,null,null,null,null,false,1246," "," "]
[null,null,null,null,null,null,null,null,false,1247," "," "]
[null,null,null,null,null,null,null,null,false,1248," "," "]
[null,null,null,null,null,null,null,null,false,1249," "," "]
[null,null,null,null,null,null,null,null,false,1250," "," "]
[null,null,null,null,null,null,null,null,false,1251," "," "]
[null,null,null,null,null,null,null,null,false,1252," "," "]
[null,null,null,null,null,null,null,null,false,1253," "," "]
[null,null,null,null,null,null,null,null,false,1254," "," "]
[null,null,null,null,null,null,null,null,false,1255," "," "]
[null,null,null,null,null,null,null,null,false,1256," "," "]
[null,null,null,null,null,null,null,null,false,1257," "," "]
[null,null,null,null,null,null,null,null,false,1258," "," "]
[null,null,null,null,null,null,null,null,false,1259," "," "]
[null,null,null,null,null,null,null,null,false,1260," "," "]
[null,null,null,null,null,null,null,null,false,1261," "," "]
[null,null,null,null,null,null,null,null,false,1262," "," "]
[null,null,null,null,null,null,null,null,false,1263," "," "]
[null,null,null,null,null,null,null,null,false,1264," "," "]
[null,null,null,null,null,null,null,null,false,1265," "," "]
[null,null,null,null,null,null,null,null,false,1266," "," "]
[null,null,null,null,null,null,null,null,false,1267," "," "]
[null,null,null,null,null,null,null,null,false,1268," "," "]
[null,null,null,null,null,null,null,null,false,1269," "," "]
[null,null,null,null,null,null,null,null,false,1270," "," "]
[null,null,null,null,null,null,null,null,false,1271," "," "]
[null,null,null,null,null,null,null,null,false,1272," "," "]
[null,null,null,null,null,null,null,null,false,1273," "," "]
[null,null,null,null,null,null,null,null,false,1274," "," "]
[null,null,null,null,null,null,null,null,false,1275," "," "]
[null,null,null,null,null,null,null,null,false,1276," "," "]
[null,null,null,null,null,null,null,null,false,1277," "," "]
[null,null,null,null,null,null,null,null,false,1278," "," "]
[null,null,null,null,null,null,null,null,false,1279," "," "]
[null,null,null,null,null,null,null,null,false,1280," "," "]
[null,null,null,null,null,null,null,null,{"$f":"IF(H1283>0,RANDBETWEEN(1,$C$3))","v":false},1281,{"$f":"IF(J1283<=_xlnm.Criteria,G1283,\" \")","v":" "},{"$f":"IF(J1283<=_xlnm.Criteria,H1283,\" \")","v":" "}]
[null,null,null,null,null,null,null,null,false,1282," "," "]
[null,null,null,null,null,null,null,null,false,1283," "," "]
[null,null,null,null,null,null,null,null,false,1284," "," "]
[null,null,null,null,null,null,null,null,false,1285," "," "]
[null,null,null,null,null,null,null,null,false,1286," "," "]
[null,null,null,null,null,null,null,null,false,1287," "," "]
[null,null,null,null,null,null,null,null,false,1288," "," "]
[null,null,null,null,null,null,null,null,false,1289," "," "]
[null,null,null,null,null,null,null,null,false,1290," "," "]
[null,null,null,null,null,null,null,null,false,1291," "," "]
[null,null,null,null,null,null,null,null,false,1292," "," "]
[null,null,null,null,null,null,null,null,false,1293," "," "]
[null,null,null,null,null,null,null,null,false,1294," "," "]
[null,null,null,null,null,null,null,null,false,1295," "," "]
[null,null,null,null,null,null,null,null,false,1296," "," "]
[null,null,null,null,null,null,null,null,false,1297," "," "]
[null,null,null,null,null,null,null,null,false,1298," "," "]
[null,null,null,null,null,null,null,null,false,1299," "," "]
[null,null,null,null,null,null,null,null,false,1300," "," "]
[null,null,null,null,null,null,null,null,false,1301," "," "]
[null,null,null,null,null,null,null,null,false,1302," "," "]
[null,null,null,null,null,null,null,null,false,1303," "," "]
[null,null,null,null,null,null,null,null,false,1304," "," "]
[null,null,null,null,null,null,null,null,false,1305," "," "]
[null,null,null,null,null,null,null,null,false,1306," "," "]
[null,null,null,null,null,null,null,null,false,1307," "," "]
[null,null,null,null,null,null,null,null,false,1308," "," "]
[null,null,null,null,null,null,null,null,false,1309," "," "]
[null,null,null,null,null,null,null,null,false,1310," "," "]
[null,null,null,null,null,null,null,null,false,1311," "," "]
[null,null,null,null,null,null,null,null,false,1312," "," "]
[null,null,null,null,null,null,null,null,false,1313," "," "]
[null,null,null,null,null,null,null,null,false,1314," "," "]
[null,null,null,null,null,null,null,null,false,1315," "," "]
[null,null,null,null,null,null,null,null,false,1316," "," "]
[null,null,null,null,null,null,null,null,false,1317," "," "]
[null,null,null,null,null,null,null,null,false,1318," "," "]
[null,null,null,null,null,null,null,null,false,1319," "," "]
[null,null,null,null,null,null,null,null,false,1320," "," "]
[null,null,null,null,null,null,null,null,false,1321," "," "]
[null,null,null,null,null,null,null,null,false,1322," "," "]
[null,null,null,null,null,null,null,null,false,1323," "," "]
[null,null,null,null,null,null,null,null,false,1324," "," "]
[null,null,null,null,null,null,null,null,false,1325," "," "]
[null,null,null,null,null,null,null,null,false,1326," "," "]
[null,null,null,null,null,null,null,null,false,1327," "," "]
[null,null,null,null,null,null,null,null,false,1328," "," "]
[null,null,null,null,null,null,null,null,false,1329," "," "]
[null,null,null,null,null,null,null,null,false,1330," "," "]
[null,null,null,null,null,null,null,null,false,1331," "," "]
[null,null,null,null,null,null,null,null,false,1332," "," "]
[null,null,null,null,null,null,null,null,false,1333," "," "]
[null,null,null,null,null,null,null,null,false,1334," "," "]
[null,null,null,null,null,null,null,null,false,1335," "," "]
[null,null,null,null,null,null,null,null,false,1336," "," "]
[null,null,null,null,null,null,null,null,false,1337," "," "]
[null,null,null,null,null,null,null,null,false,1338," "," "]
[null,null,null,null,null,null,null,null,false,1339," "," "]
[null,null,null,null,null,null,null,null,false,1340," "," "]
[null,null,null,null,null,null,null,null,false,1341," "," "]
[null,null,null,null,null,null,null,null,false,1342," "," "]
[null,null,null,null,null,null,null,null,false,1343," "," "]
[null,null,null,null,null,null,null,null,false,1344," "," "]
[null,null,null,null,null,null,null,null,{"$f":"IF(H1347>0,RANDBETWEEN(1,$C$3))","v":false},1345,{"$f":"IF(J1347<=_xlnm.Criteria,G1347,\" \")","v":" "},{"$f":"IF(J1347<=_xlnm.Criteria,H1347,\" \")","v":" "}]
[null,null,null,null,null,null,null,null,false,1346," "," "]
[null,null,null,null,null,null,null,null,false,1347," "," "]
[null,null,null,null,null,null,null,null,false,1348," "," "]
[null,null,null,null,null,null,null,null,false,1349," "," "]
[null,null,null,null,null,null,null,null,false,1350," "," "]
[null,null,null,null,null,null,null,null,false,1351," "," "]
[null,null,null,null,null,null,null,null,false,1352," "," "]
[null,null,null,null,null,null,null,null,false,1353," "," "]
[null,null,null,null,null,null,null,null,false,1354," "," "]
[null,null,null,null,null,null,null,null,false,1355," "," "]
[null,null,null,null,null,null,null,null,false,1356," "," "]
[null,null,null,null,null,null,null,null,false,1357," "," "]
[null,null,null,null,null,null,null,null,false,1358," "," "]
[null,null,null,null,null,null,null,null,false,1359," "," "]
[null,null,null,null,null,null,null,null,false,1360," "," "]
[null,null,null,null,null,null,null,null,false,1361," "," "]
[null,null,null,null,null,null,null,null,false,1362," "," "]
[null,null,null,null,null,null,null,null,false,1363," "," "]
[null,null,null,null,null,null,null,null,false,1364," "," "]
[null,null,null,null,null,null,null,null,false,1365," "," "]
[null,null,null,null,null,null,null,null,false,1366," "," "]
[null,null,null,null,null,null,null,null,false,1367," "," "]
[null,null,null,null,null,null,null,null,false,1368," "," "]
[null,null,null,null,null,null,null,null,false,1369," "," "]
[null,null,null,null,null,null,null,null,false,1370," "," "]
[null,null,null,null,null,null,null,null,false,1371," "," "]
[null,null,null,null,null,null,null,null,false,1372," "," "]
[null,null,null,null,null,null,null,null,false,1373," "," "]
[null,null,null,null,null,null,null,null,false,1374," "," "]
[null,null,null,null,null,null,null,null,false,1375," "," "]
[null,null,null,null,null,null,null,null,false,1376," "," "]
[null,null,null,null,null,null,null,null,false,1377," "," "]
[null,null,null,null,null,null,null,null,false,1378," "," "]
[null,null,null,null,null,null,null,null,false,1379," "," "]
[null,null,null,null,null,null,null,null,false,1380," "," "]
[null,null,null,null,null,null,null,null,false,1381," "," "]
[null,null,null,null,null,null,null,null,false,1382," "," "]
[null,null,null,null,null,null,null,null,false,1383," "," "]
[null,null,null,null,null,null,null,null,false,1384," "," "]
[null,null,null,null,null,null,null,null,false,1385," "," "]
[null,null,null,null,null,null,null,null,false,1386," "," "]
[null,null,null,null,null,null,null,null,false,1387," "," "]
[null,null,null,null,null,null,null,null,false,1388," "," "]
[null,null,null,null,null,null,null,null,false,1389," "," "]
[null,null,null,null,null,null,null,null,false,1390," "," "]
[null,null,null,null,null,null,null,null,false,1391," "," "]
[null,null,null,null,null,null,null,null,false,1392," "," "]
[null,null,null,null,null,null,null,null,false,1393," "," "]
[null,null,null,null,null,null,null,null,false,1394," "," "]
[null,null,null,null,null,null,null,null,false,1395," "," "]
[null,null,null,null,null,null,null,null,false,1396," "," "]
[null,null,null,null,null,null,null,null,false,1397," "," "]
[null,null,null,null,null,null,null,null,false,1398," "," "]
[null,null,null,null,null,null,null,null,false,1399," "," "]
[null,null,null,null,null,null,null,null,false,1400," "," "]
[null,null,null,null,null,null,null,null,false,1401," "," "]
[null,null,null,null,null,null,null,null,false,1402," "," "]
[null,null,null,null,null,null,null,null,false,1403," "," "]
[null,null,null,null,null,null,null,null,false,1404," "," "]
[null,null,null,null,null,null,null,null,false,1405," "," "]
[null,null,null,null,null,null,null,null,false,1406," "," "]
[null,null,null,null,null,null,null,null,false,1407," "," "]
[null,null,null,null,null,null,null,null,false,1408," "," "]
[null,null,null,null,null,null,null,null,{"$f":"IF(H1411>0,RANDBETWEEN(1,$C$3))","v":false},1409,{"$f":"IF(J1411<=_xlnm.Criteria,G1411,\" \")","v":" "},{"$f":"IF(J1411<=_xlnm.Criteria,H1411,\" \")","v":" "}]
[null,null,null,null,null,null,null,null,false,1410," "," "]
[null,null,null,null,null,null,null,null,false,1411," "," "]
[null,null,null,null,null,null,null,null,false,1412," "," "]
[null,null,null,null,null,null,null,null,false,1413," "," "]
[null,null,null,null,null,null,null,null,false,1414," "," "]
[null,null,null,null,null,null,null,null,false,1415," "," "]
[null,null,null,null,null,null,null,null,false,1416," "," "]
[null,null,null,null,null,null,null,null,false,1417," "," "]
[null,null,null,null,null,null,null,null,false,1418," "," "]
[null,null,null,null,null,null,null,null,false,1419," "," "]
[null,null,null,null,null,null,null,null,false,1420," "," "]
[null,null,null,null,null,null,null,null,false,1421," "," "]
[null,null,null,null,null,null,null,null,false,1422," "," "]
[null,null,null,null,null,null,null,null,false,1423," "," "]
[null,null,null,null,null,null,null,null,false,1424," "," "]
[null,null,null,null,null,null,null,null,false,1425," "," "]
[null,null,null,null,null,null,null,null,false,1426," "," "]
[null,null,null,null,null,null,null,null,false,1427," "," "]
[null,null,null,null,null,null,null,null,false,1428," "," "]
[null,null,null,null,null,null,null,null,false,1429," "," "]
[null,null,null,null,null,null,null,null,false,1430," "," "]
[null,null,null,null,null,null,null,null,false,1431," "," "]
[null,null,null,null,null,null,null,null,false,1432," "," "]
[null,null,null,null,null,null,null,null,false,1433," "," "]
[null,null,null,null,null,null,null,null,false,1434," "," "]
[null,null,null,null,null,null,null,null,false,1435," "," "]
[null,null,null,null,null,null,null,null,false,1436," "," "]
[null,null,null,null,null,null,null,null,false,1437," "," "]
[null,null,null,null,null,null,null,null,false,1438," "," "]
[null,null,null,null,null,null,null,null,false,1439," "," "]
[null,null,null,null,null,null,null,null,false,1440," "," "]
[null,null,null,null,null,null,null,null,false,1441," "," "]
[null,null,null,null,null,null,null,null,false,1442," "," "]
[null,null,null,null,null,null,null,null,false,1443," "," "]
[null,null,null,null,null,null,null,null,false,1444," "," "]
[null,null,null,null,null,null,null,null,false,1445," "," "]
[null,null,null,null,null,null,null,null,false,1446," "," "]
[null,null,null,null,null,null,null,null,false,1447," "," "]
[null,null,null,null,null,null,null,null,false,1448," "," "]
[null,null,null,null,null,null,null,null,false,1449," "," "]
[null,null,null,null,null,null,null,null,false,1450," "," "]
[null,null,null,null,null,null,null,null,false,1451," "," "]
[null,null,null,null,null,null,null,null,false,1452," "," "]
[null,null,null,null,null,null,null,null,false,1453," "," "]
[null,null,null,null,null,null,null,null,false,1454," "," "]
[null,null,null,null,null,null,null,null,false,1455," "," "]
[null,null,null,null,null,null,null,null,false,1456," "," "]
[null,null,null,null,null,null,null,null,false,1457," "," "]
[null,null,null,null,null,null,null,null,false,1458," "," "]
[null,null,null,null,null,null,null,null,false,1459," "," "]
[null,null,null,null,null,null,null,null,false,1460," "," "]
[null,null,null,null,null,null,null,null,false,1461," "," "]
[null,null,null,null,null,null,null,null,false,1462," "," "]
[null,null,null,null,null,null,null,null,false,1463," "," "]
[null,null,null,null,null,null,null,null,false,1464," "," "]
[null,null,null,null,null,null,null,null,false,1465," "," "]
[null,null,null,null,null,null,null,null,false,1466," "," "]
[null,null,null,null,null,null,null,null,false,1467," "," "]
[null,null,null,null,null,null,null,null,false,1468," "," "]
[null,null,null,null,null,null,null,null,false,1469," "," "]
[null,null,null,null,null,null,null,null,false,1470," "," "]
[null,null,null,null,null,null,null,null,false,1471," "," "]
[null,null,null,null,null,null,null,null,false,1472," "," "]
[null,null,null,null,null,null,null,null,{"$f":"IF(H1475>0,RANDBETWEEN(1,$C$3))","v":false},1473,{"$f":"IF(J1475<=_xlnm.Criteria,G1475,\" \")","v":" "},{"$f":"IF(J1475<=_xlnm.Criteria,H1475,\" \")","v":" "}]
[null,null,null,null,null,null,null,null,false,1474," "," "]
[null,null,null,null,null,null,null,null,false,1475," "," "]
[null,null,null,null,null,null,null,null,false,1476," "," "]
[null,null,null,null,null,null,null,null,false,1477," "," "]
[null,null,null,null,null,null,null,null,false,1478," "," "]
[null,null,null,null,null,null,null,null,false,1479," "," "]
[null,null,null,null,null,null,null,null,false,1480," "," "]
[null,null,null,null,null,null,null,null,false,1481," "," "]
[null,null,null,null,null,null,null,null,false,1482," "," "]
[null,null,null,null,null,null,null,null,false,1483," "," "]
[null,null,null,null,null,null,null,null,false,1484," "," "]
[null,null,null,null,null,null,null,null,false,1485," "," "]
[null,null,null,null,null,null,null,null,false,1486," "," "]
[null,null,null,null,null,null,null,null,false,1487," "," "]
[null,null,null,null,null,null,null,null,false,1488," "," "]
[null,null,null,null,null,null,null,null,false,1489," "," "]
[null,null,null,null,null,null,null,null,false,1490," "," "]
[null,null,null,null,null,null,null,null,false,1491," "," "]
[null,null,null,null,null,null,null,null,false,1492," "," "]
[null,null,null,null,null,null,null,null,false,1493," "," "]
[null,null,null,null,null,null,null,null,false,1494," "," "]
[null,null,null,null,null,null,null,null,false,1495," "," "]
[null,null,null,null,null,null,null,null,false,1496," "," "]
[null,null,null,null,null,null,null,null,false,1497," "," "]
[null,null,null,null,null,null,null,null,false,1498," "," "]
[null,null,null,null,null,null,null,null,false,1499," "," "]
[null,null,null,null,null,null,null,null,false,1500," "," "]
[null,null,null,null,null,null,null,null,false,1501," "," "]
[null,null,null,null,null,null,null,null,false,1502," "," "]
[null,null,null,null,null,null,null,null,false,1503," "," "]
[null,null,null,null,null,null,null,null,false,1504," "," "]
[null,null,null,null,null,null,null,null,false,1505," "," "]
[null,null,null,null,null,null,null,null,false,1506," "," "]
[null,null,null,null,null,null,null,null,false,1507," "," "]
[null,null,null,null,null,null,null,null,false,1508," "," "]
[null,null,null,null,null,null,null,null,false,1509," "," "]
[null,null,null,null,null,null,null,null,false,1510," "," "]
[null,null,null,null,null,null,null,null,false,1511," "," "]
[null,null,null,null,null,null,null,null,false,1512," "," "]
[null,null,null,null,null,null,null,null,false,1513," "," "]
[null,null,null,null,null,null,null,null,false,1514," "," "]
[null,null,null,null,null,null,null,null,false,1515," "," "]
[null,null,null,null,null,null,null,null,false,1516," "," "]
[null,null,null,null,null,null,null,null,false,1517," "," "]
[null,null,null,null,null,null,null,null,false,1518," "," "]
[null,null,null,null,null,null,null,null,false,1519," "," "]
[null,null,null,null,null,null,null,null,false,1520," "," "]
[null,null,null,null,null,null,null,null,false,1521," "," "]
[null,null,null,null,null,null,null,null,false,1522," "," "]
[null,null,null,null,null,null,null,null,false,1523," "," "]
[null,null,null,null,null,null,null,null,false,1524," "," "]
[null,null,null,null,null,null,null,null,false,1525," "," "]
[null,null,null,null,null,null,null,null,false,1526," "," "]
[null,null,null,null,null,null,null,null,false,1527," "," "]
[null,null,null,null,null,null,null,null,false,1528," "," "]
[null,null,null,null,null,null,null,null,false,1529," "," "]
[null,null,null,null,null,null,null,null,false,1530," "," "]
[null,null,null,null,null,null,null,null,false,1531," "," "]
[null,null,null,null,null,null,null,null,false,1532," "," "]
[null,null,null,null,null,null,null,null,false,1533," "," "]
[null,null,null,null,null,null,null,null,false,1534," "," "]
[null,null,null,null,null,null,null,null,false,1535," "," "]
[null,null,null,null,null,null,null,null,false,1536," "," "]
[null,null,null,null,null,null,null,null,{"$f":"IF(H1539>0,RANDBETWEEN(1,$C$3))","v":false},1537,{"$f":"IF(J1539<=_xlnm.Criteria,G1539,\" \")","v":" "},{"$f":"IF(J1539<=_xlnm.Criteria,H1539,\" \")","v":" "}]
[null,null,null,null,null,null,null,null,false,1538," "," "]
[null,null,null,null,null,null,null,null,false,1539," "," "]
[null,null,null,null,null,null,null,null,false,1540," "," "]
[null,null,null,null,null,null,null,null,false,1541," "," "]
[null,null,null,null,null,null,null,null,false,1542," "," "]
[null,null,null,null,null,null,null,null,false,1543," "," "]
[null,null,null,null,null,null,null,null,false,1544," "," "]
[null,null,null,null,null,null,null,null,false,1545," "," "]
[null,null,null,null,null,null,null,null,false,1546," "," "]
[null,null,null,null,null,null,null,null,false,1547," "," "]
[null,null,null,null,null,null,null,null,false,1548," "," "]
[null,null,null,null,null,null,null,null,false,1549," "," "]
[null,null,null,null,null,null,null,null,false,1550," "," "]
[null,null,null,null,null,null,null,null,false,1551," "," "]
[null,null,null,null,null,null,null,null,false,1552," "," "]
[null,null,null,null,null,null,null,null,false,1553," "," "]
[null,null,null,null,null,null,null,null,false,1554," "," "]
[null,null,null,null,null,null,null,null,false,1555," "," "]
[null,null,null,null,null,null,null,null,false,1556," "," "]
[null,null,null,null,null,null,null,null,false,1557," "," "]
[null,null,null,null,null,null,null,null,false,1558," "," "]
[null,null,null,null,null,null,null,null,false,1559," "," "]
[null,null,null,null,null,null,null,null,false,1560," "," "]
[null,null,null,null,null,null,null,null,false,1561," "," "]
[null,null,null,null,null,null,null,null,false,1562," "," "]
[null,null,null,null,null,null,null,null,false,1563," "," "]
[null,null,null,null,null,null,null,null,false,1564," "," "]
[null,null,null,null,null,null,null,null,false,1565," "," "]
[null,null,null,null,null,null,null,null,false,1566," "," "]
[null,null,null,null,null,null,null,null,false,1567," "," "]
[null,null,null,null,null,null,null,null,false,1568," "," "]
[null,null,null,null,null,null,null,null,false,1569," "," "]
[null,null,null,null,null,null,null,null,false,1570," "," "]
[null,null,null,null,null,null,null,null,false,1571," "," "]
[null,null,null,null,null,null,null,null,false,1572," "," "]
[null,null,null,null,null,null,null,null,false,1573," "," "]
[null,null,null,null,null,null,null,null,false,1574," "," "]
[null,null,null,null,null,null,null,null,false,1575," "," "]
[null,null,null,null,null,null,null,null,false,1576," "," "]
[null,null,null,null,null,null,null,null,false,1577," "," "]
[null,null,null,null,null,null,null,null,false,1578," "," "]
[null,null,null,null,null,null,null,null,false,1579," "," "]
[null,null,null,null,null,null,null,null,false,1580," "," "]
[null,null,null,null,null,null,null,null,false,1581," "," "]
[null,null,null,null,null,null,null,null,false,1582," "," "]
[null,null,null,null,null,null,null,null,false,1583," "," "]
[null,null,null,null,null,null,null,null,false,1584," "," "]
[null,null,null,null,null,null,null,null,false,1585," "," "]
[null,null,null,null,null,null,null,null,false,1586," "," "]
[null,null,null,null,null,null,null,null,false,1587," "," "]
[null,null,null,null,null,null,null,null,false,1588," "," "]
[null,null,null,null,null,null,null,null,false,1589," "," "]
[null,null,null,null,null,null,null,null,false,1590," "," "]
[null,null,null,null,null,null,null,null,false,1591," "," "]
[null,null,null,null,null,null,null,null,false,1592," "," "]
[null,null,null,null,null,null,null,null,false,1593," "," "]
[null,null,null,null,null,null,null,null,false,1594," "," "]
[null,null,null,null,null,null,null,null,false,1595," "," "]
[null,null,null,null,null,null,null,null,false,1596," "," "]
[null,null,null,null,null,null,null,null,false,1597," "," "]
[null,null,null,null,null,null,null,null,false,1598," "," "]
[null,null,null,null,null,null,null,null,false,1599," "," "]
[null,null,null,null,null,null,null,null,false,1600," "," "]
[null,null,null,null,null,null,null,null,{"$f":"IF(H1603>0,RANDBETWEEN(1,$C$3))","v":false},1601,{"$f":"IF(J1603<=_xlnm.Criteria,G1603,\" \")","v":" "},{"$f":"IF(J1603<=_xlnm.Criteria,H1603,\" \")","v":" "}]
[null,null,null,null,null,null,null,null,false,1602," "," "]
[null,null,null,null,null,null,null,null,false,1603," "," "]
[null,null,null,null,null,null,null,null,false,1604," "," "]
[null,null,null,null,null,null,null,null,false,1605," "," "]
[null,null,null,null,null,null,null,null,false,1606," "," "]
[null,null,null,null,null,null,null,null,false,1607," "," "]
[null,null,null,null,null,null,null,null,false,1608," "," "]
[null,null,null,null,null,null,null,null,false,1609," "," "]
[null,null,null,null,null,null,null,null,false,1610," "," "]
[null,null,null,null,null,null,null,null,false,1611," "," "]
[null,null,null,null,null,null,null,null,false,1612," "," "]
[null,null,null,null,null,null,null,null,false,1613," "," "]
[null,null,null,null,null,null,null,null,false,1614," "," "]
[null,null,null,null,null,null,null,null,false,1615," "," "]
[null,null,null,null,null,null,null,null,false,1616," "," "]
[null,null,null,null,null,null,null,null,false,1617," "," "]
[null,null,null,null,null,null,null,null,false,1618," "," "]
[null,null,null,null,null,null,null,null,false,1619," "," "]
[null,null,null,null,null,null,null,null,false,1620," "," "]
[null,null,null,null,null,null,null,null,false,1621," "," "]
[null,null,null,null,null,null,null,null,false,1622," "," "]
[null,null,null,null,null,null,null,null,false,1623," "," "]
[null,null,null,null,null,null,null,null,false,1624," "," "]
[null,null,null,null,null,null,null,null,false,1625," "," "]
[null,null,null,null,null,null,null,null,false,1626," "," "]
[null,null,null,null,null,null,null,null,false,1627," "," "]
[null,null,null,null,null,null,null,null,false,1628," "," "]
[null,null,null,null,null,null,null,null,false,1629," "," "]
[null,null,null,null,null,null,null,null,false,1630," "," "]
[null,null,null,null,null,null,null,null,false,1631," "," "]
[null,null,null,null,null,null,null,null,false,1632," "," "]
[null,null,null,null,null,null,null,null,false,1633," "," "]
[null,null,null,null,null,null,null,null,false,1634," "," "]
[null,null,null,null,null,null,null,null,false,1635," "," "]
[null,null,null,null,null,null,null,null,false,1636," "," "]
[null,null,null,null,null,null,null,null,false,1637," "," "]
[null,null,null,null,null,null,null,null,false,1638," "," "]
[null,null,null,null,null,null,null,null,false,1639," "," "]
[null,null,null,null,null,null,null,null,false,1640," "," "]
[null,null,null,null,null,null,null,null,false,1641," "," "]
[null,null,null,null,null,null,null,null,false,1642," "," "]
[null,null,null,null,null,null,null,null,false,1643," "," "]
[null,null,null,null,null,null,null,null,false,1644," "," "]
[null,null,null,null,null,null,null,null,false,1645," "," "]
[null,null,null,null,null,null,null,null,false,1646," "," "]
[null,null,null,null,null,null,null,null,false,1647," "," "]
[null,null,null,null,null,null,null,null,false,1648," "," "]
[null,null,null,null,null,null,null,null,false,1649," "," "]
[null,null,null,null,null,null,null,null,false,1650," "," "]
[null,null,null,null,null,null,null,null,false,1651," "," "]
[null,null,null,null,null,null,null,null,false,1652," "," "]
[null,null,null,null,null,null,null,null,false,1653," "," "]
[null,null,null,null,null,null,null,null,false,1654," "," "]
[null,null,null,null,null,null,null,null,false,1655," "," "]
[null,null,null,null,null,null,null,null,false,1656," "," "]
[null,null,null,null,null,null,null,null,false,1657," "," "]
[null,null,null,null,null,null,null,null,false,1658," "," "]
[null,null,null,null,null,null,null,null,false,1659," "," "]
[null,null,null,null,null,null,null,null,false,1660," "," "]
[null,null,null,null,null,null,null,null,false,1661," "," "]
[null,null,null,null,null,null,null,null,false,1662," "," "]
[null,null,null,null,null,null,null,null,false,1663," "," "]
[null,null,null,null,null,null,null,null,false,1664," "," "]
[null,null,null,null,null,null,null,null,{"$f":"IF(H1667>0,RANDBETWEEN(1,$C$3))","v":false},1665,{"$f":"IF(J1667<=_xlnm.Criteria,G1667,\" \")","v":" "},{"$f":"IF(J1667<=_xlnm.Criteria,H1667,\" \")","v":" "}]
[null,null,null,null,null,null,null,null,false,1666," "," "]
[null,null,null,null,null,null,null,null,false,1667," "," "]
[null,null,null,null,null,null,null,null,false,1668," "," "]
[null,null,null,null,null,null,null,null,false,1669," "," "]
[null,null,null,null,null,null,null,null,false,1670," "," "]
[null,null,null,null,null,null,null,null,false,1671," "," "]
[null,null,null,null,null,null,null,null,false,1672," "," "]
[null,null,null,null,null,null,null,null,false,1673," "," "]
[null,null,null,null,null,null,null,null,false,1674," "," "]
[null,null,null,null,null,null,null,null,false,1675," "," "]
[null,null,null,null,null,null,null,null,false,1676," "," "]
[null,null,null,null,null,null,null,null,false,1677," "," "]
[null,null,null,null,null,null,null,null,false,1678," "," "]
[null,null,null,null,null,null,null,null,false,1679," "," "]
[null,null,null,null,null,null,null,null,false,1680," "," "]
[null,null,null,null,null,null,null,null,false,1681," "," "]
[null,null,null,null,null,null,null,null,false,1682," "," "]
[null,null,null,null,null,null,null,null,false,1683," "," "]
[null,null,null,null,null,null,null,null,false,1684," "," "]
[null,null,null,null,null,null,null,null,false,1685," "," "]
[null,null,null,null,null,null,null,null,false,1686," "," "]
[null,null,null,null,null,null,null,null,false,1687," "," "]
[null,null,null,null,null,null,null,null,false,1688," "," "]
[null,null,null,null,null,null,null,null,false,1689," "," "]
[null,null,null,null,null,null,null,null,false,1690," "," "]
[null,null,null,null,null,null,null,null,false,1691," "," "]
[null,null,null,null,null,null,null,null,false,1692," "," "]
[null,null,null,null,null,null,null,null,false,1693," "," "]
[null,null,null,null,null,null,null,null,false,1694," "," "]
[null,null,null,null,null,null,null,null,false,1695," "," "]
[null,null,null,null,null,null,null,null,false,1696," "," "]
[null,null,null,null,null,null,null,null,false,1697," "," "]
[null,null,null,null,null,null,null,null,false,1698," "," "]
[null,null,null,null,null,null,null,null,false,1699," "," "]
[null,null,null,null,null,null,null,null,false,1700," "," "]
[null,null,null,null,null,null,null,null,false,1701," "," "]
[null,null,null,null,null,null,null,null,false,1702," "," "]
[null,null,null,null,null,null,null,null,false,1703," "," "]
[null,null,null,null,null,null,null,null,false,1704," "," "]
[null,null,null,null,null,null,null,null,false,1705," "," "]
[null,null,null,null,null,null,null,null,false,1706," "," "]
[null,null,null,null,null,null,null,null,false,1707," "," "]
[null,null,null,null,null,null,null,null,false,1708," "," "]
[null,null,null,null,null,null,null,null,false,1709," "," "]
[null,null,null,null,null,null,null,null,false,1710," "," "]
[null,null,null,null,null,null,null,null,false,1711," "," "]
[null,null,null,null,null,null,null,null,false,1712," "," "]
[null,null,null,null,null,null,null,null,false,1713," "," "]
[null,null,null,null,null,null,null,null,false,1714," "," "]
[null,null,null,null,null,null,null,null,false,1715," "," "]
[null,null,null,null,null,null,null,null,false,1716," "," "]
[null,null,null,null,null,null,null,null,false,1717," "," "]
[null,null,null,null,null,null,null,null,false,1718," "," "]
[null,null,null,null,null,null,null,null,false,1719," "," "]
[null,null,null,null,null,null,null,null,false,1720," "," "]
[null,null,null,null,null,null,null,null,false,1721," "," "]
[null,null,null,null,null,null,null,null,false,1722," "," "]
[null,null,null,null,null,null,null,null,false,1723," "," "]
[null,null,null,null,null,null,null,null,false,1724," "," "]
[null,null,null,null,null,null,null,null,false,1725," "," "]
[null,null,null,null,null,null,null,null,false,1726," "," "]
[null,null,null,null,null,null,null,null,false,1727," "," "]
[null,null,null,null,null,null,null,null,false,1728," "," "]
[null,null,null,null,null,null,null,null,{"$f":"IF(H1731>0,RANDBETWEEN(1,$C$3))","v":false},1729,{"$f":"IF(J1731<=_xlnm.Criteria,G1731,\" \")","v":" "},{"$f":"IF(J1731<=_xlnm.Criteria,H1731,\" \")","v":" "}]
[null,null,null,null,null,null,null,null,false,1730," "," "]
[null,null,null,null,null,null,null,null,false,1731," "," "]
[null,null,null,null,null,null,null,null,false,1732," "," "]
[null,null,null,null,null,null,null,null,false,1733," "," "]
[null,null,null,null,null,null,null,null,false,1734," "," "]
[null,null,null,null,null,null,null,null,false,1735," "," "]
[null,null,null,null,null,null,null,null,false,1736," "," "]
[null,null,null,null,null,null,null,null,false,1737," "," "]
[null,null,null,null,null,null,null,null,false,1738," "," "]
[null,null,null,null,null,null,null,null,false,1739," "," "]
[null,null,null,null,null,null,null,null,false,1740," "," "]
[null,null,null,null,null,null,null,null,false,1741," "," "]
[null,null,null,null,null,null,null,null,false,1742," "," "]
[null,null,null,null,null,null,null,null,false,1743," "," "]
[null,null,null,null,null,null,null,null,false,1744," "," "]
[null,null,null,null,null,null,null,null,false,1745," "," "]
[null,null,null,null,null,null,null,null,false,1746," "," "]
[null,null,null,null,null,null,null,null,false,1747," "," "]
[null,null,null,null,null,null,null,null,false,1748," "," "]
[null,null,null,null,null,null,null,null,false,1749," "," "]
[null,null,null,null,null,null,null,null,false,1750," "," "]
[null,null,null,null,null,null,null,null,false,1751," "," "]
[null,null,null,null,null,null,null,null,false,1752," "," "]
[null,null,null,null,null,null,null,null,false,1753," "," "]
[null,null,null,null,null,null,null,null,false,1754," "," "]
[null,null,null,null,null,null,null,null,false,1755," "," "]
[null,null,null,null,null,null,null,null,false,1756," "," "]
[null,null,null,null,null,null,null,null,false,1757," "," "]
[null,null,null,null,null,null,null,null,false,1758," "," "]
[null,null,null,null,null,null,null,null,false,1759," "," "]
[null,null,null,null,null,null,null,null,false,1760," "," "]
[null,null,null,null,null,null,null,null,false,1761," "," "]
[null,null,null,null,null,null,null,null,false,1762," "," "]
[null,null,null,null,null,null,null,null,false,1763," "," "]
[null,null,null,null,null,null,null,null,false,1764," "," "]
[null,null,null,null,null,null,null,null,false,1765," "," "]
[null,null,null,null,null,null,null,null,false,1766," "," "]
[null,null,null,null,null,null,null,null,false,1767," "," "]
[null,null,null,null,null,null,null,null,false,1768," "," "]
[null,null,null,null,null,null,null,null,false,1769," "," "]
[null,null,null,null,null,null,null,null,false,1770," "," "]
[null,null,null,null,null,null,null,null,false,1771," "," "]
[null,null,null,null,null,null,null,null,false,1772," "," "]
[null,null,null,null,null,null,null,null,false,1773," "," "]
[null,null,null,null,null,null,null,null,false,1774," "," "]
[null,null,null,null,null,null,null,null,false,1775," "," "]
[null,null,null,null,null,null,null,null,false,1776," "," "]
[null,null,null,null,null,null,null,null,false,1777," "," "]
[null,null,null,null,null,null,null,null,false,1778," "," "]
[null,null,null,null,null,null,null,null,false,1779," "," "]
[null,null,null,null,null,null,null,null,false,1780," "," "]
[null,null,null,null,null,null,null,null,false,1781," "," "]
[null,null,null,null,null,null,null,null,false,1782," "," "]
[null,null,null,null,null,null,null,null,false,1783," "," "]
[null,null,null,null,null,null,null,null,false,1784," "," "]
[null,null,null,null,null,null,null,null,false,1785," "," "]
[null,null,null,null,null,null,null,null,false,1786," "," "]
[null,null,null,null,null,null,null,null,false,1787," "," "]
[null,null,null,null,null,null,null,null,false,1788," "," "]
[null,null,null,null,null,null,null,null,false,1789," "," "]
[null,null,null,null,null,null,null,null,false,1790," "," "]
[null,null,null,null,null,null,null,null,false,1791," "," "]
[null,null,null,null,null,null,null,null,false,1792," "," "]
[null,null,null,null,null,null,null,null,{"$f":"IF(H1795>0,RANDBETWEEN(1,$C$3))","v":false},1793,{"$f":"IF(J1795<=_xlnm.Criteria,G1795,\" \")","v":" "},{"$f":"IF(J1795<=_xlnm.Criteria,H1795,\" \")","v":" "}]
[null,null,null,null,null,null,null,null,false,1794," "," "]
[null,null,null,null,null,null,null,null,false,1795," "," "]
[null,null,null,null,null,null,null,null,false,1796," "," "]
[null,null,null,null,null,null,null,null,false,1797," "," "]
[null,null,null,null,null,null,null,null,false,1798," "," "]
[null,null,null,null,null,null,null,null,false,1799," "," "]
[null,null,null,null,null,null,null,null,false,1800," "," "]
[null,null,null,null,null,null,null,null,false,1801," "," "]
[null,null,null,null,null,null,null,null,false,1802," "," "]
[null,null,null,null,null,null,null,null,false,1803," "," "]
[null,null,null,null,null,null,null,null,false,1804," "," "]
[null,null,null,null,null,null,null,null,false,1805," "," "]
[null,null,null,null,null,null,null,null,false,1806," "," "]
[null,null,null,null,null,null,null,null,false,1807," "," "]
[null,null,null,null,null,null,null,null,false,1808," "," "]
[null,null,null,null,null,null,null,null,false,1809," "," "]
[null,null,null,null,null,null,null,null,false,1810," "," "]
[null,null,null,null,null,null,null,null,false,1811," "," "]
[null,null,null,null,null,null,null,null,false,1812," "," "]
[null,null,null,null,null,null,null,null,false,1813," "," "]
[null,null,null,null,null,null,null,null,false,1814," "," "]
[null,null,null,null,null,null,null,null,false,1815," "," "]
[null,null,null,null,null,null,null,null,false,1816," "," "]
[null,null,null,null,null,null,null,null,false,1817," "," "]
[null,null,null,null,null,null,null,null,false,1818," "," "]
[null,null,null,null,null,null,null,null,false,1819," "," "]
[null,null,null,null,null,null,null,null,false,1820," "," "]
[null,null,null,null,null,null,null,null,false,1821," "," "]
[null,null,null,null,null,null,null,null,false,1822," "," "]
[null,null,null,null,null,null,null,null,false,1823," "," "]
[null,null,null,null,null,null,null,null,false,1824," "," "]
[null,null,null,null,null,null,null,null,false,1825," "," "]
[null,null,null,null,null,null,null,null,false,1826," "," "]
[null,null,null,null,null,null,null,null,false,1827," "," "]
[null,null,null,null,null,null,null,null,false,1828," "," "]
[null,null,null,null,null,null,null,null,false,1829," "," "]
[null,null,null,null,null,null,null,null,false,1830," "," "]
[null,null,null,null,null,null,null,null,false,1831," "," "]
[null,null,null,null,null,null,null,null,false,1832," "," "]
[null,null,null,null,null,null,null,null,false,1833," "," "]
[null,null,null,null,null,null,null,null,false,1834," "," "]
[null,null,null,null,null,null,null,null,false,1835," "," "]
[null,null,null,null,null,null,null,null,false,1836," "," "]
[null,null,null,null,null,null,null,null,false,1837," "," "]
[null,null,null,null,null,null,null,null,false,1838," "," "]
[null,null,null,null,null,null,null,null,false,1839," "," "]
[null,null,null,null,null,null,null,null,false,1840," "," "]
[null,null,null,null,null,null,null,null,false,1841," "," "]
[null,null,null,null,null,null,null,null,false,1842," "," "]
[null,null,null,null,null,null,null,null,false,1843," "," "]
[null,null,null,null,null,null,null,null,false,1844," "," "]
[null,null,null,null,null,null,null,null,false,1845," "," "]
[null,null,null,null,null,null,null,null,false,1846," "," "]
[null,null,null,null,null,null,null,null,false,1847," "," "]
[null,null,null,null,null,null,null,null,false,1848," "," "]
[null,null,null,null,null,null,null,null,false,1849," "," "]
[null,null,null,null,null,null,null,null,false,1850," "," "]
[null,null,null,null,null,null,null,null,false,1851," "," "]
[null,null,null,null,null,null,null,null,false,1852," "," "]
[null,null,null,null,null,null,null,null,false,1853," "," "]
[null,null,null,null,null,null,null,null,false,1854," "," "]
[null,null,null,null,null,null,null,null,false,1855," "," "]
[null,null,null,null,null,null,null,null,false,1856," "," "]
[null,null,null,null,null,null,null,null,{"$f":"IF(H1859>0,RANDBETWEEN(1,$C$3))","v":false},1857,{"$f":"IF(J1859<=_xlnm.Criteria,G1859,\" \")","v":" "},{"$f":"IF(J1859<=_xlnm.Criteria,H1859,\" \")","v":" "}]
[null,null,null,null,null,null,null,null,false,1858," "," "]
[null,null,null,null,null,null,null,null,false,1859," "," "]
[null,null,null,null,null,null,null,null,false,1860," "," "]
[null,null,null,null,null,null,null,null,false,1861," "," "]
[null,null,null,null,null,null,null,null,false,1862," "," "]
[null,null,null,null,null,null,null,null,false,1863," "," "]
[null,null,null,null,null,null,null,null,false,1864," "," "]
[null,null,null,null,null,null,null,null,false,1865," "," "]
[null,null,null,null,null,null,null,null,false,1866," "," "]
[null,null,null,null,null,null,null,null,false,1867," "," "]
[null,null,null,null,null,null,null,null,false,1868," "," "]
[null,null,null,null,null,null,null,null,false,1869," "," "]
[null,null,null,null,null,null,null,null,false,1870," "," "]
[null,null,null,null,null,null,null,null,false,1871," "," "]
[null,null,null,null,null,null,null,null,false,1872," "," "]
[null,null,null,null,null,null,null,null,false,1873," "," "]
[null,null,null,null,null,null,null,null,false,1874," "," "]
[null,null,null,null,null,null,null,null,false,1875," "," "]
[null,null,null,null,null,null,null,null,false,1876," "," "]
[null,null,null,null,null,null,null,null,false,1877," "," "]
[null,null,null,null,null,null,null,null,false,1878," "," "]
[null,null,null,null,null,null,null,null,false,1879," "," "]
[null,null,null,null,null,null,null,null,false,1880," "," "]
[null,null,null,null,null,null,null,null,false,1881," "," "]
[null,null,null,null,null,null,null,null,false,1882," "," "]
[null,null,null,null,null,null,null,null,false,1883," "," "]
[null,null,null,null,null,null,null,null,false,1884," "," "]
[null,null,null,null,null,null,null,null,false,1885," "," "]
[null,null,null,null,null,null,null,null,false,1886," "," "]
[null,null,null,null,null,null,null,null,false,1887," "," "]
[null,null,null,null,null,null,null,null,false,1888," "," "]
[null,null,null,null,null,null,null,null,false,1889," "," "]
[null,null,null,null,null,null,null,null,false,1890," "," "]
[null,null,null,null,null,null,null,null,false,1891," "," "]
[null,null,null,null,null,null,null,null,false,1892," "," "]
[null,null,null,null,null,null,null,null,false,1893," "," "]
[null,null,null,null,null,null,null,null,false,1894," "," "]
[null,null,null,null,null,null,null,null,false,1895," "," "]
[null,null,null,null,null,null,null,null,false,1896," "," "]
[null,null,null,null,null,null,null,null,false,1897," "," "]
[null,null,null,null,null,null,null,null,false,1898," "," "]
[null,null,null,null,null,null,null,null,false,1899," "," "]
[null,null,null,null,null,null,null,null,false,1900," "," "]
[null,null,null,null,null,null,null,null,false,1901," "," "]
[null,null,null,null,null,null,null,null,false,1902," "," "]
[null,null,null,null,null,null,null,null,false,1903," "," "]
[null,null,null,null,null,null,null,null,false,1904," "," "]
[null,null,null,null,null,null,null,null,false,1905," "," "]
[null,null,null,null,null,null,null,null,false,1906," "," "]
[null,null,null,null,null,null,null,null,false,1907," "," "]
[null,null,null,null,null,null,null,null,false,1908," "," "]
[null,null,null,null,null,null,null,null,false,1909," "," "]
[null,null,null,null,null,null,null,null,false,1910," "," "]
[null,null,null,null,null,null,null,null,false,1911," "," "]
[null,null,null,null,null,null,null,null,false,1912," "," "]
[null,null,null,null,null,null,null,null,false,1913," "," "]
[null,null,null,null,null,null,null,null,false,1914," "," "]
[null,null,null,null,null,null,null,null,false,1915," "," "]
[null,null,null,null,null,null,null,null,false,1916," "," "]
[null,null,null,null,null,null,null,null,false,1917," "," "]
[null,null,null,null,null,null,null,null,false,1918," "," "]
[null,null,null,null,null,null,null,null,false,1919," "," "]
[null,null,null,null,null,null,null,null,false,1920," "," "]
[null,null,null,null,null,null,null,null,{"$f":"IF(H1923>0,RANDBETWEEN(1,$C$3))","v":false},1921,{"$f":"IF(J1923<=_xlnm.Criteria,G1923,\" \")","v":" "},{"$f":"IF(J1923<=_xlnm.Criteria,H1923,\" \")","v":" "}]
[null,null,null,null,null,null,null,null,false,1922," "," "]
[null,null,null,null,null,null,null,null,false,1923," "," "]
[null,null,null,null,null,null,null,null,false,1924," "," "]
[null,null,null,null,null,null,null,null,false,1925," "," "]
[null,null,null,null,null,null,null,null,false,1926," "," "]
[null,null,null,null,null,null,null,null,false,1927," "," "]
[null,null,null,null,null,null,null,null,false,1928," "," "]
[null,null,null,null,null,null,null,null,false,1929," "," "]
[null,null,null,null,null,null,null,null,false,1930," "," "]
[null,null,null,null,null,null,null,null,false,1931," "," "]
[null,null,null,null,null,null,null,null,false,1932," "," "]
[null,null,null,null,null,null,null,null,false,1933," "," "]
[null,null,null,null,null,null,null,null,false,1934," "," "]
[null,null,null,null,null,null,null,null,false,1935," "," "]
[null,null,null,null,null,null,null,null,false,1936," "," "]
[null,null,null,null,null,null,null,null,false,1937," "," "]
[null,null,null,null,null,null,null,null,false,1938," "," "]
[null,null,null,null,null,null,null,null,false,1939," "," "]
[null,null,null,null,null,null,null,null,false,1940," "," "]
[null,null,null,null,null,null,null,null,false,1941," "," "]
[null,null,null,null,null,null,null,null,false,1942," "," "]
[null,null,null,null,null,null,null,null,false,1943," "," "]
[null,null,null,null,null,null,null,null,false,1944," "," "]
[null,null,null,null,null,null,null,null,false,1945," "," "]
[null,null,null,null,null,null,null,null,false,1946," "," "]
[null,null,null,null,null,null,null,null,false,1947," "," "]
[null,null,null,null,null,null,null,null,false,1948," "," "]
[null,null,null,null,null,null,null,null,false,1949," "," "]
[null,null,null,null,null,null,null,null,false,1950," "," "]
[null,null,null,null,null,null,null,null,false,1951," "," "]
[null,null,null,null,null,null,null,null,false,1952," "," "]
[null,null,null,null,null,null,null,null,false,1953," "," "]
[null,null,null,null,null,null,null,null,false,1954," "," "]
[null,null,null,null,null,null,null,null,false,1955," "," "]
[null,null,null,null,null,null,null,null,false,1956," "," "]
[null,null,null,null,null,null,null,null,false,1957," "," "]
[null,null,null,null,null,null,null,null,false,1958," "," "]
[null,null,null,null,null,null,null,null,false,1959," "," "]
[null,null,null,null,null,null,null,null,false,1960," "," "]
[null,null,null,null,null,null,null,null,false,1961," "," "]
[null,null,null,null,null,null,null,null,false,1962," "," "]
[null,null,null,null,null,null,null,null,false,1963," "," "]
[null,null,null,null,null,null,null,null,false,1964," "," "]
[null,null,null,null,null,null,null,null,false,1965," "," "]
[null,null,null,null,null,null,null,null,false,1966," "," "]
[null,null,null,null,null,null,null,null,false,1967," "," "]
[null,null,null,null,null,null,null,null,false,1968," "," "]
[null,null,null,null,null,null,null,null,false,1969," "," "]
[null,null,null,null,null,null,null,null,false,1970," "," "]
[null,null,null,null,null,null,null,null,false,1971," "," "]
[null,null,null,null,null,null,null,null,false,1972," "," "]
[null,null,null,null,null,null,null,null,false,1973," "," "]
[null,null,null,null,null,null,null,null,false,1974," "," "]
[null,null,null,null,null,null,null,null,false,1975," "," "]
[null,null,null,null,null,null,null,null,false,1976," "," "]
[null,null,null,null,null,null,null,null,false,1977," "," "]
[null,null,null,null,null,null,null,null,false,1978," "," "]
[null,null,null,null,null,null,null,null,false,1979," "," "]
[null,null,null,null,null,null,null,null,false,1980," "," "]
[null,null,null,null,null,null,null,null,false,1981," "," "]
[null,null,null,null,null,null,null,null,false,1982," "," "]
[null,null,null,null,null,null,null,null,false,1983," "," "]
[null,null,null,null,null,null,null,null,false,1984," "," "]
[null,null,null,null,null,null,null,null,{"$f":"IF(H1987>0,RANDBETWEEN(1,$C$3))","v":false},1985,{"$f":"IF(J1987<=_xlnm.Criteria,G1987,\" \")","v":" "},{"$f":"IF(J1987<=_xlnm.Criteria,H1987,\" \")","v":" "}]
[null,null,null,null,null,null,null,null,false,1986," "," "]
[null,null,null,null,null,null,null,null,false,1987," "," "]
[null,null,null,null,null,null,null,null,false,1988," "," "]
[null,null,null,null,null,null,null,null,false,1989," "," "]
[null,null,null,null,null,null,null,null,false,1990," "," "]
[null,null,null,null,null,null,null,null,false,1991," "," "]
[null,null,null,null,null,null,null,null,false,1992," "," "]
[null,null,null,null,null,null,null,null,false,1993," "," "]
[null,null,null,null,null,null,null,null,false,1994," "," "]
[null,null,null,null,null,null,null,null,false,1995," "," "]
[null,null,null,null,null,null,null,null,false,1996," "," "]
[null,null,null,null,null,null,null,null,false,1997," "," "]
[null,null,null,null,null,null,null,null,false,1998," "," "]
[null,null,null,null,null,null,null,null,false,1999," "," "]
[null,null,null,null,null,null,null,null,false,2004," "," "]
[null,null,null,null,null,null,null,null,false,2009," "," "]
[null,null,null,null,null,null,null,null,false,2010," "," "]
[null,null,null,null,null,null,null,null,false,2016," "," "]
[null,null,null,null,null,null,null,null,false,2019," "," "]
[null,null,null,null,null,null,null,null,false,2024," "," "]
[null,null,null,null,null,null,null,null,false,2025," "," "]
[null,null,null,null,null,null,null,null,false,2030," "," "]
[null,null,null,null,null,null,null,null,false,2034," "," "]
[null,null,null,null,null,null,null,null,false,2039," "," "]
[null,null,null,null,null,null,null,null,false,2040," "," "]
[null,null,null,null,null,null,null,null,false,2046," "," "]
[null,null,null,null,null,null,null,null,{"$f":"IF(H2051>0,RANDBETWEEN(1,$C$3))","v":false},2049,{"$f":"IF(J2051<=_xlnm.Criteria,G2051,\" \")","v":" "},{"$f":"IF(J2051<=_xlnm.Criteria,H2051,\" \")","v":" "}]
[null,null,null,null,null,null,null,null,false,2054," "," "]
[null,null,null,null,null,null,null,null,false,2055," "," "]
[null,null,null,null,null,null,null,null,false,2060," "," "]
[null,null,null,null,null,null,null,null,false,2064," "," "]
[null,null,null,null,null,null,null,null,false,2069," "," "]
[null,null,null,null,null,null,null,null,false,2070," "," "]
[null,null,null,null,null,null,null,null,false,2076," "," "]
[null,null,null,null,null,null,null,null,false,2079," "," "]
[null,null,null,null,null,null,null,null,false,2084," "," "]
[null,null,null,null,null,null,null,null,false,2085," "," "]
[null,null,null,null,null,null,null,null,false,2090," "," "]
[null,null,null,null,null,null,null,null,false,2094," "," "]
[null,null,null,null,null,null,null,null,false,2099," "," "]
[null,null,null,null,null,null,null,null,false,2100," "," "]
[null,null,null,null,null,null,null,null,false,2106," "," "]
[null,null,null,null,null,null,null,null,false,2109," "," "]
[null,null,null,null,null,null,null,null,false,2114," "," "]
[null,null,null,null,null,null,null,null,false,2115," "," "]
[null,null,null,null,null,null,null,null,false,2120," "," "]
[null,null,null,null,null,null,null,null,false,2124," "," "]
[null,null,null,null,null,null,null,null,false,2129," "," "]
[null,null,null,null,null,null,null,null,false,2130," "," "]
[null,null,null,null,null,null,null,null,false,2136," "," "]
[null,null,null,null,null,null,null,null,false,2139," "," "]
[null,null,null,null,null,null,null,null,false,2144," "," "]
[null,null,null,null,null,null,null,null,false,2145," "," "]
[null,null,null,null,null,null,null,null,false,2150," "," "]
[null,null,null,null,null,null,null,null,false,2154," "," "]
[null,null,null,null,null,null,null,null,false,2159," "," "]
[null,null,null,null,null,null,null,null,false,2160," "," "]
[null,null,null,null,null,null,null,null,false,2166," "," "]
[null,null,null,null,null,null,null,null,false,2169," "," "]
[null,null,null,null,null,null,null,null,false,2174," "," "]
[null,null,null,null,null,null,null,null,false,2175," "," "]
[null,null,null,null,null,null,null,null,false,2180," "," "]
[null,null,null,null,null,null,null,null,false,2184," "," "]
[null,null,null,null,null,null,null,null,false,2189," "," "]
[null,null,null,null,null,null,null,null,false,2190," "," "]
[null,null,null,null,null,null,null,null,false,2196," "," "]
[null,null,null,null,null,null,null,null,false,2199," "," "]
[null,null,null,null,null,null,null,null,false,2204," "," "]
[null,null,null,null,null,null,null,null,false,2205," "," "]
[null,null,null,null,null,null,null,null,false,2210," "," "]
[null,null,null,null,null,null,null,null,false,2214," "," "]
[null,null,null,null,null,null,null,null,false,2219," "," "]
[null,null,null,null,null,null,null,null,false,2220," "," "]
[null,null,null,null,null,null,null,null,false,2226," "," "]
[null,null,null,null,null,null,null,null,false,2229," "," "]
[null,null,null,null,null,null,null,null,false,2234," "," "]
[null,null,null,null,null,null,null,null,false,2235," "," "]
[null,null,null,null,null,null,null,null,false,2240," "," "]
[null,null,null,null,null,null,null,null,false,2244," "," "]
[null,null,null,null,null,null,null,null,false,2249," "," "]
[null,null,null,null,null,null,null,null,false,2250," "," "]
[null,null,null,null,null,null,null,null,false,2256," "," "]
[null,null,null,null,null,null,null,null,false,2259," "," "]
[null,null,null,null,null,null,null,null,false,2264," "," "]
[null,null,null,null,null,null,null,null,false,2265," "," "]
[null,null,null,null,null,null,null,null,false,2270," "," "]
[null,null,null,null,null,null,null,null,false,2274," "," "]
[null,null,null,null,null,null,null,null,false,2279," "," "]
[null,null,null,null,null,null,null,null,false,2280," "," "]
[null,null,null,null,null,null,null,null,false,2284," "," "]
[null,null,null,null,null,null,null,null,false,2289," "," "]
[null,null,null,null,null,null,null,null,false,2294," "," "]
[null,null,null,null,null,null,null,null,false,2295," "," "]
[null,null,null,null,null,null,null,null,false,2300," "," "]
[null,null,null,null,null,null,null,null,false,2304," "," "]
[null,null,null,null,null,null,null,null,false,2309," "," "]
[null,null,null,null,null,null,null,null,false,2310," "," "]
[null,null,null,null,null,null,null,null,false,2314," "," "]
[null,null,null,null,null,null,null,null,false,2319," "," "]
[null,null,null,null,null,null,null,null,false,2324," "," "]
[null,null,null,null,null,null,null,null,false,2325," "," "]
[null,null,null,null,null,null,null,null,false,2330," "," "]
[null,null,null,null,null,null,null,null,false,2334," "," "]
[null,null,null,null,null,null,null,null,false,2339," "," "]
[null,null,null,null,null,null,null,null,false,2340," "," "]
[null,null,null,null,null,null,null,null,false,2344," "," "]
[null,null,null,null,null,null,null,null,false,2349," "," "]
[null,null,null,null,null,null,null,null,false,2354," "," "]
[null,null,null,null,null,null,null,null,false,2355," "," "]
[null,null,null,null,null,null,null,null,false,2360," "," "]
[null,null,null,null,null,null,null,null,false,2364," "," "]
[null,null,null,null,null,null,null,null,{"$f":"IF(H2371>0,RANDBETWEEN(1,$C$3))","v":false},2369,{"$f":"IF(J2371<=_xlnm.Criteria,G2371,\" \")","v":" "},{"$f":"IF(J2371<=_xlnm.Criteria,H2371,\" \")","v":" "}]
[null,null,null,null,null,null,null,null,false,2370," "," "]
[null,null,null,null,null,null,null,null,false,2374," "," "]
[null,null,null,null,null,null,null,null,false,2379," "," "]
[null,null,null,null,null,null,null,null,false,2384," "," "]
[null,null,null,null,null,null,null,null,false,2385," "," "]
[null,null,null,null,null,null,null,null,false,2390," "," "]
[null,null,null,null,null,null,null,null,false,2394," "," "]
[null,null,null,null,null,null,null,null,false,2399," "," "]
[null,null,null,null,null,null,null,null,false,2400," "," "]
[null,null,null,null,null,null,null,null,false,2404," "," "]
[null,null,null,null,null,null,null,null,false,2409," "," "]
[null,null,null,null,null,null,null,null,false,2414," "," "]
[null,null,null,null,null,null,null,null,false,2415," "," "]
[null,null,null,null,null,null,null,null,false,2420," "," "]
[null,null,null,null,null,null,null,null,false,2424," "," "]
[null,null,null,null,null,null,null,null,false,2429," "," "]
[null,null,null,null,null,null,null,null,false,2430," "," "]
[null,null,null,null,null,null,null,null,false,2434," "," "]
[null,null,null,null,null,null,null,null,false,2439," "," "]
[null,null,null,null,null,null,null,null,false,2444," "," "]
[null,null,null,null,null,null,null,null,false,2445," "," "]
[null,null,null,null,null,null,null,null,false,2450," "," "]
[null,null,null,null,null,null,null,null,false,2454," "," "]
[null,null,null,null,null,null,null,null,false,2459," "," "]
[null,null,null,null,null,null,null,null,false,2460," "," "]
[null,null,null,null,null,null,null,null,false,2464," "," "]
[null,null,null,null,null,null,null,null,false,2469," "," "]
[null,null,null,null,null,null,null,null,false,2474," "," "]
[null,null,null,null,null,null,null,null,false,2475," "," "]
[null,null,null,null,null,null,null,null,false,2480," "," "]
[null,null,null,null,null,null,null,null,false,2484," "," "]
[null,null,null,null,null,null,null,null,false,2489," "," "]
[null,null,null,null,null,null,null,null,false,2490," "," "]
[null,null,null,null,null,null,null,null,false,2494," "," "]
[null,null,null,null,null,null,null,null,false,2499," "," "]
[null,null,null,null,null,null,null,null,false,2504," "," "]
[null,null,null,null,null,null,null,null,false,2505," "," "]
[null,null,null,null,null,null,null,null,false,2510," "," "]
[null,null,null,null,null,null,null,null,false,2514," "," "]
[null,null,null,null,null,null,null,null,false,2519," "," "]
[null,null,null,null,null,null,null,null,false,2520," "," "]
[null,null,null,null,null,null,null,null,false,2524," "," "]
[null,null,null,null,null,null,null,null,false,2529," "," "]
[null,null,null,null,null,null,null,null,false,2534," "," "]
[null,null,null,null,null,null,null,null,false,2535," "," "]
[null,null,null,null,null,null,null,null,false,2541," "," "]
[null,null,null,null,null,null,null,null,false,2544," "," "]
[null,null,null,null,null,null,null,null,false,2549," "," "]
[null,null,null,null,null,null,null,null,false,2550," "," "]
[null,null,null,null,null,null,null,null,false,2554," "," "]
[null,null,null,null,null,null,null,null,false,2559," "," "]
[null,null,null,null,null,null,null,null,false,2564," "," "]
[null,null,null,null,null,null,null,null,false,2565," "," "]
[null,null,null,null,null,null,null,null,false,2571," "," "]
[null,null,null,null,null,null,null,null,false,2574," "," "]
[null,null,null,null,null,null,null,null,false,2579," "," "]
[null,null,null,null,null,null,null,null,false,2580," "," "]
[null,null,null,null,null,null,null,null,false,2584," "," "]
[null,null,null,null,null,null,null,null,false,2589," "," "]
[null,null,null,null,null,null,null,null,false,2594," "," "]
[null,null,null,null,null,null,null,null,false,2595," "," "]
[null,null,null,null,null,null,null,null,false,2601," "," "]
[null,null,null,null,null,null,null,null,false,2604," "," "]
[null,null,null,null,null,null,null,null,false,2609," "," "]
[null,null,null,null,null,null,null,null,false,2610," "," "]
[null,null,null,null,null,null,null,null,false,2614," "," "]
[null,null,null,null,null,null,null,null,false,2619," "," "]
[null,null,null,null,null,null,null,null,false,2624," "," "]
[null,null,null,null,null,null,null,null,{"$f":"IF(H2627>0,RANDBETWEEN(1,$C$3))","v":false},2625,{"$f":"IF(J2627<=_xlnm.Criteria,G2627,\" \")","v":" "},{"$f":"IF(J2627<=_xlnm.Criteria,H2627,\" \")","v":" "}]
[null,null,null,null,null,null,null,null,false,2630," "," "]
[null,null,null,null,null,null,null,null,false,2635," "," "]
[null,null,null,null,null,null,null,null,false,2639," "," "]
[null,null,null,null,null,null,null,null,false,2640," "," "]
[null,null,null,null,null,null,null,null,false,2645," "," "]
[null,null,null,null,null,null,null,null,false,2649," "," "]
[null,null,null,null,null,null,null,null,false,2654," "," "]
[null,null,null,null,null,null,null,null,false,2655," "," "]
[null,null,null,null,null,null,null,null,false,2660," "," "]
[null,null,null,null,null,null,null,null,false,2665," "," "]
[null,null,null,null,null,null,null,null,false,2669," "," "]
[null,null,null,null,null,null,null,null,false,2670," "," "]
[null,null,null,null,null,null,null,null,false,2675," "," "]
[null,null,null,null,null,null,null,null,false,2679," "," "]
[null,null,null,null,null,null,null,null,false,2684," "," "]
[null,null,null,null,null,null,null,null,false,2685," "," "]
[null,null,null,null,null,null,null,null,false,2690," "," "]
[null,null,null,null,null,null,null,null,false,2695," "," "]
[null,null,null,null,null,null,null,null,false,2699," "," "]
[null,null,null,null,null,null,null,null,false,2700," "," "]
[null,null,null,null,null,null,null,null,false,2705," "," "]
[null,null,null,null,null,null,null,null,false,2709," "," "]
[null,null,null,null,null,null,null,null,false,2714," "," "]
[null,null,null,null,null,null,null,null,false,2715," "," "]
[null,null,null,null,null,null,null,null,false,2720," "," "]
[null,null,null,null,null,null,null,null,false,2725," "," "]
[null,null,null,null,null,null,null,null,false,2729," "," "]
[null,null,null,null,null,null,null,null,false,2730," "," "]
[null,null,null,null,null,null,null,null,false,2735," "," "]
[null,null,null,null,null,null,null,null,false,2739," "," "]
[null,null,null,null,null,null,null,null,false,2744," "," "]
[null,null,null,null,null,null,null,null,false,2745," "," "]
[null,null,null,null,null,null,null,null,false,2750," "," "]
[null,null,null,null,null,null,null,null,false,2755," "," "]
[null,null,null,null,null,null,null,null,false,2759," "," "]
[null,null,null,null,null,null,null,null,false,2760," "," "]
[null,null,null,null,null,null,null,null,false,2765," "," "]
[null,null,null,null,null,null,null,null,false,2769," "," "]
[null,null,null,null,null,null,null,null,false,2774," "," "]
[null,null,null,null,null,null,null,null,false,2775," "," "]
[null,null,null,null,null,null,null,null,false,2780," "," "]
[null,null,null,null,null,null,null,null,false,2785," "," "]
[null,null,null,null,null,null,null,null,false,2789," "," "]
[null,null,null,null,null,null,null,null,false,2790," "," "]
[null,null,null,null,null,null,null,null,false,2795," "," "]
[null,null,null,null,null,null,null,null,false,2799," "," "]
[null,null,null,null,null,null,null,null,false,2804," "," "]
[null,null,null,null,null,null,null,null,false,2805," "," "]
[null,null,null,null,null,null,null,null,false,2810," "," "]
[null,null,null,null,null,null,null,null,false,2815," "," "]
[null,null,null,null,null,null,null,null,false,2819," "," "]
[null,null,null,null,null,null,null,null,false,2820," "," "]
[null,null,null,null,null,null,null,null,false,2825," "," "]
[null,null,null,null,null,null,null,null,false,2829," "," "]
[null,null,null,null,null,null,null,null,false,2834," "," "]
[null,null,null,null,null,null,null,null,false,2835," "," "]
[null,null,null,null,null,null,null,null,false,2840," "," "]
[null,null,null,null,null,null,null,null,false,2845," "," "]
[null,null,null,null,null,null,null,null,false,2849," "," "]
[null,null,null,null,null,null,null,null,false,2850," "," "]
[null,null,null,null,null,null,null,null,false,2855," "," "]
[null,null,null,null,null,null,null,null,false,2859," "," "]
[null,null,null,null,null,null,null,null,false,2864," "," "]
[null,null,null,null,null,null,null,null,false,2865," "," "]
[null,null,null,null,null,null,null,null,false,2870," "," "]
[null,null,null,null,null,null,null,null,false,2875," "," "]
[null,null,null,null,null,null,null,null,false,2879," "," "]
[null,null,null,null,null,null,null,null,false,2880," "," "]
[null,null,null,null,null,null,null,null,false,2885," "," "]
[null,null,null,null,null,null,null,null,false,2889," "," "]
[null,null,null,null,null,null,null,null,false,2894," "," "]
[null,null,null,null,null,null,null,null,false,2895," "," "]
[null,null,null,null,null,null,null,null,false,2900," "," "]
[null,null,null,null,null,null,null,null,false,2903," "," "]
[null,null,null,null,null,null,null,null,false,2909," "," "]
[null,null,null,null,null,null,null,null,false,2910," "," "]
[null,null,null,null,null,null,null,null,false,2915," "," "]
[null,null,null,null,null,null,null,null,false,2919," "," "]
[null,null,null,null,null,null,null,null,false,2924," "," "]
[null,null,null,null,null,null,null,null,false,2925," "," "]
[null,null,null,null,null,null,null,null,false,2930," "," "]
[null,null,null,null,null,null,null,null,false,2933," "," "]
[null,null,null,null,null,null,null,null,false,2939," "," "]
[null,null,null,null,null,null,null,null,false,2940," "," "]
[null,null,null,null,null,null,null,null,{"$f":"IF(H2947>0,RANDBETWEEN(1,$C$3))","v":false},2945,{"$f":"IF(J2947<=_xlnm.Criteria,G2947,\" \")","v":" "},{"$f":"IF(J2947<=_xlnm.Criteria,H2947,\" \")","v":" "}]
[null,null,null,null,null,null,null,null,false,2949," "," "]
[null,null,null,null,null,null,null,null,false,2954," "," "]
[null,null,null,null,null,null,null,null,false,2955," "," "]
[null,null,null,null,null,null,null,null,false,2960," "," "]
[null,null,null,null,null,null,null,null,false,2963," "," "]
[null,null,null,null,null,null,null,null,false,2969," "," "]
[null,null,null,null,null,null,null,null,false,2970," "," "]
[null,null,null,null,null,null,null,null,false,2975," "," "]
[null,null,null,null,null,null,null,null,false,2979," "," "]
[null,null,null,null,null,null,null,null,false,2984," "," "]
[null,null,null,null,null,null,null,null,false,2985," "," "]
[null,null,null,null,null,null,null,null,false,2990," "," "]
[null,null,null,null,null,null,null,null,false,2993," "," "]
[null,null,null,null,null,null,null,null,false,2999," "," "]
[null,null,null,null,null,null,null,null,false,3000," "," "]
[null,null,null,null,null,null,null,null,false,3005," "," "]
[null,null,null,null,null,null,null,null,{"$f":"IF(H3011>0,RANDBETWEEN(1,$C$3))","v":false},3009,{"$f":"IF(J3011<=_xlnm.Criteria,G3011,\" \")","v":" "},{"$f":"IF(J3011<=_xlnm.Criteria,H3011,\" \")","v":" "}]
[null,null,null,null,null,null,null,null,false,3014," "," "]
[null,null,null,null,null,null,null,null,false,3015," "," "]
[null,null,null,null,null,null,null,null,false,3020," "," "]
[null,null,null,null,null,null,null,null,false,3023," "," "]
[null,null,null,null,null,null,null,null,false,3029," "," "]
[null,null,null,null,null,null,null,null,false,3030," "," "]
[null,null,null,null,null,null,null,null,false,3035," "," "]
[null,null,null,null,null,null,null,null,false,3039," "," "]
[null,null,null,null,null,null,null,null,false,3044," "," "]
[null,null,null,null,null,null,null,null,false,3045," "," "]
[null,null,null,null,null,null,null,null,false,3050," "," "]
[null,null,null,null,null,null,null,null,false,3053," "," "]
[null,null,null,null,null,null,null,null,false,3059," "," "]
[null,null,null,null,null,null,null,null,false,3060," "," "]
[null,null,null,null,null,null,null,null,false,3065," "," "]
[null,null,null,null,null,null,null,null,false,3069," "," "]
[null,null,null,null,null,null,null,null,false,3074," "," "]
[null,null,null,null,null,null,null,null,false,3075," "," "]
[null,null,null,null,null,null,null,null,false,3080," "," "]
[null,null,null,null,null,null,null,null,false,3083," "," "]
[null,null,null,null,null,null,null,null,false,3089," "," "]
[null,null,null,null,null,null,null,null,false,3090," "," "]
[null,null,null,null,null,null,null,null,false,3095," "," "]
[null,null,null,null,null,null,null,null,false,3099," "," "]
[null,null,null,null,null,null,null,null,false,3104," "," "]
[null,null,null,null,null,null,null,null,false,3105," "," "]
[null,null,null,null,null,null,null,null,false,3110," "," "]
[null,null,null,null,null,null,null,null,false,3113," "," "]
[null,null,null,null,null,null,null,null,false,3119," "," "]
[null,null,null,null,null,null,null,null,false,3120," "," "]
[null,null,null,null,null,null,null,null,false,3125," "," "]
[null,null,null,null,null,null,null,null,false,3129," "," "]
[null,null,null,null,null,null,null,null,false,3134," "," "]
[null,null,null,null,null,null,null,null,false,3135," "," "]
[null,null,null,null,null,null,null,null,false,3140," "," "]
[null,null,null,null,null,null,null,null,false,3143," "," "]
[null,null,null,null,null,null,null,null,false,3149," "," "]
[null,null,null,null,null,null,null,null,false,3150," "," "]
[null,null,null,null,null,null,null,null,false,3155," "," "]
[null,null,null,null,null,null,null,null,false,3160," "," "]
[null,null,null,null,null,null,null,null,false,3164," "," "]
[null,null,null,null,null,null,null,null,false,3165," "," "]
[null,null,null,null,null,null,null,null,false,3170," "," "]
[null,null,null,null,null,null,null,null,false,3173," "," "]
[null,null,null,null,null,null,null,null,false,3179," "," "]
[null,null,null,null,null,null,null,null,false,3180," "," "]
[null,null,null,null,null,null,null,null,false,3185," "," "]
[null,null,null,null,null,null,null,null,false,3190," "," "]
[null,null,null,null,null,null,null,null,false,3194," "," "]
[null,null,null,null,null,null,null,null,false,3195," "," "]
[null,null,null,null,null,null,null,null,false,3200," "," "]
[null,null,null,null,null,null,null,null,false,3203," "," "]
[null,null,null,null,null,null,null,null,false,3209," "," "]
[null,null,null,null,null,null,null,null,false,3210," "," "]
[null,null,null,null,null,null,null,null,false,3215," "," "]
[null,null,null,null,null,null,null,null,false,3220," "," "]
[null,null,null,null,null,null,null,null,false,3224," "," "]
[null,null,null,null,null,null,null,null,false,3225," "," "]
[null,null,null,null,null,null,null,null,false,3230," "," "]
[null,null,null,null,null,null,null,null,false,3233," "," "]
[null,null,null,null,null,null,null,null,false,3239," "," "]
[null,null,null,null,null,null,null,null,false,3240," "," "]
[null,null,null,null,null,null,null,null,false,3245," "," "]
[null,null,null,null,null,null,null,null,false,3250," "," "]
[null,null,null,null,null,null,null,null,false,3254," "," "]
[null,null,null,null,null,null,null,null,false,3255," "," "]
[null,null,null,null,null,null,null,null,false,3260," "," "]
[null,null,null,null,null,null,null,null,{"$f":"IF(H3267>0,RANDBETWEEN(1,$C$3))","v":false},3265,{"$f":"IF(J3267<=_xlnm.Criteria,G3267,\" \")","v":" "},{"$f":"IF(J3267<=_xlnm.Criteria,H3267,\" \")","v":" "}]
[null,null,null,null,null,null,null,null,false,3268," "," "]
[null,null,null,null,null,null,null,null,false,3270," "," "]
[null,null,null,null,null,null,null,null,false,3275," "," "]
[null,null,null,null,null,null,null,null,false,3280," "," "]
[null,null,null,null,null,null,null,null,false,3284," "," "]
[null,null,null,null,null,null,null,null,false,3285," "," "]
[null,null,null,null,null,null,null,null,false,3290," "," "]
[null,null,null,null,null,null,null,null,false,3295," "," "]
[null,null,null,null,null,null,null,null,false,3298," "," "]
[null,null,null,null,null,null,null,null,false,3300," "," "]
[null,null,null,null,null,null,null,null,false,3305," "," "]
[null,null,null,null,null,null,null,null,false,3310," "," "]
[null,null,null,null,null,null,null,null,false,3314," "," "]
[null,null,null,null,null,null,null,null,false,3315," "," "]
[null,null,null,null,null,null,null,null,false,3320," "," "]
[null,null,null,null,null,null,null,null,false,3325," "," "]
[null,null,null,null,null,null,null,null,false,3328," "," "]
[null,null,null,null,null,null,null,null,false,3330," "," "]
[null,null,null,null,null,null,null,null,false,3335," "," "]
[null,null,null,null,null,null,null,null,false,3340," "," "]
[null,null,null,null,null,null,null,null,false,3344," "," "]
[null,null,null,null,null,null,null,null,false,3345," "," "]
[null,null,null,null,null,null,null,null,false,3350," "," "]
[null,null,null,null,null,null,null,null,false,3355," "," "]
[null,null,null,null,null,null,null,null,false,3358," "," "]
[null,null,null,null,null,null,null,null,false,3360," "," "]
[null,null,null,null,null,null,null,null,false,3365," "," "]
[null,null,null,null,null,null,null,null,false,3370," "," "]
[null,null,null,null,null,null,null,null,false,3374," "," "]
[null,null,null,null,null,null,null,null,false,3375," "," "]
[null,null,null,null,null,null,null,null,false,3380," "," "]
[null,null,null,null,null,null,null,null,false,3385," "," "]
[null,null,null,null,null,null,null,null,false,3388," "," "]
[null,null,null,null,null,null,null,null,false,3390," "," "]
[null,null,null,null,null,null,null,null,false,3395," "," "]
[null,null,null,null,null,null,null,null,false,3400," "," "]
[null,null,null,null,null,null,null,null,false,3404," "," "]
[null,null,null,null,null,null,null,null,false,3405," "," "]
[null,null,null,null,null,null,null,null,false,3410," "," "]
[null,null,null,null,null,null,null,null,false,3415," "," "]
[null,null,null,null,null,null,null,null,false,3418," "," "]
[null,null,null,null,null,null,null,null,false,3420," "," "]
[null,null,null,null,null,null,null,null,false,3425," "," "]
[null,null,null,null,null,null,null,null,false,3430," "," "]
[null,null,null,null,null,null,null,null,false,3434," "," "]
[null,null,null,null,null,null,null,null,false,3435," "," "]
[null,null,null,null,null,null,null,null,false,3440," "," "]
[null,null,null,null,null,null,null,null,false,3445," "," "]
[null,null,null,null,null,null,null,null,false,3448," "," "]
[null,null,null,null,null,null,null,null,false,3450," "," "]
[null,null,null,null,null,null,null,null,false,3455," "," "]
[null,null,null,null,null,null,null,null,false,3460," "," "]
[null,null,null,null,null,null,null,null,false,3464," "," "]
[null,null,null,null,null,null,null,null,false,3465," "," "]
[null,null,null,null,null,null,null,null,false,3470," "," "]
[null,null,null,null,null,null,null,null,false,3475," "," "]
[null,null,null,null,null,null,null,null,false,3478," "," "]
[null,null,null,null,null,null,null,null,false,3480," "," "]
[null,null,null,null,null,null,null,null,false,3485," "," "]
[null,null,null,null,null,null,null,null,false,3490," "," "]
[null,null,null,null,null,null,null,null,false,3492," "," "]
[null,null,null,null,null,null,null,null,false,3495," "," "]
[null,null,null,null,null,null,null,null,false,3500," "," "]
[null,null,null,null,null,null,null,null,false,3505," "," "]
[null,null,null,null,null,null,null,null,false,3508," "," "]
[null,null,null,null,null,null,null,null,false,3510," "," "]
[null,null,null,null,null,null,null,null,false,3515," "," "]
[null,null,null,null,null,null,null,null,false,3520," "," "]
[null,null,null,null,null,null,null,null,false,3522," "," "]
[null,null,null,null,null,null,null,null,false,3525," "," "]
[null,null,null,null,null,null,null,null,false,3530," "," "]
[null,null,null,null,null,null,null,null,false,3535," "," "]
[null,null,null,null,null,null,null,null,false,3538," "," "]
[null,null,null,null,null,null,null,null,false,3540," "," "]
[null,null,null,null,null,null,null,null,false,3545," "," "]
[null,null,null,null,null,null,null,null,false,3550," "," "]
[null,null,null,null,null,null,null,null,false,3552," "," "]
[null,null,null,null,null,null,null,null,false,3555," "," "]
[null,null,null,null,null,null,null,null,false,3560," "," "]
[null,null,null,null,null,null,null,null,false,3565," "," "]
[null,null,null,null,null,null,null,null,false,3568," "," "]
[null,null,null,null,null,null,null,null,false,3570," "," "]
[null,null,null,null,null,null,null,null,false,3575," "," "]
[null,null,null,null,null,null,null,null,false,3580," "," "]
[null,null,null,null,null,null,null,null,false,3582," "," "]
[null,null,null,null,null,null,null,null,{"$f":"IF(H3587>0,RANDBETWEEN(1,$C$3))","v":false},3585,{"$f":"IF(J3587<=_xlnm.Criteria,G3587,\" \")","v":" "},{"$f":"IF(J3587<=_xlnm.Criteria,H3587,\" \")","v":" "}]
[null,null,null,null,null,null,null,null,false,3590," "," "]
[null,null,null,null,null,null,null,null,false,3595," "," "]
[null,null,null,null,null,null,null,null,false,3598," "," "]
[null,null,null,null,null,null,null,null,false,3600," "," "]
[null,null,null,null,null,null,null,null,false,3605," "," "]
[null,null,null,null,null,null,null,null,false,3610," "," "]
[null,null,null,null,null,null,null,null,false,3612," "," "]
[null,null,null,null,null,null,null,null,false,3615," "," "]
[null,null,null,null,null,null,null,null,false,3620," "," "]
[null,null,null,null,null,null,null,null,false,3625," "," "]
[null,null,null,null,null,null,null,null,false,3628," "," "]
[null,null,null,null,null,null,null,null,false,3630," "," "]
[null,null,null,null,null,null,null,null,false,3635," "," "]
[null,null,null,null,null,null,null,null,false,3640," "," "]
[null,null,null,null,null,null,null,null,false,3642," "," "]
[null,null,null,null,null,null,null,null,false,3645," "," "]
[null,null,null,null,null,null,null,null,false,3650," "," "]
[null,null,null,null,null,null,null,null,false,3655," "," "]
[null,null,null,null,null,null,null,null,false,3658," "," "]
[null,null,null,null,null,null,null,null,false,3660," "," "]
[null,null,null,null,null,null,null,null,false,3665," "," "]
[null,null,null,null,null,null,null,null,false,3670," "," "]
[null,null,null,null,null,null,null,null,false,3672," "," "]
[null,null,null,null,null,null,null,null,false,3675," "," "]
[null,null,null,null,null,null,null,null,false,3680," "," "]
[null,null,null,null,null,null,null,null,false,3685," "," "]
[null,null,null,null,null,null,null,null,false,3688," "," "]
[null,null,null,null,null,null,null,null,false,3690," "," "]
[null,null,null,null,null,null,null,null,false,3695," "," "]
[null,null,null,null,null,null,null,null,false,3700," "," "]
[null,null,null,null,null,null,null,null,false,3702," "," "]
[null,null,null,null,null,null,null,null,false,3705," "," "]
[null,null,null,null,null,null,null,null,false,3710," "," "]
[null,null,null,null,null,null,null,null,false,3715," "," "]
[null,null,null,null,null,null,null,null,false,3718," "," "]
[null,null,null,null,null,null,null,null,false,3720," "," "]
[null,null,null,null,null,null,null,null,false,3725," "," "]
[null,null,null,null,null,null,null,null,false,3730," "," "]
[null,null,null,null,null,null,null,null,false,3732," "," "]
[null,null,null,null,null,null,null,null,false,3735," "," "]
[null,null,null,null,null,null,null,null,false,3740," "," "]
[null,null,null,null,null,null,null,null,false,3745," "," "]
[null,null,null,null,null,null,null,null,false,3748," "," "]
[null,null,null,null,null,null,null,null,false,3750," "," "]
[null,null,null,null,null,null,null,null,false,3755," "," "]
[null,null,null,null,null,null,null,null,false,3760," "," "]
[null,null,null,null,null,null,null,null,false,3762," "," "]
[null,null,null,null,null,null,null,null,false,3765," "," "]
[null,null,null,null,null,null,null,null,false,3770," "," "]
[null,null,null,null,null,null,null,null,false,3775," "," "]
[null,null,null,null,null,null,null,null,false,3779," "," "]
[null,null,null,null,null,null,null,null,false,3780," "," "]
[null,null,null,null,null,null,null,null,false,3785," "," "]
[null,null,null,null,null,null,null,null,false,3790," "," "]
[null,null,null,null,null,null,null,null,false,3792," "," "]
[null,null,null,null,null,null,null,null,false,3795," "," "]
[null,null,null,null,null,null,null,null,false,3800," "," "]
[null,null,null,null,null,null,null,null,false,3805," "," "]
[null,null,null,null,null,null,null,null,false,3809," "," "]
[null,null,null,null,null,null,null,null,false,3810," "," "]
[null,null,null,null,null,null,null,null,false,3815," "," "]
[null,null,null,null,null,null,null,null,false,3820," "," "]
[null,null,null,null,null,null,null,null,false,3822," "," "]
[null,null,null,null,null,null,null,null,false,3825," "," "]
[null,null,null,null,null,null,null,null,false,3830," "," "]
[null,null,null,null,null,null,null,null,false,3835," "," "]
[null,null,null,null,null,null,null,null,false,3839," "," "]
[null,null,null,null,null,null,null,null,false,3840," "," "]
[null,null,null,null,null,null,null,null,false,3845," "," "]
[null,null,null,null,null,null,null,null,false,3850," "," "]
[null,null,null,null,null,null,null,null,false,3852," "," "]
[null,null,null,null,null,null,null,null,false,3855," "," "]
[null,null,null,null,null,null,null,null,false,3860," "," "]
[null,null,null,null,null,null,null,null,false,3865," "," "]
[null,null,null,null,null,null,null,null,false,3869," "," "]
[null,null,null,null,null,null,null,null,false,3870," "," "]
[null,null,null,null,null,null,null,null,false,3875," "," "]
[null,null,null,null,null,null,null,null,false,3880," "," "]
[null,null,null,null,null,null,null,null,false,3885," "," "]
[null,null,null,null,null,null,null,null,false,3887," "," "]
[null,null,null,null,null,null,null,null,false,3890," "," "]
[null,null,null,null,null,null,null,null,false,3895," "," "]
[null,null,null,null,null,null,null,null,false,3900," "," "]
[null,null,null,null,null,null,null,null,false,3903," "," "]
[null,null,null,null,null,null,null,null,{"$f":"IF(H3907>0,RANDBETWEEN(1,$C$3))","v":false},3905,{"$f":"IF(J3907<=_xlnm.Criteria,G3907,\" \")","v":" "},{"$f":"IF(J3907<=_xlnm.Criteria,H3907,\" \")","v":" "}]
[null,null,null,null,null,null,null,null,false,3910," "," "]
[null,null,null,null,null,null,null,null,false,3915," "," "]
[null,null,null,null,null,null,null,null,false,3917," "," "]
[null,null,null,null,null,null,null,null,false,3920," "," "]
[null,null,null,null,null,null,null,null,false,3925," "," "]
[null,null,null,null,null,null,null,null,false,3930," "," "]
[null,null,null,null,null,null,null,null,false,3933," "," "]
[null,null,null,null,null,null,null,null,false,3935," "," "]
[null,null,null,null,null,null,null,null,false,3940," "," "]
[null,null,null,null,null,null,null,null,false,3945," "," "]
[null,null,null,null,null,null,null,null,false,3947," "," "]
[null,null,null,null,null,null,null,null,false,3950," "," "]
[null,null,null,null,null,null,null,null,false,3955," "," "]
[null,null,null,null,null,null,null,null,false,3960," "," "]
[null,null,null,null,null,null,null,null,false,3963," "," "]
[null,null,null,null,null,null,null,null,false,3965," "," "]
[null,null,null,null,null,null,null,null,false,3970," "," "]
[null,null,null,null,null,null,null,null,false,3975," "," "]
[null,null,null,null,null,null,null,null,false,3977," "," "]
[null,null,null,null,null,null,null,null,false,3980," "," "]
[null,null,null,null,null,null,null,null,false,3985," "," "]
[null,null,null,null,null,null,null,null,false,3990," "," "]
[null,null,null,null,null,null,null,null,false,3993," "," "]
[null,null,null,null,null,null,null,null,false,3995," "," "]
[null,null,null,null,null,null,null,null,false,4000," "," "]
[null,null,null,null,null,null,null,null,false,4005," "," "]
[null,null,null,null,null,null,null,null,false,4007," "," "]
[null,null,null,null,null,null,null,null,false,4010," "," "]
[null,null,null,null,null,null,null,null,false,4015," "," "]
[null,null,null,null,null,null,null,null,false,4020," "," "]
[null,null,null,null,null,null,null,null,false,4023," "," "]
[null,null,null,null,null,null,null,null,false,4025," "," "]
[null,null,null,null,null,null,null,null,false,4030," "," "]
[null,null,null,null,null,null,null,null,false,4035," "," "]
[null,null,null,null,null,null,null,null,false,4037," "," "]
[null,null,null,null,null,null,null,null,false,4040," "," "]
[null,null,null,null,null,null,null,null,false,4045," "," "]
[null,null,null,null,null,null,null,null,false,4050," "," "]
[null,null,null,null,null,null,null,null,false,4053," "," "]
[null,null,null,null,null,null,null,null,false,4055," "," "]
[null,null,null,null,null,null,null,null,false,4060," "," "]
[null,null,null,null,null,null,null,null,false,4065," "," "]
[null,null,null,null,null,null,null,null,false,4067," "," "]
[null,null,null,null,null,null,null,null,false,4070," "," "]
[null,null,null,null,null,null,null,null,false,4075," "," "]
[null,null,null,null,null,null,null,null,false,4080," "," "]
[null,null,null,null,null,null,null,null,false,4083," "," "]
[null,null,null,null,null,null,null,null,false,4085," "," "]
[null,null,null,null,null,null,null,null,false,4090," "," "]
[null,null,null,null,null,null,null,null,false,4095," "," "]
[null,null,null,null,null,null,null,null,{"$f":"IF(H4099>0,RANDBETWEEN(1,$C$3))","v":false},4097,{"$f":"IF(J4099<=_xlnm.Criteria,G4099,\" \")","v":" "},{"$f":"IF(J4099<=_xlnm.Criteria,H4099,\" \")","v":" "}]
[null,null,null,null,null,null,null,null,false,4100," "," "]
[null,null,null,null,null,null,null,null,false,4105," "," "]
[null,null,null,null,null,null,null,null,false,4110," "," "]
[null,null,null,null,null,null,null,null,false,4111," "," "]
[null,null,null,null,null,null,null,null,false,4115," "," "]
[null,null,null,null,null,null,null,null,false,4120," "," "]
[null,null,null,null,null,null,null,null,false,4125," "," "]
[null,null,null,null,null,null,null,null,false,4127," "," "]
[null,null,null,null,null,null,null,null,false,4130," "," "]
[null,null,null,null,null,null,null,null,false,4135," "," "]
[null,null,null,null,null,null,null,null,false,4140," "," "]
[null,null,null,null,null,null,null,null,false,4141," "," "]
[null,null,null,null,null,null,null,null,false,4145," "," "]
[null,null,null,null,null,null,null,null,false,4150," "," "]
[null,null,null,null,null,null,null,null,false,4155," "," "]
[null,null,null,null,null,null,null,null,false,4157," "," "]
[null,null,null,null,null,null,null,null,false,4160," "," "]
[null,null,null,null,null,null,null,null,false,4165," "," "]
[null,null,null,null,null,null,null,null,false,4170," "," "]
[null,null,null,null,null,null,null,null,false,4171," "," "]
[null,null,null,null,null,null,null,null,false,4175," "," "]
[null,null,null,null,null,null,null,null,false,4180," "," "]
[null,null,null,null,null,null,null,null,false,4185," "," "]
[null,null,null,null,null,null,null,null,false,4187," "," "]
[null,null,null,null,null,null,null,null,false,4190," "," "]
[null,null,null,null,null,null,null,null,false,4195," "," "]
[null,null,null,null,null,null,null,null,false,4200," "," "]
[null,null,null,null,null,null,null,null,false,4201," "," "]
[null,null,null,null,null,null,null,null,false,4205," "," "]
[null,null,null,null,null,null,null,null,false,4210," "," "]
[null,null,null,null,null,null,null,null,false,4215," "," "]
[null,null,null,null,null,null,null,null,false,4217," "," "]
[null,null,null,null,null,null,null,null,false,4220," "," "]
[null,null,null,null,null,null,null,null,{"$f":"IF(H4227>0,RANDBETWEEN(1,$C$3))","v":false},4225,{"$f":"IF(J4227<=_xlnm.Criteria,G4227,\" \")","v":" "},{"$f":"IF(J4227<=_xlnm.Criteria,H4227,\" \")","v":" "}]
[null,null,null,null,null,null,null,null,false,4230," "," "]
[null,null,null,null,null,null,null,null,false,4231," "," "]
[null,null,null,null,null,null,null,null,false,4235," "," "]
[null,null,null,null,null,null,null,null,false,4240," "," "]
[null,null,null,null,null,null,null,null,false,4245," "," "]
[null,null,null,null,null,null,null,null,false,4247," "," "]
[null,null,null,null,null,null,null,null,false,4250," "," "]
[null,null,null,null,null,null,null,null,false,4255," "," "]
[null,null,null,null,null,null,null,null,false,4260," "," "]
[null,null,null,null,null,null,null,null,false,4261," "," "]
[null,null,null,null,null,null,null,null,false,4265," "," "]
[null,null,null,null,null,null,null,null,false,4270," "," "]
[null,null,null,null,null,null,null,null,false,4275," "," "]
[null,null,null,null,null,null,null,null,false,4277," "," "]
[null,null,null,null,null,null,null,null,false,4280," "," "]
[null,null,null,null,null,null,null,null,false,4285," "," "]
[null,null,null,null,null,null,null,null,false,4290," "," "]
[null,null,null,null,null,null,null,null,false,4291," "," "]
[null,null,null,null,null,null,null,null,false,4295," "," "]
[null,null,null,null,null,null,null,null,false,4300," "," "]
[null,null,null,null,null,null,null,null,false,4305," "," "]
[null,null,null,null,null,null,null,null,false,4307," "," "]
[null,null,null,null,null,null,null,null,false,4310," "," "]
[null,null,null,null,null,null,null,null,false,4315," "," "]
[null,null,null,null,null,null,null,null,false,4320," "," "]
[null,null,null,null,null,null,null,null,false,4321," "," "]
[null,null,null,null,null,null,null,null,false,4325," "," "]
[null,null,null,null,null,null,null,null,false,4330," "," "]
[null,null,null,null,null,null,null,null,false,4335," "," "]
[null,null,null,null,null,null,null,null,false,4337," "," "]
[null,null,null,null,null,null,null,null,false,4340," "," "]
[null,null,null,null,null,null,null,null,false,4345," "," "]
[null,null,null,null,null,null,null,null,false,4350," "," "]
[null,null,null,null,null,null,null,null,false,4351," "," "]
[null,null,null,null,null,null,null,null,false,4355," "," "]
[null,null,null,null,null,null,null,null,false,4360," "," "]
[null,null,null,null,null,null,null,null,false,4365," "," "]
[null,null,null,null,null,null,null,null,false,4368," "," "]
[null,null,null,null,null,null,null,null,false,4370," "," "]
[null,null,null,null,null,null,null,null,false,4375," "," "]
[null,null,null,null,null,null,null,null,false,4380," "," "]
[null,null,null,null,null,null,null,null,false,4381," "," "]
[null,null,null,null,null,null,null,null,false,4385," "," "]
[null,null,null,null,null,null,null,null,false,4390," "," "]
[null,null,null,null,null,null,null,null,false,4395," "," "]
[null,null,null,null,null,null,null,null,false,4398," "," "]
[null,null,null,null,null,null,null,null,false,4400," "," "]
[null,null,null,null,null,null,null,null,false,4405," "," "]
[null,null,null,null,null,null,null,null,false,4410," "," "]
[null,null,null,null,null,null,null,null,false,4411," "," "]
[null,null,null,null,null,null,null,null,false,4415," "," "]
[null,null,null,null,null,null,null,null,false,4420," "," "]
[null,null,null,null,null,null,null,null,false,4425," "," "]
[null,null,null,null,null,null,null,null,false,4428," "," "]
[null,null,null,null,null,null,null,null,false,4430," "," "]
[null,null,null,null,null,null,null,null,false,4435," "," "]
[null,null,null,null,null,null,null,null,false,4440," "," "]
[null,null,null,null,null,null,null,null,false,4441," "," "]
[null,null,null,null,null,null,null,null,false,4445," "," "]
[null,null,null,null,null,null,null,null,false,4450," "," "]
[null,null,null,null,null,null,null,null,false,4455," "," "]
[null,null,null,null,null,null,null,null,false,4458," "," "]
[null,null,null,null,null,null,null,null,false,4460," "," "]
[null,null,null,null,null,null,null,null,false,4465," "," "]
[null,null,null,null,null,null,null,null,false,4470," "," "]
[null,null,null,null,null,null,null,null,false,4471," "," "]
[null,null,null,null,null,null,null,null,false,4475," "," "]
[null,null,null,null,null,null,null,null,false,4480," "," "]
[null,null,null,null,null,null,null,null,false,4485," "," "]
[null,null,null,null,null,null,null,null,false,4488," "," "]
[null,null,null,null,null,null,null,null,false,4490," "," "]
[null,null,null,null,null,null,null,null,false,4495," "," "]
[null,null,null,null,null,null,null,null,false,4500," "," "]
[null,null,null,null,null,null,null,null,false,4501," "," "]
[null,null,null,null,null,null,null,null,false,4506," "," "]
[null,null,null,null,null,null,null,null,false,4510," "," "]
[null,null,null,null,null,null,null,null,false,4515," "," "]
[null,null,null,null,null,null,null,null,false,4516," "," "]
[null,null,null,null,null,null,null,null,false,4522," "," "]
[null,null,null,null,null,null,null,null,false,4525," "," "]
[null,null,null,null,null,null,null,null,false,4530," "," "]
[null,null,null,null,null,null,null,null,false,4531," "," "]
[null,null,null,null,null,null,null,null,false,4536," "," "]
[null,null,null,null,null,null,null,null,false,4540," "," "]
[null,null,null,null,null,null,null,null,{"$f":"IF(H4547>0,RANDBETWEEN(1,$C$3))","v":false},4545,{"$f":"IF(J4547<=_xlnm.Criteria,G4547,\" \")","v":" "},{"$f":"IF(J4547<=_xlnm.Criteria,H4547,\" \")","v":" "}]
[null,null,null,null,null,null,null,null,false,4546," "," "]
[null,null,null,null,null,null,null,null,false,4552," "," "]
[null,null,null,null,null,null,null,null,false,4555," "," "]
[null,null,null,null,null,null,null,null,false,4560," "," "]
[null,null,null,null,null,null,null,null,false,4561," "," "]
[null,null,null,null,null,null,null,null,false,4566," "," "]
[null,null,null,null,null,null,null,null,false,4570," "," "]
[null,null,null,null,null,null,null,null,false,4575," "," "]
[null,null,null,null,null,null,null,null,false,4576," "," "]
[null,null,null,null,null,null,null,null,false,4582," "," "]
[null,null,null,null,null,null,null,null,false,4585," "," "]
[null,null,null,null,null,null,null,null,false,4590," "," "]
[null,null,null,null,null,null,null,null,false,4591," "," "]
[null,null,null,null,null,null,null,null,false,4596," "," "]
[null,null,null,null,null,null,null,null,false,4600," "," "]
[null,null,null,null,null,null,null,null,false,4605," "," "]
[null,null,null,null,null,null,null,null,false,4606," "," "]
[null,null,null,null,null,null,null,null,false,4612," "," "]
[null,null,null,null,null,null,null,null,false,4615," "," "]
[null,null,null,null,null,null,null,null,false,4620," "," "]
[null,null,null,null,null,null,null,null,false,4621," "," "]
[null,null,null,null,null,null,null,null,false,4626," "," "]
[null,null,null,null,null,null,null,null,false,4630," "," "]
[null,null,null,null,null,null,null,null,false,4635," "," "]
[null,null,null,null,null,null,null,null,false,4636," "," "]
[null,null,null,null,null,null,null,null,false,4642," "," "]
[null,null,null,null,null,null,null,null,false,4645," "," "]
[null,null,null,null,null,null,null,null,false,4650," "," "]
[null,null,null,null,null,null,null,null,false,4651," "," "]
[null,null,null,null,null,null,null,null,false,4656," "," "]
[null,null,null,null,null,null,null,null,false,4660," "," "]
[null,null,null,null,null,null,null,null,false,4665," "," "]
[null,null,null,null,null,null,null,null,false,4666," "," "]
[null,null,null,null,null,null,null,null,false,4672," "," "]
[null,null,null,null,null,null,null,null,false,4675," "," "]
[null,null,null,null,null,null,null,null,false,4680," "," "]
[null,null,null,null,null,null,null,null,false,4681," "," "]
[null,null,null,null,null,null,null,null,false,4686," "," "]
[null,null,null,null,null,null,null,null,false,4690," "," "]
[null,null,null,null,null,null,null,null,false,4695," "," "]
[null,null,null,null,null,null,null,null,false,4696," "," "]
[null,null,null,null,null,null,null,null,false,4700," "," "]
[null,null,null,null,null,null,null,null,false,4705," "," "]
[null,null,null,null,null,null,null,null,false,4710," "," "]
[null,null,null,null,null,null,null,null,false,4711," "," "]
[null,null,null,null,null,null,null,null,false,4716," "," "]
[null,null,null,null,null,null,null,null,false,4720," "," "]
[null,null,null,null,null,null,null,null,false,4725," "," "]
[null,null,null,null,null,null,null,null,false,4726," "," "]
[null,null,null,null,null,null,null,null,false,4730," "," "]
[null,null,null,null,null,null,null,null,false,4735," "," "]
[null,null,null,null,null,null,null,null,false,4740," "," "]
[null,null,null,null,null,null,null,null,false,4741," "," "]
[null,null,null,null,null,null,null,null,false,4746," "," "]
[null,null,null,null,null,null,null,null,false,4750," "," "]
[null,null,null,null,null,null,null,null,false,4755," "," "]
[null,null,null,null,null,null,null,null,false,4756," "," "]
[null,null,null,null,null,null,null,null,false,4760," "," "]
[null,null,null,null,null,null,null,null,false,4765," "," "]
[null,null,null,null,null,null,null,null,false,4770," "," "]
[null,null,null,null,null,null,null,null,false,4771," "," "]
[null,null,null,null,null,null,null,null,false,4776," "," "]
[null,null,null,null,null,null,null,null,false,4780," "," "]
[null,null,null,null,null,null,null,null,false,4785," "," "]
[null,null,null,null,null,null,null,null,false,4786," "," "]
[null,null,null,null,null,null,null,null,false,4790," "," "]
[null,null,null,null,null,null,null,null,false,4795," "," "]
[null,null,null,null,null,null,null,null,false,4800," "," "]
[null,null,null,null,null,null,null,null,{"$f":"IF(H4803>0,RANDBETWEEN(1,$C$3))","v":false},4801,{"$f":"IF(J4803<=_xlnm.Criteria,G4803,\" \")","v":" "},{"$f":"IF(J4803<=_xlnm.Criteria,H4803,\" \")","v":" "}]
[null,null,null,null,null,null,null,null,false,4806," "," "]
[null,null,null,null,null,null,null,null,false,4810," "," "]
[null,null,null,null,null,null,null,null,false,4815," "," "]
[null,null,null,null,null,null,null,null,false,4816," "," "]
[null,null,null,null,null,null,null,null,false,4820," "," "]
[null,null,null,null,null,null,null,null,false,4825," "," "]
[null,null,null,null,null,null,null,null,false,4830," "," "]
[null,null,null,null,null,null,null,null,false,4831," "," "]
[null,null,null,null,null,null,null,null,false,4836," "," "]
[null,null,null,null,null,null,null,null,false,4840," "," "]
[null,null,null,null,null,null,null,null,false,4845," "," "]
[null,null,null,null,null,null,null,null,false,4846," "," "]
[null,null,null,null,null,null,null,null,false,4850," "," "]
[null,null,null,null,null,null,null,null,false,4855," "," "]
[null,null,null,null,null,null,null,null,false,4860," "," "]
[null,null,null,null,null,null,null,null,false,4861," "," "]
[null,null,null,null,null,null,null,null,false,4866," "," "]
[null,null,null,null,null,null,null,null,false,4870," "," "]
[null,null,null,null,null,null,null,null,false,4875," "," "]
[null,null,null,null,null,null,null,null,false,4876," "," "]
[null,null,null,null,null,null,null,null,false,4880," "," "]
[null,null,null,null,null,null,null,null,false,4885," "," "]
[null,null,null,null,null,null,null,null,false,4890," "," "]
[null,null,null,null,null,null,null,null,false,4891," "," "]
[null,null,null,null,null,null,null,null,false,4896," "," "]
[null,null,null,null,null,null,null,null,false,4900," "," "]
[null,null,null,null,null,null,null,null,false,4905," "," "]
[null,null,null,null,null,null,null,null,false,4906," "," "]
[null,null,null,null,null,null,null,null,false,4910," "," "]
[null,null,null,null,null,null,null,null,false,4915," "," "]
[null,null,null,null,null,null,null,null,false,4920," "," "]
[null,null,null,null,null,null,null,null,false,4921," "," "]
[null,null,null,null,null,null,null,null,false,4926," "," "]
[null,null,null,null,null,null,null,null,false,4930," "," "]
[null,null,null,null,null,null,null,null,false,4935," "," "]
[null,null,null,null,null,null,null,null,false,4936," "," "]
[null,null,null,null,null,null,null,null,false,4940," "," "]
[null,null,null,null,null,null,null,null,false,4945," "," "]
[null,null,null,null,null,null,null,null,false,4950," "," "]
[null,null,null,null,null,null,null,null,false,4951," "," "]
[null,null,null,null,null,null,null,null,false,4956," "," "]
[null,null,null,null,null,null,null,null,false,4960," "," "]
[null,null,null,null,null,null,null,null,false,4965," "," "]
[null,null,null,null,null,null,null,null,false,4966," "," "]
[null,null,null,null,null,null,null,null,false,4970," "," "]
[null,null,null,null,null,null,null,null,false,4975," "," "]
[null,null,null,null,null,null,null,null,false,4980," "," "]
[null,null,null,null,null,null,null,null,false,4981," "," "]
[null,null,null,null,null,null,null,null,false,4987," "," "]
[null,null,null,null,null,null,null,null,false,4990," "," "]
[null,null,null,null,null,null,null,null,false,4995," "," "]
[null,null,null,null,null,null,null,null,false,4996," "," "]
[null,null,null,null,null,null,null,null,false,5000," "," "]
[null,null,null,null,null,null,null,null,false,5005," "," "]
[null,null,null,null,null,null,null,null,false,5010," "," "]
[null,null,null,null,null,null,null,null,false,5011," "," "]
[null,null,null,null,null,null,null,null,false,5017," "," "]
[null,null,null,null,null,null,null,null,false,5020," "," "]
[null,null,null,null,null,null,null,null,false,5025," "," "]
[null,null,null,null,null,null,null,null,false,5026," "," "]
[null,null,null,null,null,null,null,null,false,5030," "," "]
[null,null,null,null,null,null,null,null,false,5035," "," "]
[null,null,null,null,null,null,null,null,false,5040," "," "]
[null,null,null,null,null,null,null,null,false,5041," "," "]
[null,null,null,null,null,null,null,null,false,5047," "," "]
[null,null,null,null,null,null,null,null,false,5050," "," "]
[null,null,null,null,null,null,null,null,false,5055," "," "]
[null,null,null,null,null,null,null,null,false,5056," "," "]
[null,null,null,null,null,null,null,null,false,5060," "," "]
[null,null,null,null,null,null,null,null,false,5065," "," "]
[null,null,null,null,null,null,null,null,false,5070," "," "]
[null,null,null,null,null,null,null,null,false,5071," "," "]
[null,null,null,null,null,null,null,null,false,5077," "," "]
[null,null,null,null,null,null,null,null,false,5080," "," "]
[null,null,null,null,null,null,null,null,false,5085," "," "]
[null,null,null,null,null,null,null,null,false,5086," "," "]
[null,null,null,null,null,null,null,null,false,5090," "," "]
[null,null,null,null,null,null,null,null,false,5095," "," "]
[null,null,null,null,null,null,null,null,false,5100," "," "]
[null,null,null,null,null,null,null,null,false,5101," "," "]
[null,null,null,null,null,null,null,null,false,5107," "," "]
[null,null,null,null,null,null,null,null,false,5110," "," "]
[null,null,null,null,null,null,null,null,false,5115," "," "]
[null,null,null,null,null,null,null,null,false,5116," "," "]
[null,null,null,null,null,null,null,null,false,5120," "," "]
[null,null,null,null,null,null,null,null,false,5125," "," "]
[null,null,null,null,null,null,null,null,false,5130," "," "]
[null,null,null,null,null,null,null,null,false,5131," "," "]
[null,null,null,null,null,null,null,null,false,5136," "," "]
[null,null,null,null,null,null,null,null,false,5141," "," "]
[null,null,null,null,null,null,null,null,false,5145," "," "]
[null,null,null,null,null,null,null,null,false,5146," "," "]
[null,null,null,null,null,null,null,null,false,5151," "," "]
[null,null,null,null,null,null,null,null,false,5155," "," "]
[null,null,null,null,null,null,null,null,false,5160," "," "]
[null,null,null,null,null,null,null,null,false,5161," "," "]
[null,null,null,null,null,null,null,null,false,5166," "," "]
[null,null,null,null,null,null,null,null,false,5171," "," "]
[null,null,null,null,null,null,null,null,false,5175," "," "]
[null,null,null,null,null,null,null,null,false,5176," "," "]
[null,null,null,null,null,null,null,null,false,5181," "," "]
[null,null,null,null,null,null,null,null,{"$f":"IF(H5187>0,RANDBETWEEN(1,$C$3))","v":false},5185,{"$f":"IF(J5187<=_xlnm.Criteria,G5187,\" \")","v":" "},{"$f":"IF(J5187<=_xlnm.Criteria,H5187,\" \")","v":" "}]
[null,null,null,null,null,null,null,null,false,5190," "," "]
[null,null,null,null,null,null,null,null,false,5191," "," "]
[null,null,null,null,null,null,null,null,false,5196," "," "]
[null,null,null,null,null,null,null,null,false,5201," "," "]
[null,null,null,null,null,null,null,null,false,5205," "," "]
[null,null,null,null,null,null,null,null,false,5206," "," "]
[null,null,null,null,null,null,null,null,false,5211," "," "]
[null,null,null,null,null,null,null,null,false,5215," "," "]
[null,null,null,null,null,null,null,null,false,5220," "," "]
[null,null,null,null,null,null,null,null,false,5221," "," "]
[null,null,null,null,null,null,null,null,false,5226," "," "]
[null,null,null,null,null,null,null,null,false,5231," "," "]
[null,null,null,null,null,null,null,null,false,5235," "," "]
[null,null,null,null,null,null,null,null,false,5236," "," "]
[null,null,null,null,null,null,null,null,false,5241," "," "]
[null,null,null,null,null,null,null,null,false,5245," "," "]
[null,null,null,null,null,null,null,null,false,5250," "," "]
[null,null,null,null,null,null,null,null,false,5251," "," "]
[null,null,null,null,null,null,null,null,false,5256," "," "]
[null,null,null,null,null,null,null,null,false,5261," "," "]
[null,null,null,null,null,null,null,null,false,5265," "," "]
[null,null,null,null,null,null,null,null,false,5266," "," "]
[null,null,null,null,null,null,null,null,false,5271," "," "]
[null,null,null,null,null,null,null,null,false,5275," "," "]
[null,null,null,null,null,null,null,null,false,5280," "," "]
[null,null,null,null,null,null,null,null,false,5281," "," "]
[null,null,null,null,null,null,null,null,false,5286," "," "]
[null,null,null,null,null,null,null,null,false,5291," "," "]
[null,null,null,null,null,null,null,null,false,5295," "," "]
[null,null,null,null,null,null,null,null,false,5296," "," "]
[null,null,null,null,null,null,null,null,false,5301," "," "]
[null,null,null,null,null,null,null,null,false,5305," "," "]
[null,null,null,null,null,null,null,null,false,5310," "," "]
[null,null,null,null,null,null,null,null,false,5311," "," "]
[null,null,null,null,null,null,null,null,false,5316," "," "]
[null,null,null,null,null,null,null,null,false,5319," "," "]
[null,null,null,null,null,null,null,null,false,5325," "," "]
[null,null,null,null,null,null,null,null,false,5326," "," "]
[null,null,null,null,null,null,null,null,false,5331," "," "]
[null,null,null,null,null,null,null,null,false,5335," "," "]
[null,null,null,null,null,null,null,null,false,5340," "," "]
[null,null,null,null,null,null,null,null,false,5341," "," "]
[null,null,null,null,null,null,null,null,false,5346," "," "]
[null,null,null,null,null,null,null,null,false,5349," "," "]
[null,null,null,null,null,null,null,null,false,5355," "," "]
[null,null,null,null,null,null,null,null,false,5356," "," "]
[null,null,null,null,null,null,null,null,false,5361," "," "]
[null,null,null,null,null,null,null,null,false,5365," "," "]
[null,null,null,null,null,null,null,null,false,5370," "," "]
[null,null,null,null,null,null,null,null,false,5371," "," "]
[null,null,null,null,null,null,null,null,false,5376," "," "]
[null,null,null,null,null,null,null,null,false,5379," "," "]
[null,null,null,null,null,null,null,null,false,5385," "," "]
[null,null,null,null,null,null,null,null,false,5386," "," "]
[null,null,null,null,null,null,null,null,false,5391," "," "]
[null,null,null,null,null,null,null,null,false,5395," "," "]
[null,null,null,null,null,null,null,null,false,5400," "," "]
[null,null,null,null,null,null,null,null,false,5401," "," "]
[null,null,null,null,null,null,null,null,false,5406," "," "]
[null,null,null,null,null,null,null,null,false,5409," "," "]
[null,null,null,null,null,null,null,null,false,5415," "," "]
[null,null,null,null,null,null,null,null,false,5416," "," "]
[null,null,null,null,null,null,null,null,false,5421," "," "]
[null,null,null,null,null,null,null,null,false,5425," "," "]
[null,null,null,null,null,null,null,null,false,5430," "," "]
[null,null,null,null,null,null,null,null,false,5431," "," "]
[null,null,null,null,null,null,null,null,false,5436," "," "]
[null,null,null,null,null,null,null,null,false,5439," "," "]
[null,null,null,null,null,null,null,null,false,5445," "," "]
[null,null,null,null,null,null,null,null,false,5446," "," "]
[null,null,null,null,null,null,null,null,false,5451," "," "]
[null,null,null,null,null,null,null,null,false,5455," "," "]
[null,null,null,null,null,null,null,null,false,5460," "," "]
[null,null,null,null,null,null,null,null,false,5461," "," "]
[null,null,null,null,null,null,null,null,false,5466," "," "]
[null,null,null,null,null,null,null,null,false,5469," "," "]
[null,null,null,null,null,null,null,null,false,5475," "," "]
[null,null,null,null,null,null,null,null,false,5476," "," "]
[null,null,null,null,null,null,null,null,false,5481," "," "]
[null,null,null,null,null,null,null,null,false,5485," "," "]
[null,null,null,null,null,null,null,null,false,5490," "," "]
[null,null,null,null,null,null,null,null,false,5491," "," "]
[null,null,null,null,null,null,null,null,false,5496," "," "]
[null,null,null,null,null,null,null,null,false,5499," "," "]
[null,null,null,null,null,null,null,null,{"$f":"IF(H5507>0,RANDBETWEEN(1,$C$3))","v":false},5505,{"$f":"IF(J5507<=_xlnm.Criteria,G5507,\" \")","v":" "},{"$f":"IF(J5507<=_xlnm.Criteria,H5507,\" \")","v":" "}]
[null,null,null,null,null,null,null,null,false,5506," "," "]
[null,null,null,null,null,null,null,null,false,5511," "," "]
[null,null,null,null,null,null,null,null,false,5515," "," "]
[null,null,null,null,null,null,null,null,false,5520," "," "]
[null,null,null,null,null,null,null,null,false,5521," "," "]
[null,null,null,null,null,null,null,null,false,5526," "," "]
[null,null,null,null,null,null,null,null,false,5529," "," "]
[null,null,null,null,null,null,null,null,false,5535," "," "]
[null,null,null,null,null,null,null,null,false,5536," "," "]
[null,null,null,null,null,null,null,null,false,5541," "," "]
[null,null,null,null,null,null,null,null,false,5545," "," "]
[null,null,null,null,null,null,null,null,false,5550," "," "]
[null,null,null,null,null,null,null,null,false,5551," "," "]
[null,null,null,null,null,null,null,null,false,5556," "," "]
[null,null,null,null,null,null,null,null,false,5559," "," "]
[null,null,null,null,null,null,null,null,false,5565," "," "]
[null,null,null,null,null,null,null,null,false,5566," "," "]
[null,null,null,null,null,null,null,null,false,5571," "," "]
[null,null,null,null,null,null,null,null,false,5576," "," "]
[null,null,null,null,null,null,null,null,false,5580," "," "]
[null,null,null,null,null,null,null,null,false,5581," "," "]
[null,null,null,null,null,null,null,null,false,5586," "," "]
[null,null,null,null,null,null,null,null,false,5589," "," "]
[null,null,null,null,null,null,null,null,false,5595," "," "]
[null,null,null,null,null,null,null,null,false,5596," "," "]
[null,null,null,null,null,null,null,null,false,5601," "," "]
[null,null,null,null,null,null,null,null,false,5606," "," "]
[null,null,null,null,null,null,null,null,false,5610," "," "]
[null,null,null,null,null,null,null,null,false,5611," "," "]
[null,null,null,null,null,null,null,null,false,5616," "," "]
[null,null,null,null,null,null,null,null,false,5619," "," "]
[null,null,null,null,null,null,null,null,false,5625," "," "]
[null,null,null,null,null,null,null,null,false,5626," "," "]
[null,null,null,null,null,null,null,null,false,5631," "," "]
[null,null,null,null,null,null,null,null,false,5636," "," "]
[null,null,null,null,null,null,null,null,false,5640," "," "]
[null,null,null,null,null,null,null,null,false,5641," "," "]
[null,null,null,null,null,null,null,null,false,5646," "," "]
[null,null,null,null,null,null,null,null,false,5649," "," "]
[null,null,null,null,null,null,null,null,false,5655," "," "]
[null,null,null,null,null,null,null,null,false,5656," "," "]
[null,null,null,null,null,null,null,null,false,5661," "," "]
[null,null,null,null,null,null,null,null,false,5666," "," "]
[null,null,null,null,null,null,null,null,false,5670," "," "]
[null,null,null,null,null,null,null,null,false,5671," "," "]
[null,null,null,null,null,null,null,null,false,5676," "," "]
[null,null,null,null,null,null,null,null,false,5679," "," "]
[null,null,null,null,null,null,null,null,false,5685," "," "]
[null,null,null,null,null,null,null,null,false,5686," "," "]
[null,null,null,null,null,null,null,null,false,5691," "," "]
[null,null,null,null,null,null,null,null,false,5696," "," "]
[null,null,null,null,null,null,null,null,false,5700," "," "]
[null,null,null,null,null,null,null,null,false,5701," "," "]
[null,null,null,null,null,null,null,null,false,5706," "," "]
[null,null,null,null,null,null,null,null,false,5709," "," "]
[null,null,null,null,null,null,null,null,false,5715," "," "]
[null,null,null,null,null,null,null,null,false,5716," "," "]
[null,null,null,null,null,null,null,null,false,5721," "," "]
[null,null,null,null,null,null,null,null,false,5726," "," "]
[null,null,null,null,null,null,null,null,false,5730," "," "]
[null,null,null,null,null,null,null,null,false,5731," "," "]
[null,null,null,null,null,null,null,null,false,5736," "," "]
[null,null,null,null,null,null,null,null,false,5739," "," "]
[null,null,null,null,null,null,null,null,false,5745," "," "]
[null,null,null,null,null,null,null,null,false,5746," "," "]
[null,null,null,null,null,null,null,null,false,5751," "," "]
[null,null,null,null,null,null,null,null,false,5756," "," "]
[null,null,null,null,null,null,null,null,false,5760," "," "]
[null,null,null,null,null,null,null,null,{"$f":"IF(H5763>0,RANDBETWEEN(1,$C$3))","v":false},5761,{"$f":"IF(J5763<=_xlnm.Criteria,G5763,\" \")","v":" "},{"$f":"IF(J5763<=_xlnm.Criteria,H5763,\" \")","v":" "}]
[null,null,null,null,null,null,null,null,false,5766," "," "]
[null,null,null,null,null,null,null,null,false,5771," "," "]
[null,null,null,null,null,null,null,null,false,5774," "," "]
[null,null,null,null,null,null,null,null,false,5776," "," "]
[null,null,null,null,null,null,null,null,false,5781," "," "]
[null,null,null,null,null,null,null,null,false,5786," "," "]
[null,null,null,null,null,null,null,null,false,5790," "," "]
[null,null,null,null,null,null,null,null,false,5791," "," "]
[null,null,null,null,null,null,null,null,false,5796," "," "]
[null,null,null,null,null,null,null,null,false,5801," "," "]
[null,null,null,null,null,null,null,null,false,5804," "," "]
[null,null,null,null,null,null,null,null,false,5806," "," "]
[null,null,null,null,null,null,null,null,false,5811," "," "]
[null,null,null,null,null,null,null,null,false,5816," "," "]
[null,null,null,null,null,null,null,null,false,5820," "," "]
[null,null,null,null,null,null,null,null,false,5821," "," "]
[null,null,null,null,null,null,null,null,false,5826," "," "]
[null,null,null,null,null,null,null,null,false,5831," "," "]
[null,null,null,null,null,null,null,null,false,5834," "," "]
[null,null,null,null,null,null,null,null,false,5836," "," "]
[null,null,null,null,null,null,null,null,false,5841," "," "]
[null,null,null,null,null,null,null,null,false,5846," "," "]
[null,null,null,null,null,null,null,null,false,5850," "," "]
[null,null,null,null,null,null,null,null,false,5851," "," "]
[null,null,null,null,null,null,null,null,false,5856," "," "]
[null,null,null,null,null,null,null,null,false,5861," "," "]
[null,null,null,null,null,null,null,null,false,5864," "," "]
[null,null,null,null,null,null,null,null,false,5866," "," "]
[null,null,null,null,null,null,null,null,false,5871," "," "]
[null,null,null,null,null,null,null,null,false,5876," "," "]
[null,null,null,null,null,null,null,null,false,5880," "," "]
[null,null,null,null,null,null,null,null,false,5881," "," "]
[null,null,null,null,null,null,null,null,false,5886," "," "]
[null,null,null,null,null,null,null,null,false,5891," "," "]
[null,null,null,null,null,null,null,null,false,5894," "," "]
[null,null,null,null,null,null,null,null,false,5896," "," "]
[null,null,null,null,null,null,null,null,false,5901," "," "]
[null,null,null,null,null,null,null,null,false,5906," "," "]
[null,null,null,null,null,null,null,null,false,5908," "," "]
[null,null,null,null,null,null,null,null,false,5911," "," "]
[null,null,null,null,null,null,null,null,false,5916," "," "]
[null,null,null,null,null,null,null,null,false,5921," "," "]
[null,null,null,null,null,null,null,null,false,5924," "," "]
[null,null,null,null,null,null,null,null,false,5926," "," "]
[null,null,null,null,null,null,null,null,false,5931," "," "]
[null,null,null,null,null,null,null,null,false,5936," "," "]
[null,null,null,null,null,null,null,null,false,5938," "," "]
[null,null,null,null,null,null,null,null,false,5941," "," "]
[null,null,null,null,null,null,null,null,false,5946," "," "]
[null,null,null,null,null,null,null,null,false,5951," "," "]
[null,null,null,null,null,null,null,null,false,5954," "," "]
[null,null,null,null,null,null,null,null,false,5956," "," "]
[null,null,null,null,null,null,null,null,false,5961," "," "]
[null,null,null,null,null,null,null,null,false,5966," "," "]
[null,null,null,null,null,null,null,null,false,5968," "," "]
[null,null,null,null,null,null,null,null,false,5971," "," "]
[null,null,null,null,null,null,null,null,false,5976," "," "]
[null,null,null,null,null,null,null,null,false,5981," "," "]
[null,null,null,null,null,null,null,null,false,5984," "," "]
[null,null,null,null,null,null,null,null,false,5986," "," "]
[null,null,null,null,null,null,null,null,false,5991," "," "]
[null,null,null,null,null,null,null,null,false,5996," "," "]
[null,null,null,null,null,null,null,null,false,5998," "," "]
[null,null,null,null,null,null,null,null,false,6001," "," "]
[null,null,null,null,null,null,null,null,false,6006," "," "]
[null,null,null,null,null,null,null,null,false,6011," "," "]
[null,null,null,null,null,null,null,null,false,6014," "," "]
[null,null,null,null,null,null,null,null,false,6016," "," "]
[null,null,null,null,null,null,null,null,false,6021," "," "]
[null,null,null,null,null,null,null,null,false,6026," "," "]
[null,null,null,null,null,null,null,null,false,6028," "," "]
[null,null,null,null,null,null,null,null,false,6031," "," "]
[null,null,null,null,null,null,null,null,false,6036," "," "]
[null,null,null,null,null,null,null,null,false,6041," "," "]
[null,null,null,null,null,null,null,null,false,6044," "," "]
[null,null,null,null,null,null,null,null,false,6046," "," "]
[null,null,null,null,null,null,null,null,false,6051," "," "]
[null,null,null,null,null,null,null,null,false,6056," "," "]
[null,null,null,null,null,null,null,null,false,6058," "," "]
[null,null,null,null,null,null,null,null,false,6061," "," "]
[null,null,null,null,null,null,null,null,false,6066," "," "]
[null,null,null,null,null,null,null,null,false,6071," "," "]
[null,null,null,null,null,null,null,null,false,6074," "," "]
[null,null,null,null,null,null,null,null,false,6076," "," "]
[null,null,null,null,null,null,null,null,{"$f":"IF(H6083>0,RANDBETWEEN(1,$C$3))","v":false},6081,{"$f":"IF(J6083<=_xlnm.Criteria,G6083,\" \")","v":" "},{"$f":"IF(J6083<=_xlnm.Criteria,H6083,\" \")","v":" "}]
[null,null,null,null,null,null,null,null,false,6086," "," "]
[null,null,null,null,null,null,null,null,false,6088," "," "]
[null,null,null,null,null,null,null,null,false,6091," "," "]
[null,null,null,null,null,null,null,null,false,6096," "," "]
[null,null,null,null,null,null,null,null,false,6101," "," "]
[null,null,null,null,null,null,null,null,false,6104," "," "]
[null,null,null,null,null,null,null,null,false,6106," "," "]
[null,null,null,null,null,null,null,null,false,6111," "," "]
[null,null,null,null,null,null,null,null,false,6116," "," "]
[null,null,null,null,null,null,null,null,false,6118," "," "]
[null,null,null,null,null,null,null,null,false,6121," "," "]
[null,null,null,null,null,null,null,null,false,6126," "," "]
[null,null,null,null,null,null,null,null,false,6131," "," "]
[null,null,null,null,null,null,null,null,false,6134," "," "]
[null,null,null,null,null,null,null,null,false,6136," "," "]
[null,null,null,null,null,null,null,null,false,6141," "," "]
[null,null,null,null,null,null,null,null,false,6146," "," "]
[null,null,null,null,null,null,null,null,false,6148," "," "]
[null,null,null,null,null,null,null,null,false,6151," "," "]
[null,null,null,null,null,null,null,null,false,6156," "," "]
[null,null,null,null,null,null,null,null,false,6161," "," "]
[null,null,null,null,null,null,null,null,false,6164," "," "]
[null,null,null,null,null,null,null,null,false,6166," "," "]
[null,null,null,null,null,null,null,null,false,6171," "," "]
[null,null,null,null,null,null,null,null,false,6176," "," "]
[null,null,null,null,null,null,null,null,false,6178," "," "]
[null,null,null,null,null,null,null,null,false,6181," "," "]
[null,null,null,null,null,null,null,null,false,6186," "," "]
[null,null,null,null,null,null,null,null,false,6191," "," "]
[null,null,null,null,null,null,null,null,false,6195," "," "]
[null,null,null,null,null,null,null,null,false,6196," "," "]
[null,null,null,null,null,null,null,null,false,6201," "," "]
[null,null,null,null,null,null,null,null,false,6206," "," "]
[null,null,null,null,null,null,null,null,false,6208," "," "]
[null,null,null,null,null,null,null,null,false,6211," "," "]
[null,null,null,null,null,null,null,null,false,6216," "," "]
[null,null,null,null,null,null,null,null,false,6221," "," "]
[null,null,null,null,null,null,null,null,false,6225," "," "]
[null,null,null,null,null,null,null,null,false,6226," "," "]
[null,null,null,null,null,null,null,null,false,6231," "," "]
[null,null,null,null,null,null,null,null,false,6236," "," "]
[null,null,null,null,null,null,null,null,false,6238," "," "]
[null,null,null,null,null,null,null,null,false,6241," "," "]
[null,null,null,null,null,null,null,null,false,6246," "," "]
[null,null,null,null,null,null,null,null,false,6251," "," "]
[null,null,null,null,null,null,null,null,false,6255," "," "]
[null,null,null,null,null,null,null,null,false,6256," "," "]
[null,null,null,null,null,null,null,null,false,6261," "," "]
[null,null,null,null,null,null,null,null,false,6266," "," "]
[null,null,null,null,null,null,null,null,false,6268," "," "]
[null,null,null,null,null,null,null,null,false,6271," "," "]
[null,null,null,null,null,null,null,null,false,6276," "," "]
[null,null,null,null,null,null,null,null,false,6281," "," "]
[null,null,null,null,null,null,null,null,false,6285," "," "]
[null,null,null,null,null,null,null,null,false,6286," "," "]
[null,null,null,null,null,null,null,null,false,6291," "," "]
[null,null,null,null,null,null,null,null,false,6296," "," "]
[null,null,null,null,null,null,null,null,false,6298," "," "]
[null,null,null,null,null,null,null,null,false,6301," "," "]
[null,null,null,null,null,null,null,null,false,6306," "," "]
[null,null,null,null,null,null,null,null,false,6311," "," "]
[null,null,null,null,null,null,null,null,false,6315," "," "]
[null,null,null,null,null,null,null,null,false,6316," "," "]
[null,null,null,null,null,null,null,null,false,6321," "," "]
[null,null,null,null,null,null,null,null,false,6326," "," "]
[null,null,null,null,null,null,null,null,false,6328," "," "]
[null,null,null,null,null,null,null,null,false,6331," "," "]
[null,null,null,null,null,null,null,null,false,6336," "," "]
[null,null,null,null,null,null,null,null,false,6341," "," "]
[null,null,null,null,null,null,null,null,false,6345," "," "]
[null,null,null,null,null,null,null,null,false,6346," "," "]
[null,null,null,null,null,null,null,null,false,6351," "," "]
[null,null,null,null,null,null,null,null,false,6356," "," "]
[null,null,null,null,null,null,null,null,false,6358," "," "]
[null,null,null,null,null,null,null,null,false,6361," "," "]
[null,null,null,null,null,null,null,null,false,6366," "," "]
[null,null,null,null,null,null,null,null,false,6371," "," "]
[null,null,null,null,null,null,null,null,false,6376," "," "]
[null,null,null,null,null,null,null,null,false,6379," "," "]
[null,null,null,null,null,null,null,null,false,6381," "," "]
[null,null,null,null,null,null,null,null,false,6386," "," "]
[null,null,null,null,null,null,null,null,false,6391," "," "]
[null,null,null,null,null,null,null,null,false,6393," "," "]
[null,null,null,null,null,null,null,null,false,6396," "," "]
[null,null,null,null,null,null,null,null,{"$f":"IF(H6403>0,RANDBETWEEN(1,$C$3))","v":false},6401,{"$f":"IF(J6403<=_xlnm.Criteria,G6403,\" \")","v":" "},{"$f":"IF(J6403<=_xlnm.Criteria,H6403,\" \")","v":" "}]
[null,null,null,null,null,null,null,null,false,6406," "," "]
[null,null,null,null,null,null,null,null,false,6409," "," "]
[null,null,null,null,null,null,null,null,false,6411," "," "]
[null,null,null,null,null,null,null,null,false,6416," "," "]
[null,null,null,null,null,null,null,null,false,6421," "," "]
[null,null,null,null,null,null,null,null,false,6423," "," "]
[null,null,null,null,null,null,null,null,false,6426," "," "]
[null,null,null,null,null,null,null,null,false,6431," "," "]
[null,null,null,null,null,null,null,null,false,6436," "," "]
[null,null,null,null,null,null,null,null,false,6439," "," "]
[null,null,null,null,null,null,null,null,false,6441," "," "]
[null,null,null,null,null,null,null,null,false,6446," "," "]
[null,null,null,null,null,null,null,null,false,6451," "," "]
[null,null,null,null,null,null,null,null,false,6453," "," "]
[null,null,null,null,null,null,null,null,false,6456," "," "]
[null,null,null,null,null,null,null,null,false,6461," "," "]
[null,null,null,null,null,null,null,null,false,6466," "," "]
[null,null,null,null,null,null,null,null,false,6469," "," "]
[null,null,null,null,null,null,null,null,false,6471," "," "]
[null,null,null,null,null,null,null,null,false,6476," "," "]
[null,null,null,null,null,null,null,null,false,6481," "," "]
[null,null,null,null,null,null,null,null,false,6483," "," "]
[null,null,null,null,null,null,null,null,false,6486," "," "]
[null,null,null,null,null,null,null,null,false,6491," "," "]
[null,null,null,null,null,null,null,null,false,6496," "," "]
[null,null,null,null,null,null,null,null,false,6499," "," "]
[null,null,null,null,null,null,null,null,false,6501," "," "]
[null,null,null,null,null,null,null,null,false,6506," "," "]
[null,null,null,null,null,null,null,null,false,6511," "," "]
[null,null,null,null,null,null,null,null,false,6513," "," "]
[null,null,null,null,null,null,null,null,false,6516," "," "]
[null,null,null,null,null,null,null,null,false,6521," "," "]
[null,null,null,null,null,null,null,null,false,6526," "," "]
[null,null,null,null,null,null,null,null,false,6527," "," "]
[null,null,null,null,null,null,null,null,false,6531," "," "]
[null,null,null,null,null,null,null,null,false,6536," "," "]
[null,null,null,null,null,null,null,null,false,6541," "," "]
[null,null,null,null,null,null,null,null,false,6543," "," "]
[null,null,null,null,null,null,null,null,false,6546," "," "]
[null,null,null,null,null,null,null,null,false,6551," "," "]
[null,null,null,null,null,null,null,null,false,6556," "," "]
[null,null,null,null,null,null,null,null,false,6557," "," "]
[null,null,null,null,null,null,null,null,false,6561," "," "]
[null,null,null,null,null,null,null,null,false,6566," "," "]
[null,null,null,null,null,null,null,null,false,6571," "," "]
[null,null,null,null,null,null,null,null,false,6573," "," "]
[null,null,null,null,null,null,null,null,false,6576," "," "]
[null,null,null,null,null,null,null,null,false,6581," "," "]
[null,null,null,null,null,null,null,null,false,6586," "," "]
[null,null,null,null,null,null,null,null,false,6587," "," "]
[null,null,null,null,null,null,null,null,false,6591," "," "]
[null,null,null,null,null,null,null,null,false,6596," "," "]
[null,null,null,null,null,null,null,null,false,6601," "," "]
[null,null,null,null,null,null,null,null,false,6603," "," "]
[null,null,null,null,null,null,null,null,false,6606," "," "]
[null,null,null,null,null,null,null,null,false,6611," "," "]
[null,null,null,null,null,null,null,null,false,6616," "," "]
[null,null,null,null,null,null,null,null,false,6617," "," "]
[null,null,null,null,null,null,null,null,false,6621," "," "]
[null,null,null,null,null,null,null,null,false,6626," "," "]
[null,null,null,null,null,null,null,null,false,6631," "," "]
[null,null,null,null,null,null,null,null,false,6633," "," "]
[null,null,null,null,null,null,null,null,false,6636," "," "]
[null,null,null,null,null,null,null,null,false,6641," "," "]
[null,null,null,null,null,null,null,null,false,6646," "," "]
[null,null,null,null,null,null,null,null,false,6647," "," "]
[null,null,null,null,null,null,null,null,false,6651," "," "]
[null,null,null,null,null,null,null,null,false,6656," "," "]
[null,null,null,null,null,null,null,null,false,6661," "," "]
[null,null,null,null,null,null,null,null,false,6663," "," "]
[null,null,null,null,null,null,null,null,false,6666," "," "]
[null,null,null,null,null,null,null,null,false,6671," "," "]
[null,null,null,null,null,null,null,null,false,6676," "," "]
[null,null,null,null,null,null,null,null,false,6677," "," "]
[null,null,null,null,null,null,null,null,false,6681," "," "]
[null,null,null,null,null,null,null,null,false,6686," "," "]
[null,null,null,null,null,null,null,null,false,6691," "," "]
[null,null,null,null,null,null,null,null,false,6693," "," "]
[null,null,null,null,null,null,null,null,false,6696," "," "]
[null,null,null,null,null,null,null,null,false,6701," "," "]
[null,null,null,null,null,null,null,null,false,6706," "," "]
[null,null,null,null,null,null,null,null,false,6707," "," "]
[null,null,null,null,null,null,null,null,false,6711," "," "]
[null,null,null,null,null,null,null,null,false,6716," "," "]
[null,null,null,null,null,null,null,null,{"$f":"IF(H6723>0,RANDBETWEEN(1,$C$3))","v":false},6721,{"$f":"IF(J6723<=_xlnm.Criteria,G6723,\" \")","v":" "},{"$f":"IF(J6723<=_xlnm.Criteria,H6723,\" \")","v":" "}]
[null,null,null,null,null,null,null,null,false,6723," "," "]
[null,null,null,null,null,null,null,null,false,6726," "," "]
[null,null,null,null,null,null,null,null,false,6731," "," "]
[null,null,null,null,null,null,null,null,false,6736," "," "]
[null,null,null,null,null,null,null,null,false,6737," "," "]
[null,null,null,null,null,null,null,null,false,6741," "," "]
[null,null,null,null,null,null,null,null,false,6746," "," "]
[null,null,null,null,null,null,null,null,false,6751," "," "]
[null,null,null,null,null,null,null,null,false,6753," "," "]
[null,null,null,null,null,null,null,null,false,6756," "," "]
[null,null,null,null,null,null,null,null,false,6761," "," "]
[null,null,null,null,null,null,null,null,false,6766," "," "]
[null,null,null,null,null,null,null,null,false,6767," "," "]
[null,null,null,null,null,null,null,null,false,6771," "," "]
[null,null,null,null,null,null,null,null,false,6776," "," "]
[null,null,null,null,null,null,null,null,false,6781," "," "]
[null,null,null,null,null,null,null,null,false,6784," "," "]
[null,null,null,null,null,null,null,null,false,6786," "," "]
[null,null,null,null,null,null,null,null,false,6791," "," "]
[null,null,null,null,null,null,null,null,false,6796," "," "]
[null,null,null,null,null,null,null,null,false,6797," "," "]
[null,null,null,null,null,null,null,null,false,6801," "," "]
[null,null,null,null,null,null,null,null,false,6806," "," "]
[null,null,null,null,null,null,null,null,false,6811," "," "]
[null,null,null,null,null,null,null,null,false,6814," "," "]
[null,null,null,null,null,null,null,null,false,6816," "," "]
[null,null,null,null,null,null,null,null,false,6821," "," "]
[null,null,null,null,null,null,null,null,false,6826," "," "]
[null,null,null,null,null,null,null,null,false,6827," "," "]
[null,null,null,null,null,null,null,null,false,6831," "," "]
[null,null,null,null,null,null,null,null,false,6836," "," "]
[null,null,null,null,null,null,null,null,false,6841," "," "]
[null,null,null,null,null,null,null,null,false,6844," "," "]
[null,null,null,null,null,null,null,null,false,6846," "," "]
[null,null,null,null,null,null,null,null,false,6851," "," "]
[null,null,null,null,null,null,null,null,false,6856," "," "]
[null,null,null,null,null,null,null,null,false,6857," "," "]
[null,null,null,null,null,null,null,null,false,6861," "," "]
[null,null,null,null,null,null,null,null,false,6866," "," "]
[null,null,null,null,null,null,null,null,false,6871," "," "]
[null,null,null,null,null,null,null,null,false,6874," "," "]
[null,null,null,null,null,null,null,null,false,6876," "," "]
[null,null,null,null,null,null,null,null,false,6881," "," "]
[null,null,null,null,null,null,null,null,false,6886," "," "]
[null,null,null,null,null,null,null,null,false,6887," "," "]
[null,null,null,null,null,null,null,null,false,6891," "," "]
[null,null,null,null,null,null,null,null,false,6896," "," "]
[null,null,null,null,null,null,null,null,false,6901," "," "]
[null,null,null,null,null,null,null,null,false,6904," "," "]
[null,null,null,null,null,null,null,null,false,6906," "," "]
[null,null,null,null,null,null,null,null,false,6911," "," "]
[null,null,null,null,null,null,null,null,false,6916," "," "]
[null,null,null,null,null,null,null,null,false,6917," "," "]
[null,null,null,null,null,null,null,null,false,6921," "," "]
[null,null,null,null,null,null,null,null,false,6926," "," "]
[null,null,null,null,null,null,null,null,false,6931," "," "]
[null,null,null,null,null,null,null,null,false,6934," "," "]
[null,null,null,null,null,null,null,null,false,6936," "," "]
[null,null,null,null,null,null,null,null,false,6941," "," "]
[null,null,null,null,null,null,null,null,false,6946," "," "]
[null,null,null,null,null,null,null,null,false,6947," "," "]
[null,null,null,null,null,null,null,null,false,6951," "," "]
[null,null,null,null,null,null,null,null,false,6956," "," "]
[null,null,null,null,null,null,null,null,false,6961," "," "]
[null,null,null,null,null,null,null,null,false,6964," "," "]
[null,null,null,null,null,null,null,null,false,6966," "," "]
[null,null,null,null,null,null,null,null,false,6971," "," "]
[null,null,null,null,null,null,null,null,false,6976," "," "]
[null,null,null,null,null,null,null,null,{"$f":"IF(H6979>0,RANDBETWEEN(1,$C$3))","v":false},6977,{"$f":"IF(J6979<=_xlnm.Criteria,G6979,\" \")","v":" "},{"$f":"IF(J6979<=_xlnm.Criteria,H6979,\" \")","v":" "}]
[null,null,null,null,null,null,null,null,false,6981," "," "]
[null,null,null,null,null,null,null,null,false,6986," "," "]
[null,null,null,null,null,null,null,null,false,6991," "," "]
[null,null,null,null,null,null,null,null,false,6994," "," "]
[null,null,null,null,null,null,null,null,false,6996," "," "]
[null,null,null,null,null,null,null,null,false,7001," "," "]
[null,null,null,null,null,null,null,null,false,7006," "," "]
[null,null,null,null,null,null,null,null,false,7007," "," "]
[null,null,null,null,null,null,null,null,false,7012," "," "]
[null,null,null,null,null,null,null,null,false,7016," "," "]
[null,null,null,null,null,null,null,null,false,7021," "," "]
[null,null,null,null,null,null,null,null,false,7022," "," "]
[null,null,null,null,null,null,null,null,false,7028," "," "]
[null,null,null,null,null,null,null,null,false,7031," "," "]
[null,null,null,null,null,null,null,null,false,7036," "," "]
[null,null,null,null,null,null,null,null,false,7037," "," "]
[null,null,null,null,null,null,null,null,false,7042," "," "]
[null,null,null,null,null,null,null,null,false,7046," "," "]
[null,null,null,null,null,null,null,null,false,7051," "," "]
[null,null,null,null,null,null,null,null,false,7052," "," "]
[null,null,null,null,null,null,null,null,false,7058," "," "]
[null,null,null,null,null,null,null,null,false,7061," "," "]
[null,null,null,null,null,null,null,null,false,7066," "," "]
[null,null,null,null,null,null,null,null,false,7067," "," "]
[null,null,null,null,null,null,null,null,false,7072," "," "]
[null,null,null,null,null,null,null,null,false,7076," "," "]
[null,null,null,null,null,null,null,null,false,7081," "," "]
[null,null,null,null,null,null,null,null,false,7082," "," "]
[null,null,null,null,null,null,null,null,false,7088," "," "]
[null,null,null,null,null,null,null,null,false,7091," "," "]
[null,null,null,null,null,null,null,null,false,7096," "," "]
[null,null,null,null,null,null,null,null,false,7097," "," "]
[null,null,null,null,null,null,null,null,false,7102," "," "]
[null,null,null,null,null,null,null,null,false,7106," "," "]
[null,null,null,null,null,null,null,null,false,7111," "," "]
[null,null,null,null,null,null,null,null,false,7112," "," "]
[null,null,null,null,null,null,null,null,false,7116," "," "]
[null,null,null,null,null,null,null,null,false,7121," "," "]
[null,null,null,null,null,null,null,null,false,7126," "," "]
[null,null,null,null,null,null,null,null,false,7127," "," "]
[null,null,null,null,null,null,null,null,false,7132," "," "]
[null,null,null,null,null,null,null,null,false,7136," "," "]
[null,null,null,null,null,null,null,null,false,7141," "," "]
[null,null,null,null,null,null,null,null,false,7142," "," "]
[null,null,null,null,null,null,null,null,false,7146," "," "]
[null,null,null,null,null,null,null,null,false,7151," "," "]
[null,null,null,null,null,null,null,null,false,7156," "," "]
[null,null,null,null,null,null,null,null,false,7157," "," "]
[null,null,null,null,null,null,null,null,false,7162," "," "]
[null,null,null,null,null,null,null,null,false,7166," "," "]
[null,null,null,null,null,null,null,null,false,7171," "," "]
[null,null,null,null,null,null,null,null,false,7172," "," "]
[null,null,null,null,null,null,null,null,false,7176," "," "]
[null,null,null,null,null,null,null,null,false,7181," "," "]
[null,null,null,null,null,null,null,null,false,7186," "," "]
[null,null,null,null,null,null,null,null,false,7187," "," "]
[null,null,null,null,null,null,null,null,false,7192," "," "]
[null,null,null,null,null,null,null,null,false,7196," "," "]
[null,null,null,null,null,null,null,null,false,7201," "," "]
[null,null,null,null,null,null,null,null,false,7202," "," "]
[null,null,null,null,null,null,null,null,false,7206," "," "]
[null,null,null,null,null,null,null,null,false,7211," "," "]
[null,null,null,null,null,null,null,null,false,7216," "," "]
[null,null,null,null,null,null,null,null,false,7217," "," "]
[null,null,null,null,null,null,null,null,false,7222," "," "]
[null,null,null,null,null,null,null,null,false,7226," "," "]
[null,null,null,null,null,null,null,null,false,7231," "," "]
[null,null,null,null,null,null,null,null,false,7232," "," "]
[null,null,null,null,null,null,null,null,false,7236," "," "]
[null,null,null,null,null,null,null,null,false,7241," "," "]
[null,null,null,null,null,null,null,null,false,7246," "," "]
[null,null,null,null,null,null,null,null,false,7247," "," "]
[null,null,null,null,null,null,null,null,false,7252," "," "]
[null,null,null,null,null,null,null,null,false,7256," "," "]
[null,null,null,null,null,null,null,null,false,7261," "," "]
[null,null,null,null,null,null,null,null,false,7262," "," "]
[null,null,null,null,null,null,null,null,false,7266," "," "]
[null,null,null,null,null,null,null,null,false,7271," "," "]
[null,null,null,null,null,null,null,null,false,7276," "," "]
[null,null,null,null,null,null,null,null,false,7277," "," "]
[null,null,null,null,null,null,null,null,false,7282," "," "]
[null,null,null,null,null,null,null,null,false,7286," "," "]
[null,null,null,null,null,null,null,null,false,7291," "," "]
[null,null,null,null,null,null,null,null,false,7292," "," "]
[null,null,null,null,null,null,null,null,false,7296," "," "]
[null,null,null,null,null,null,null,null,false,7301," "," "]
[null,null,null,null,null,null,null,null,false,7306," "," "]
[null,null,null,null,null,null,null,null,false,7307," "," "]
[null,null,null,null,null,null,null,null,false,7312," "," "]
[null,null,null,null,null,null,null,null,false,7316," "," "]
[null,null,null,null,null,null,null,null,false,7321," "," "]
[null,null,null,null,null,null,null,null,false,7322," "," "]
[null,null,null,null,null,null,null,null,false,7326," "," "]
[null,null,null,null,null,null,null,null,false,7331," "," "]
[null,null,null,null,null,null,null,null,false,7336," "," "]
[null,null,null,null,null,null,null,null,false,7337," "," "]
[null,null,null,null,null,null,null,null,false,7342," "," "]
[null,null,null,null,null,null,null,null,false,7346," "," "]
[null,null,null,null,null,null,null,null,false,7351," "," "]
[null,null,null,null,null,null,null,null,false,7352," "," "]
[null,null,null,null,null,null,null,null,false,7356," "," "]
[null,null,null,null,null,null,null,null,{"$f":"IF(H7363>0,RANDBETWEEN(1,$C$3))","v":false},7361,{"$f":"IF(J7363<=_xlnm.Criteria,G7363,\" \")","v":" "},{"$f":"IF(J7363<=_xlnm.Criteria,H7363,\" \")","v":" "}]
[null,null,null,null,null,null,null,null,false,7366," "," "]
[null,null,null,null,null,null,null,null,false,7367," "," "]
[null,null,null,null,null,null,null,null,false,7372," "," "]
[null,null,null,null,null,null,null,null,false,7376," "," "]
[null,null,null,null,null,null,null,null,false,7381," "," "]
[null,null,null,null,null,null,null,null,false,7382," "," "]
[null,null,null,null,null,null,null,null,false,7386," "," "]
[null,null,null,null,null,null,null,null,false,7391," "," "]
[null,null,null,null,null,null,null,null,false,7396," "," "]
[null,null,null,null,null,null,null,null,false,7397," "," "]
[null,null,null,null,null,null,null,null,false,7403," "," "]
[null,null,null,null,null,null,null,null,false,7406," "," "]
[null,null,null,null,null,null,null,null,false,7411," "," "]
[null,null,null,null,null,null,null,null,false,7412," "," "]
[null,null,null,null,null,null,null,null,false,7416," "," "]
[null,null,null,null,null,null,null,null,false,7421," "," "]
[null,null,null,null,null,null,null,null,false,7426," "," "]
[null,null,null,null,null,null,null,null,false,7427," "," "]
[null,null,null,null,null,null,null,null,false,7433," "," "]
[null,null,null,null,null,null,null,null,false,7436," "," "]
[null,null,null,null,null,null,null,null,false,7441," "," "]
[null,null,null,null,null,null,null,null,false,7442," "," "]
[null,null,null,null,null,null,null,null,false,7446," "," "]
[null,null,null,null,null,null,null,null,false,7451," "," "]
[null,null,null,null,null,null,null,null,false,7456," "," "]
[null,null,null,null,null,null,null,null,false,7457," "," "]
[null,null,null,null,null,null,null,null,false,7463," "," "]
[null,null,null,null,null,null,null,null,false,7466," "," "]
[null,null,null,null,null,null,null,null,false,7471," "," "]
[null,null,null,null,null,null,null,null,false,7472," "," "]
[null,null,null,null,null,null,null,null,false,7476," "," "]
[null,null,null,null,null,null,null,null,false,7481," "," "]
[null,null,null,null,null,null,null,null,false,7486," "," "]
[null,null,null,null,null,null,null,null,false,7487," "," "]
[null,null,null,null,null,null,null,null,false,7493," "," "]
[null,null,null,null,null,null,null,null,false,7496," "," "]
[null,null,null,null,null,null,null,null,false,7501," "," "]
[null,null,null,null,null,null,null,null,false,7502," "," "]
[null,null,null,null,null,null,null,null,false,7506," "," "]
[null,null,null,null,null,null,null,null,false,7511," "," "]
[null,null,null,null,null,null,null,null,false,7516," "," "]
[null,null,null,null,null,null,null,null,false,7517," "," "]
[null,null,null,null,null,null,null,null,false,7523," "," "]
[null,null,null,null,null,null,null,null,false,7526," "," "]
[null,null,null,null,null,null,null,null,false,7531," "," "]
[null,null,null,null,null,null,null,null,false,7532," "," "]
[null,null,null,null,null,null,null,null,false,7536," "," "]
[null,null,null,null,null,null,null,null,false,7541," "," "]
[null,null,null,null,null,null,null,null,false,7546," "," "]
[null,null,null,null,null,null,null,null,false,7547," "," "]
[null,null,null,null,null,null,null,null,{"$f":"IF(H7555>0,RANDBETWEEN(1,$C$3))","v":false},7553,{"$f":"IF(J7555<=_xlnm.Criteria,G7555,\" \")","v":" "},{"$f":"IF(J7555<=_xlnm.Criteria,H7555,\" \")","v":" "}]
[null,null,null,null,null,null,null,null,false,7556," "," "]
[null,null,null,null,null,null,null,null,false,7561," "," "]
[null,null,null,null,null,null,null,null,false,7562," "," "]
[null,null,null,null,null,null,null,null,false,7566," "," "]
[null,null,null,null,null,null,null,null,false,7571," "," "]
[null,null,null,null,null,null,null,null,false,7576," "," "]
[null,null,null,null,null,null,null,null,false,7577," "," "]
[null,null,null,null,null,null,null,null,false,7583," "," "]
[null,null,null,null,null,null,null,null,false,7586," "," "]
[null,null,null,null,null,null,null,null,false,7591," "," "]
[null,null,null,null,null,null,null,null,false,7592," "," "]
[null,null,null,null,null,null,null,null,false,7596," "," "]
[null,null,null,null,null,null,null,null,false,7601," "," "]
[null,null,null,null,null,null,null,null,false,7606," "," "]
[null,null,null,null,null,null,null,null,false,7607," "," "]
[null,null,null,null,null,null,null,null,false,7613," "," "]
[null,null,null,null,null,null,null,null,false,7616," "," "]
[null,null,null,null,null,null,null,null,false,7621," "," "]
[null,null,null,null,null,null,null,null,false,7622," "," "]
[null,null,null,null,null,null,null,null,false,7627," "," "]
[null,null,null,null,null,null,null,null,false,7631," "," "]
[null,null,null,null,null,null,null,null,false,7636," "," "]
[null,null,null,null,null,null,null,null,false,7637," "," "]
[null,null,null,null,null,null,null,null,false,7642," "," "]
[null,null,null,null,null,null,null,null,false,7647," "," "]
[null,null,null,null,null,null,null,null,false,7651," "," "]
[null,null,null,null,null,null,null,null,false,7652," "," "]
[null,null,null,null,null,null,null,null,false,7657," "," "]
[null,null,null,null,null,null,null,null,false,7661," "," "]
[null,null,null,null,null,null,null,null,false,7666," "," "]
[null,null,null,null,null,null,null,null,false,7667," "," "]
[null,null,null,null,null,null,null,null,false,7672," "," "]
[null,null,null,null,null,null,null,null,false,7677," "," "]
[null,null,null,null,null,null,null,null,{"$f":"IF(H7683>0,RANDBETWEEN(1,$C$3))","v":false},7681,{"$f":"IF(J7683<=_xlnm.Criteria,G7683,\" \")","v":" "},{"$f":"IF(J7683<=_xlnm.Criteria,H7683,\" \")","v":" "}]
[null,null,null,null,null,null,null,null,false,7682," "," "]
[null,null,null,null,null,null,null,null,false,7687," "," "]
[null,null,null,null,null,null,null,null,false,7691," "," "]
[null,null,null,null,null,null,null,null,false,7696," "," "]
[null,null,null,null,null,null,null,null,false,7697," "," "]
[null,null,null,null,null,null,null,null,false,7702," "," "]
[null,null,null,null,null,null,null,null,false,7707," "," "]
[null,null,null,null,null,null,null,null,false,7711," "," "]
[null,null,null,null,null,null,null,null,false,7712," "," "]
[null,null,null,null,null,null,null,null,false,7717," "," "]
[null,null,null,null,null,null,null,null,false,7721," "," "]
[null,null,null,null,null,null,null,null,false,7726," "," "]
[null,null,null,null,null,null,null,null,false,7727," "," "]
[null,null,null,null,null,null,null,null,false,7732," "," "]
[null,null,null,null,null,null,null,null,false,7735," "," "]
[null,null,null,null,null,null,null,null,false,7741," "," "]
[null,null,null,null,null,null,null,null,false,7742," "," "]
[null,null,null,null,null,null,null,null,false,7747," "," "]
[null,null,null,null,null,null,null,null,false,7751," "," "]
[null,null,null,null,null,null,null,null,false,7756," "," "]
[null,null,null,null,null,null,null,null,false,7757," "," "]
[null,null,null,null,null,null,null,null,false,7762," "," "]
[null,null,null,null,null,null,null,null,false,7765," "," "]
[null,null,null,null,null,null,null,null,false,7771," "," "]
[null,null,null,null,null,null,null,null,false,7772," "," "]
[null,null,null,null,null,null,null,null,false,7777," "," "]
[null,null,null,null,null,null,null,null,false,7781," "," "]
[null,null,null,null,null,null,null,null,false,7786," "," "]
[null,null,null,null,null,null,null,null,false,7787," "," "]
[null,null,null,null,null,null,null,null,false,7792," "," "]
[null,null,null,null,null,null,null,null,false,7795," "," "]
[null,null,null,null,null,null,null,null,false,7801," "," "]
[null,null,null,null,null,null,null,null,false,7802," "," "]
[null,null,null,null,null,null,null,null,false,7807," "," "]
[null,null,null,null,null,null,null,null,false,7811," "," "]
[null,null,null,null,null,null,null,null,false,7816," "," "]
[null,null,null,null,null,null,null,null,false,7817," "," "]
[null,null,null,null,null,null,null,null,false,7822," "," "]
[null,null,null,null,null,null,null,null,false,7825," "," "]
[null,null,null,null,null,null,null,null,false,7831," "," "]
[null,null,null,null,null,null,null,null,false,7832," "," "]
[null,null,null,null,null,null,null,null,false,7837," "," "]
[null,null,null,null,null,null,null,null,false,7841," "," "]
[null,null,null,null,null,null,null,null,false,7846," "," "]
[null,null,null,null,null,null,null,null,false,7847," "," "]
[null,null,null,null,null,null,null,null,false,7852," "," "]
[null,null,null,null,null,null,null,null,false,7855," "," "]
[null,null,null,null,null,null,null,null,false,7861," "," "]
[null,null,null,null,null,null,null,null,false,7862," "," "]
[null,null,null,null,null,null,null,null,false,7867," "," "]
[null,null,null,null,null,null,null,null,false,7871," "," "]
[null,null,null,null,null,null,null,null,false,7876," "," "]
[null,null,null,null,null,null,null,null,false,7877," "," "]
[null,null,null,null,null,null,null,null,false,7882," "," "]
[null,null,null,null,null,null,null,null,false,7885," "," "]
[null,null,null,null,null,null,null,null,false,7891," "," "]
[null,null,null,null,null,null,null,null,false,7892," "," "]
[null,null,null,null,null,null,null,null,false,7897," "," "]
[null,null,null,null,null,null,null,null,false,7901," "," "]
[null,null,null,null,null,null,null,null,false,7906," "," "]
[null,null,null,null,null,null,null,null,false,7907," "," "]
[null,null,null,null,null,null,null,null,false,7912," "," "]
[null,null,null,null,null,null,null,null,false,7915," "," "]
[null,null,null,null,null,null,null,null,false,7921," "," "]
[null,null,null,null,null,null,null,null,false,7922," "," "]
[null,null,null,null,null,null,null,null,false,7927," "," "]
[null,null,null,null,null,null,null,null,false,7931," "," "]
[null,null,null,null,null,null,null,null,false,7936," "," "]
[null,null,null,null,null,null,null,null,{"$f":"IF(H7939>0,RANDBETWEEN(1,$C$3))","v":false},7937,{"$f":"IF(J7939<=_xlnm.Criteria,G7939,\" \")","v":" "},{"$f":"IF(J7939<=_xlnm.Criteria,H7939,\" \")","v":" "}]
[null,null,null,null,null,null,null,null,false,7942," "," "]
[null,null,null,null,null,null,null,null,false,7945," "," "]
[null,null,null,null,null,null,null,null,false,7951," "," "]
[null,null,null,null,null,null,null,null,false,7952," "," "]
[null,null,null,null,null,null,null,null,false,7957," "," "]
[null,null,null,null,null,null,null,null,false,7961," "," "]
[null,null,null,null,null,null,null,null,false,7966," "," "]
[null,null,null,null,null,null,null,null,false,7967," "," "]
[null,null,null,null,null,null,null,null,false,7972," "," "]
[null,null,null,null,null,null,null,null,false,7975," "," "]
[null,null,null,null,null,null,null,null,false,7981," "," "]
[null,null,null,null,null,null,null,null,false,7982," "," "]
[null,null,null,null,null,null,null,null,false,7987," "," "]
[null,null,null,null,null,null,null,null,false,7991," "," "]
[null,null,null,null,null,null,null,null,false,7996," "," "]
[null,null,null,null,null,null,null,null,false,7997," "," "]
[null,null,null,null,null,null,null,null,false,8002," "," "]
[null,null,null,null,null,null,null,null,false,8005," "," "]
[null,null,null,null,null,null,null,null,false,8011," "," "]
[null,null,null,null,null,null,null,null,false,8012," "," "]
[null,null,null,null,null,null,null,null,false,8017," "," "]
[null,null,null,null,null,null,null,null,false,8022," "," "]
[null,null,null,null,null,null,null,null,false,8026," "," "]
[null,null,null,null,null,null,null,null,false,8027," "," "]
[null,null,null,null,null,null,null,null,false,8032," "," "]
[null,null,null,null,null,null,null,null,false,8035," "," "]
[null,null,null,null,null,null,null,null,false,8041," "," "]
[null,null,null,null,null,null,null,null,false,8042," "," "]
[null,null,null,null,null,null,null,null,false,8047," "," "]
[null,null,null,null,null,null,null,null,false,8052," "," "]
[null,null,null,null,null,null,null,null,false,8056," "," "]
[null,null,null,null,null,null,null,null,false,8057," "," "]
[null,null,null,null,null,null,null,null,false,8062," "," "]
[null,null,null,null,null,null,null,null,{"$f":"IF(H8067>0,RANDBETWEEN(1,$C$3))","v":false},8065,{"$f":"IF(J8067<=_xlnm.Criteria,G8067,\" \")","v":" "},{"$f":"IF(J8067<=_xlnm.Criteria,H8067,\" \")","v":" "}]
[null,null,null,null,null,null,null,null,false,8071," "," "]
[null,null,null,null,null,null,null,null,false,8072," "," "]
[null,null,null,null,null,null,null,null,false,8077," "," "]
[null,null,null,null,null,null,null,null,false,8082," "," "]
[null,null,null,null,null,null,null,null,false,8086," "," "]
[null,null,null,null,null,null,null,null,false,8087," "," "]
[null,null,null,null,null,null,null,null,false,8092," "," "]
[null,null,null,null,null,null,null,null,false,8095," "," "]
[null,null,null,null,null,null,null,null,false,8101," "," "]
[null,null,null,null,null,null,null,null,false,8102," "," "]
[null,null,null,null,null,null,null,null,false,8107," "," "]
[null,null,null,null,null,null,null,null,false,8112," "," "]
[null,null,null,null,null,null,null,null,false,8116," "," "]
[null,null,null,null,null,null,null,null,false,8117," "," "]
[null,null,null,null,null,null,null,null,false,8122," "," "]
[null,null,null,null,null,null,null,null,false,8125," "," "]
[null,null,null,null,null,null,null,null,false,8131," "," "]
[null,null,null,null,null,null,null,null,false,8132," "," "]
[null,null,null,null,null,null,null,null,false,8137," "," "]
[null,null,null,null,null,null,null,null,false,8142," "," "]
[null,null,null,null,null,null,null,null,false,8146," "," "]
[null,null,null,null,null,null,null,null,false,8147," "," "]
[null,null,null,null,null,null,null,null,false,8152," "," "]
[null,null,null,null,null,null,null,null,false,8155," "," "]
[null,null,null,null,null,null,null,null,false,8161," "," "]
[null,null,null,null,null,null,null,null,false,8162," "," "]
[null,null,null,null,null,null,null,null,false,8167," "," "]
[null,null,null,null,null,null,null,null,false,8172," "," "]
[null,null,null,null,null,null,null,null,false,8176," "," "]
[null,null,null,null,null,null,null,null,false,8177," "," "]
[null,null,null,null,null,null,null,null,false,8182," "," "]
[null,null,null,null,null,null,null,null,false,8185," "," "]
[null,null,null,null,null,null,null,null,false,8191," "," "]
[null,null,null,null,null,null,null,null,false,8192," "," "]
[null,null,null,null,null,null,null,null,false,8197," "," "]
[null,null,null,null,null,null,null,null,false,8202," "," "]
[null,null,null,null,null,null,null,null,false,8206," "," "]
[null,null,null,null,null,null,null,null,false,8207," "," "]
[null,null,null,null,null,null,null,null,false,8212," "," "]
[null,null,null,null,null,null,null,null,false,8215," "," "]
[null,null,null,null,null,null,null,null,false,8221," "," "]
[null,null,null,null,null,null,null,null,false,8222," "," "]
[null,null,null,null,null,null,null,null,false,8227," "," "]
[null,null,null,null,null,null,null,null,false,8232," "," "]
[null,null,null,null,null,null,null,null,false,8236," "," "]
[null,null,null,null,null,null,null,null,false,8237," "," "]
[null,null,null,null,null,null,null,null,false,8242," "," "]
[null,null,null,null,null,null,null,null,false,8245," "," "]
[null,null,null,null,null,null,null,null,false,8251," "," "]
[null,null,null,null,null,null,null,null,false,8252," "," "]
[null,null,null,null,null,null,null,null,{"$f":"IF(H8259>0,RANDBETWEEN(1,$C$3))","v":false},8257,{"$f":"IF(J8259<=_xlnm.Criteria,G8259,\" \")","v":" "},{"$f":"IF(J8259<=_xlnm.Criteria,H8259,\" \")","v":" "}]
[null,null,null,null,null,null,null,null,false,8262," "," "]
[null,null,null,null,null,null,null,null,false,8266," "," "]
[null,null,null,null,null,null,null,null,false,8267," "," "]
[null,null,null,null,null,null,null,null,false,8272," "," "]
[null,null,null,null,null,null,null,null,false,8277," "," "]
[null,null,null,null,null,null,null,null,false,8280," "," "]
[null,null,null,null,null,null,null,null,false,8282," "," "]
[null,null,null,null,null,null,null,null,false,8287," "," "]
[null,null,null,null,null,null,null,null,false,8292," "," "]
[null,null,null,null,null,null,null,null,false,8296," "," "]
[null,null,null,null,null,null,null,null,false,8297," "," "]
[null,null,null,null,null,null,null,null,false,8302," "," "]
[null,null,null,null,null,null,null,null,false,8307," "," "]
[null,null,null,null,null,null,null,null,false,8310," "," "]
[null,null,null,null,null,null,null,null,false,8312," "," "]
[null,null,null,null,null,null,null,null,false,8317," "," "]
[null,null,null,null,null,null,null,null,false,8322," "," "]
[null,null,null,null,null,null,null,null,false,8326," "," "]
[null,null,null,null,null,null,null,null,false,8327," "," "]
[null,null,null,null,null,null,null,null,false,8332," "," "]
[null,null,null,null,null,null,null,null,false,8337," "," "]
[null,null,null,null,null,null,null,null,false,8340," "," "]
[null,null,null,null,null,null,null,null,false,8342," "," "]
[null,null,null,null,null,null,null,null,false,8347," "," "]
[null,null,null,null,null,null,null,null,false,8352," "," "]
[null,null,null,null,null,null,null,null,false,8354," "," "]
[null,null,null,null,null,null,null,null,false,8357," "," "]
[null,null,null,null,null,null,null,null,false,8362," "," "]
[null,null,null,null,null,null,null,null,false,8367," "," "]
[null,null,null,null,null,null,null,null,false,8370," "," "]
[null,null,null,null,null,null,null,null,false,8372," "," "]
[null,null,null,null,null,null,null,null,false,8377," "," "]
[null,null,null,null,null,null,null,null,false,8382," "," "]
[null,null,null,null,null,null,null,null,false,8384," "," "]
[null,null,null,null,null,null,null,null,false,8387," "," "]
[null,null,null,null,null,null,null,null,false,8392," "," "]
[null,null,null,null,null,null,null,null,false,8397," "," "]
[null,null,null,null,null,null,null,null,false,8400," "," "]
[null,null,null,null,null,null,null,null,false,8402," "," "]
[null,null,null,null,null,null,null,null,false,8407," "," "]
[null,null,null,null,null,null,null,null,false,8412," "," "]
[null,null,null,null,null,null,null,null,false,8414," "," "]
[null,null,null,null,null,null,null,null,false,8417," "," "]
[null,null,null,null,null,null,null,null,false,8422," "," "]
[null,null,null,null,null,null,null,null,false,8427," "," "]
[null,null,null,null,null,null,null,null,false,8430," "," "]
[null,null,null,null,null,null,null,null,false,8432," "," "]
[null,null,null,null,null,null,null,null,false,8437," "," "]
[null,null,null,null,null,null,null,null,false,8442," "," "]
[null,null,null,null,null,null,null,null,false,8444," "," "]
[null,null,null,null,null,null,null,null,false,8447," "," "]
[null,null,null,null,null,null,null,null,false,8452," "," "]
[null,null,null,null,null,null,null,null,false,8457," "," "]
[null,null,null,null,null,null,null,null,false,8460," "," "]
[null,null,null,null,null,null,null,null,false,8462," "," "]
[null,null,null,null,null,null,null,null,false,8467," "," "]
[null,null,null,null,null,null,null,null,false,8472," "," "]
[null,null,null,null,null,null,null,null,false,8474," "," "]
[null,null,null,null,null,null,null,null,false,8477," "," "]
[null,null,null,null,null,null,null,null,false,8482," "," "]
[null,null,null,null,null,null,null,null,false,8487," "," "]
[null,null,null,null,null,null,null,null,false,8490," "," "]
[null,null,null,null,null,null,null,null,false,8492," "," "]
[null,null,null,null,null,null,null,null,false,8497," "," "]
[null,null,null,null,null,null,null,null,false,8502," "," "]
[null,null,null,null,null,null,null,null,false,8504," "," "]
[null,null,null,null,null,null,null,null,false,8507," "," "]
[null,null,null,null,null,null,null,null,false,8512," "," "]
[null,null,null,null,null,null,null,null,false,8517," "," "]
[null,null,null,null,null,null,null,null,false,8520," "," "]
[null,null,null,null,null,null,null,null,false,8522," "," "]
[null,null,null,null,null,null,null,null,false,8527," "," "]
[null,null,null,null,null,null,null,null,false,8532," "," "]
[null,null,null,null,null,null,null,null,false,8534," "," "]
[null,null,null,null,null,null,null,null,false,8537," "," "]
[null,null,null,null,null,null,null,null,false,8542," "," "]
[null,null,null,null,null,null,null,null,false,8547," "," "]
[null,null,null,null,null,null,null,null,false,8550," "," "]
[null,null,null,null,null,null,null,null,false,8552," "," "]
[null,null,null,null,null,null,null,null,false,8557," "," "]
[null,null,null,null,null,null,null,null,false,8562," "," "]
[null,null,null,null,null,null,null,null,false,8564," "," "]
[null,null,null,null,null,null,null,null,false,8567," "," "]
[null,null,null,null,null,null,null,null,false,8572," "," "]
[null,null,null,null,null,null,null,null,{"$f":"IF(H8579>0,RANDBETWEEN(1,$C$3))","v":false},8577,{"$f":"IF(J8579<=_xlnm.Criteria,G8579,\" \")","v":" "},{"$f":"IF(J8579<=_xlnm.Criteria,H8579,\" \")","v":" "}]
[null,null,null,null,null,null,null,null,false,8580," "," "]
[null,null,null,null,null,null,null,null,false,8582," "," "]
[null,null,null,null,null,null,null,null,false,8587," "," "]
[null,null,null,null,null,null,null,null,false,8592," "," "]
[null,null,null,null,null,null,null,null,false,8594," "," "]
[null,null,null,null,null,null,null,null,false,8597," "," "]
[null,null,null,null,null,null,null,null,false,8602," "," "]
[null,null,null,null,null,null,null,null,false,8607," "," "]
[null,null,null,null,null,null,null,null,false,8611," "," "]
[null,null,null,null,null,null,null,null,false,8612," "," "]
[null,null,null,null,null,null,null,null,false,8617," "," "]
[null,null,null,null,null,null,null,null,false,8622," "," "]
[null,null,null,null,null,null,null,null,false,8624," "," "]
[null,null,null,null,null,null,null,null,false,8627," "," "]
[null,null,null,null,null,null,null,null,false,8632," "," "]
[null,null,null,null,null,null,null,null,false,8637," "," "]
[null,null,null,null,null,null,null,null,{"$f":"IF(H8643>0,RANDBETWEEN(1,$C$3))","v":false},8641,{"$f":"IF(J8643<=_xlnm.Criteria,G8643,\" \")","v":" "},{"$f":"IF(J8643<=_xlnm.Criteria,H8643,\" \")","v":" "}]
[null,null,null,null,null,null,null,null,false,8642," "," "]
[null,null,null,null,null,null,null,null,false,8647," "," "]
[null,null,null,null,null,null,null,null,false,8652," "," "]
[null,null,null,null,null,null,null,null,false,8654," "," "]
[null,null,null,null,null,null,null,null,false,8657," "," "]
[null,null,null,null,null,null,null,null,false,8662," "," "]
[null,null,null,null,null,null,null,null,false,8667," "," "]
[null,null,null,null,null,null,null,null,false,8671," "," "]
[null,null,null,null,null,null,null,null,false,8672," "," "]
[null,null,null,null,null,null,null,null,false,8677," "," "]
[null,null,null,null,null,null,null,null,false,8682," "," "]
[null,null,null,null,null,null,null,null,false,8684," "," "]
[null,null,null,null,null,null,null,null,false,8687," "," "]
[null,null,null,null,null,null,null,null,false,8692," "," "]
[null,null,null,null,null,null,null,null,false,8697," "," "]
[null,null,null,null,null,null,null,null,false,8701," "," "]
[null,null,null,null,null,null,null,null,false,8702," "," "]
[null,null,null,null,null,null,null,null,false,8707," "," "]
[null,null,null,null,null,null,null,null,false,8712," "," "]
[null,null,null,null,null,null,null,null,false,8714," "," "]
[null,null,null,null,null,null,null,null,false,8717," "," "]
[null,null,null,null,null,null,null,null,false,8722," "," "]
[null,null,null,null,null,null,null,null,false,8727," "," "]
[null,null,null,null,null,null,null,null,false,8731," "," "]
[null,null,null,null,null,null,null,null,false,8732," "," "]
[null,null,null,null,null,null,null,null,false,8737," "," "]
[null,null,null,null,null,null,null,null,false,8742," "," "]
[null,null,null,null,null,null,null,null,false,8744," "," "]
[null,null,null,null,null,null,null,null,false,8747," "," "]
[null,null,null,null,null,null,null,null,false,8752," "," "]
[null,null,null,null,null,null,null,null,false,8757," "," "]
[null,null,null,null,null,null,null,null,false,8761," "," "]
[null,null,null,null,null,null,null,null,false,8762," "," "]
[null,null,null,null,null,null,null,null,false,8767," "," "]
[null,null,null,null,null,null,null,null,false,8772," "," "]
[null,null,null,null,null,null,null,null,false,8774," "," "]
[null,null,null,null,null,null,null,null,false,8777," "," "]
[null,null,null,null,null,null,null,null,false,8782," "," "]
[null,null,null,null,null,null,null,null,false,8787," "," "]
[null,null,null,null,null,null,null,null,false,8791," "," "]
[null,null,null,null,null,null,null,null,false,8792," "," "]
[null,null,null,null,null,null,null,null,false,8797," "," "]
[null,null,null,null,null,null,null,null,false,8802," "," "]
[null,null,null,null,null,null,null,null,false,8804," "," "]
[null,null,null,null,null,null,null,null,false,8807," "," "]
[null,null,null,null,null,null,null,null,false,8812," "," "]
[null,null,null,null,null,null,null,null,false,8817," "," "]
[null,null,null,null,null,null,null,null,false,8821," "," "]
[null,null,null,null,null,null,null,null,false,8822," "," "]
[null,null,null,null,null,null,null,null,false,8827," "," "]
[null,null,null,null,null,null,null,null,false,8832," "," "]
[null,null,null,null,null,null,null,null,false,8834," "," "]
[null,null,null,null,null,null,null,null,false,8837," "," "]
[null,null,null,null,null,null,null,null,false,8842," "," "]
[null,null,null,null,null,null,null,null,false,8847," "," "]
[null,null,null,null,null,null,null,null,false,8851," "," "]
[null,null,null,null,null,null,null,null,false,8852," "," "]
[null,null,null,null,null,null,null,null,false,8857," "," "]
[null,null,null,null,null,null,null,null,false,8862," "," "]
[null,null,null,null,null,null,null,null,false,8864," "," "]
[null,null,null,null,null,null,null,null,false,8867," "," "]
[null,null,null,null,null,null,null,null,false,8872," "," "]
[null,null,null,null,null,null,null,null,false,8877," "," "]
[null,null,null,null,null,null,null,null,false,8882," "," "]
[null,null,null,null,null,null,null,null,false,8885," "," "]
[null,null,null,null,null,null,null,null,false,8887," "," "]
[null,null,null,null,null,null,null,null,false,8892," "," "]
[null,null,null,null,null,null,null,null,{"$f":"IF(H8899>0,RANDBETWEEN(1,$C$3))","v":false},8897,{"$f":"IF(J8899<=_xlnm.Criteria,G8899,\" \")","v":" "},{"$f":"IF(J8899<=_xlnm.Criteria,H8899,\" \")","v":" "}]
[null,null,null,null,null,null,null,null,false,8899," "," "]
[null,null,null,null,null,null,null,null,false,8902," "," "]
[null,null,null,null,null,null,null,null,false,8907," "," "]
[null,null,null,null,null,null,null,null,false,8912," "," "]
[null,null,null,null,null,null,null,null,false,8915," "," "]
[null,null,null,null,null,null,null,null,false,8917," "," "]
[null,null,null,null,null,null,null,null,false,8922," "," "]
[null,null,null,null,null,null,null,null,false,8927," "," "]
[null,null,null,null,null,null,null,null,false,8929," "," "]
[null,null,null,null,null,null,null,null,false,8932," "," "]
[null,null,null,null,null,null,null,null,false,8937," "," "]
[null,null,null,null,null,null,null,null,false,8942," "," "]
[null,null,null,null,null,null,null,null,false,8943," "," "]
[null,null,null,null,null,null,null,null,false,8947," "," "]
[null,null,null,null,null,null,null,null,false,8952," "," "]
[null,null,null,null,null,null,null,null,false,8957," "," "]
[null,null,null,null,null,null,null,null,false,8959," "," "]
[null,null,null,null,null,null,null,null,false,8962," "," "]
[null,null,null,null,null,null,null,null,false,8967," "," "]
[null,null,null,null,null,null,null,null,false,8972," "," "]
[null,null,null,null,null,null,null,null,false,8973," "," "]
[null,null,null,null,null,null,null,null,false,8977," "," "]
[null,null,null,null,null,null,null,null,false,8982," "," "]
[null,null,null,null,null,null,null,null,false,8987," "," "]
[null,null,null,null,null,null,null,null,false,8989," "," "]
[null,null,null,null,null,null,null,null,false,8992," "," "]
[null,null,null,null,null,null,null,null,false,8997," "," "]
[null,null,null,null,null,null,null,null,false,9002," "," "]
[null,null,null,null,null,null,null,null,false,9003," "," "]
[null,null,null,null,null,null,null,null,false,9007," "," "]
[null,null,null,null,null,null,null,null,false,9012," "," "]
[null,null,null,null,null,null,null,null,false,9017," "," "]
[null,null,null,null,null,null,null,null,false,9019," "," "]
[null,null,null,null,null,null,null,null,false,9022," "," "]
[null,null,null,null,null,null,null,null,false,9027," "," "]
[null,null,null,null,null,null,null,null,false,9032," "," "]
[null,null,null,null,null,null,null,null,false,9033," "," "]
[null,null,null,null,null,null,null,null,false,9037," "," "]
[null,null,null,null,null,null,null,null,false,9042," "," "]
[null,null,null,null,null,null,null,null,false,9047," "," "]
[null,null,null,null,null,null,null,null,false,9049," "," "]
[null,null,null,null,null,null,null,null,false,9052," "," "]
[null,null,null,null,null,null,null,null,false,9057," "," "]
[null,null,null,null,null,null,null,null,false,9062," "," "]
[null,null,null,null,null,null,null,null,false,9063," "," "]
[null,null,null,null,null,null,null,null,false,9067," "," "]
[null,null,null,null,null,null,null,null,false,9072," "," "]
[null,null,null,null,null,null,null,null,false,9077," "," "]
[null,null,null,null,null,null,null,null,false,9079," "," "]
[null,null,null,null,null,null,null,null,false,9082," "," "]
[null,null,null,null,null,null,null,null,false,9087," "," "]
[null,null,null,null,null,null,null,null,false,9092," "," "]
[null,null,null,null,null,null,null,null,false,9093," "," "]
[null,null,null,null,null,null,null,null,false,9097," "," "]
[null,null,null,null,null,null,null,null,false,9102," "," "]
[null,null,null,null,null,null,null,null,false,9107," "," "]
[null,null,null,null,null,null,null,null,false,9109," "," "]
[null,null,null,null,null,null,null,null,false,9112," "," "]
[null,null,null,null,null,null,null,null,false,9117," "," "]
[null,null,null,null,null,null,null,null,false,9122," "," "]
[null,null,null,null,null,null,null,null,false,9123," "," "]
[null,null,null,null,null,null,null,null,false,9127," "," "]
[null,null,null,null,null,null,null,null,false,9132," "," "]
[null,null,null,null,null,null,null,null,false,9137," "," "]
[null,null,null,null,null,null,null,null,false,9139," "," "]
[null,null,null,null,null,null,null,null,false,9142," "," "]
[null,null,null,null,null,null,null,null,false,9147," "," "]
[null,null,null,null,null,null,null,null,false,9152," "," "]
[null,null,null,null,null,null,null,null,{"$f":"IF(H9155>0,RANDBETWEEN(1,$C$3))","v":false},9153,{"$f":"IF(J9155<=_xlnm.Criteria,G9155,\" \")","v":" "},{"$f":"IF(J9155<=_xlnm.Criteria,H9155,\" \")","v":" "}]
[null,null,null,null,null,null,null,null,false,9157," "," "]
[null,null,null,null,null,null,null,null,false,9162," "," "]
[null,null,null,null,null,null,null,null,false,9167," "," "]
[null,null,null,null,null,null,null,null,false,9169," "," "]
[null,null,null,null,null,null,null,null,false,9172," "," "]
[null,null,null,null,null,null,null,null,false,9177," "," "]
[null,null,null,null,null,null,null,null,false,9182," "," "]
[null,null,null,null,null,null,null,null,false,9183," "," "]
[null,null,null,null,null,null,null,null,false,9187," "," "]
[null,null,null,null,null,null,null,null,false,9192," "," "]
[null,null,null,null,null,null,null,null,false,9197," "," "]
[null,null,null,null,null,null,null,null,false,9199," "," "]
[null,null,null,null,null,null,null,null,false,9202," "," "]
[null,null,null,null,null,null,null,null,false,9207," "," "]
[null,null,null,null,null,null,null,null,false,9212," "," "]
[null,null,null,null,null,null,null,null,false,9213," "," "]
[null,null,null,null,null,null,null,null,{"$f":"IF(H9219>0,RANDBETWEEN(1,$C$3))","v":false},9217,{"$f":"IF(J9219<=_xlnm.Criteria,G9219,\" \")","v":" "},{"$f":"IF(J9219<=_xlnm.Criteria,H9219,\" \")","v":" "}]
[null,null,null,null,null,null,null,null,false,9222," "," "]
[null,null,null,null,null,null,null,null,false,9227," "," "]
[null,null,null,null,null,null,null,null,false,9230," "," "]
[null,null,null,null,null,null,null,null,false,9232," "," "]
[null,null,null,null,null,null,null,null,false,9237," "," "]
[null,null,null,null,null,null,null,null,false,9242," "," "]
[null,null,null,null,null,null,null,null,false,9243," "," "]
[null,null,null,null,null,null,null,null,false,9247," "," "]
[null,null,null,null,null,null,null,null,false,9252," "," "]
[null,null,null,null,null,null,null,null,false,9257," "," "]
[null,null,null,null,null,null,null,null,false,9260," "," "]
[null,null,null,null,null,null,null,null,false,9262," "," "]
[null,null,null,null,null,null,null,null,false,9267," "," "]
[null,null,null,null,null,null,null,null,false,9272," "," "]
[null,null,null,null,null,null,null,null,false,9273," "," "]
[null,null,null,null,null,null,null,null,false,9277," "," "]
[null,null,null,null,null,null,null,null,false,9282," "," "]
[null,null,null,null,null,null,null,null,false,9287," "," "]
[null,null,null,null,null,null,null,null,false,9290," "," "]
[null,null,null,null,null,null,null,null,false,9292," "," "]
[null,null,null,null,null,null,null,null,false,9297," "," "]
[null,null,null,null,null,null,null,null,false,9302," "," "]
[null,null,null,null,null,null,null,null,false,9303," "," "]
[null,null,null,null,null,null,null,null,false,9307," "," "]
[null,null,null,null,null,null,null,null,false,9312," "," "]
[null,null,null,null,null,null,null,null,false,9317," "," "]
[null,null,null,null,null,null,null,null,false,9320," "," "]
[null,null,null,null,null,null,null,null,false,9322," "," "]
[null,null,null,null,null,null,null,null,false,9327," "," "]
[null,null,null,null,null,null,null,null,false,9332," "," "]
[null,null,null,null,null,null,null,null,false,9333," "," "]
[null,null,null,null,null,null,null,null,false,9337," "," "]
[null,null,null,null,null,null,null,null,false,9342," "," "]
[null,null,null,null,null,null,null,null,false,9347," "," "]
[null,null,null,null,null,null,null,null,false,9350," "," "]
[null,null,null,null,null,null,null,null,false,9352," "," "]
[null,null,null,null,null,null,null,null,false,9357," "," "]
[null,null,null,null,null,null,null,null,false,9362," "," "]
[null,null,null,null,null,null,null,null,false,9363," "," "]
[null,null,null,null,null,null,null,null,false,9367," "," "]
[null,null,null,null,null,null,null,null,false,9372," "," "]
[null,null,null,null,null,null,null,null,false,9377," "," "]
[null,null,null,null,null,null,null,null,false,9380," "," "]
[null,null,null,null,null,null,null,null,false,9382," "," "]
[null,null,null,null,null,null,null,null,false,9387," "," "]
[null,null,null,null,null,null,null,null,false,9392," "," "]
[null,null,null,null,null,null,null,null,false,9393," "," "]
[null,null,null,null,null,null,null,null,false,9397," "," "]
[null,null,null,null,null,null,null,null,false,9402," "," "]
[null,null,null,null,null,null,null,null,false,9407," "," "]
[null,null,null,null,null,null,null,null,false,9410," "," "]
[null,null,null,null,null,null,null,null,false,9412," "," "]
[null,null,null,null,null,null,null,null,false,9417," "," "]
[null,null,null,null,null,null,null,null,false,9422," "," "]
[null,null,null,null,null,null,null,null,false,9423," "," "]
[null,null,null,null,null,null,null,null,false,9427," "," "]
[null,null,null,null,null,null,null,null,false,9432," "," "]
[null,null,null,null,null,null,null,null,false,9437," "," "]
[null,null,null,null,null,null,null,null,false,9440," "," "]
[null,null,null,null,null,null,null,null,false,9442," "," "]
[null,null,null,null,null,null,null,null,false,9447," "," "]
[null,null,null,null,null,null,null,null,false,9452," "," "]
[null,null,null,null,null,null,null,null,false,9453," "," "]
[null,null,null,null,null,null,null,null,false,9457," "," "]
[null,null,null,null,null,null,null,null,false,9462," "," "]
[null,null,null,null,null,null,null,null,false,9467," "," "]
[null,null,null,null,null,null,null,null,false,9470," "," "]
[null,null,null,null,null,null,null,null,false,9472," "," "]
[null,null,null,null,null,null,null,null,false,9477," "," "]
[null,null,null,null,null,null,null,null,false,9482," "," "]
[null,null,null,null,null,null,null,null,false,9484," "," "]
[null,null,null,null,null,null,null,null,false,9487," "," "]
[null,null,null,null,null,null,null,null,false,9492," "," "]
[null,null,null,null,null,null,null,null,false,9497," "," "]
[null,null,null,null,null,null,null,null,false,9498," "," "]
[null,null,null,null,null,null,null,null,false,9502," "," "]
[null,null,null,null,null,null,null,null,false,9503," "," "]
[null,null,null,null,null,null,null,null,false,9504," "," "]
[null,null,null,null,null,null,null,null,false,9505," "," "]
[null,null,null,null,null,null,null,null,false,9506," "," "]
[null,null,null,null,null,null,null,null,false,9507," "," "]
[null,null,null,null,null,null,null,null,false,9508," "," "]
[null,null,null,null,null,null,null,null,false,9509," "," "]
[null,null,null,null,null,null,null,null,false,9510," "," "]
[null,null,null,null,null,null,null,null,false,9511," "," "]
[null,null,null,null,null,null,null,null,false,9512," "," "]
[null,null,null,null,null,null,null,null,false,9513," "," "]
[null,null,null,null,null,null,null,null,false,9514," "," "]
[null,null,null,null,null,null,null,null,false,9515," "," "]
[null,null,null,null,null,null,null,null,false,9516," "," "]
[null,null,null,null,null,null,null,null,false,9517," "," "]
[null,null,null,null,null,null,null,null,false,9518," "," "]
[null,null,null,null,null,null,null,null,false,9519," "," "]
[null,null,null,null,null,null,null,null,false,9520," "," "]
[null,null,null,null,null,null,null,null,false,9521," "," "]
[null,null,null,null,null,null,null,null,false,9522," "," "]
[null,null,null,null,null,null,null,null,false,9523," "," "]
[null,null,null,null,null,null,null,null,false,9524," "," "]
[null,null,null,null,null,null,null,null,false,9525," "," "]
[null,null,null,null,null,null,null,null,false,9526," "," "]
[null,null,null,null,null,null,null,null,false,9527," "," "]
[null,null,null,null,null,null,null,null,false,9528," "," "]
[null,null,null,null,null,null,null,null,false,9529," "," "]
[null,null,null,null,null,null,null,null,false,9530," "," "]
[null,null,null,null,null,null,null,null,false,9531," "," "]
[null,null,null,null,null,null,null,null,false,9532," "," "]
[null,null,null,null,null,null,null,null,false,9533," "," "]
[null,null,null,null,null,null,null,null,false,9534," "," "]
[null,null,null,null,null,null,null,null,false,9535," "," "]
[null,null,null,null,null,null,null,null,false,9536," "," "]
[null,null,null,null,null,null,null,null,{"$f":"IF(H9539>0,RANDBETWEEN(1,$C$3))","v":false},9537,{"$f":"IF(J9539<=_xlnm.Criteria,G9539,\" \")","v":" "},{"$f":"IF(J9539<=_xlnm.Criteria,H9539,\" \")","v":" "}]
[null,null,null,null,null,null,null,null,false,9538," "," "]
[null,null,null,null,null,null,null,null,false,9539," "," "]
[null,null,null,null,null,null,null,null,false,9540," "," "]
[null,null,null,null,null,null,null,null,false,9541," "," "]
[null,null,null,null,null,null,null,null,false,9542," "," "]
[null,null,null,null,null,null,null,null,false,9543," "," "]
[null,null,null,null,null,null,null,null,false,9544," "," "]
[null,null,null,null,null,null,null,null,false,9545," "," "]
[null,null,null,null,null,null,null,null,false,9546," "," "]
[null,null,null,null,null,null,null,null,false,9547," "," "]
[null,null,null,null,null,null,null,null,false,9548," "," "]
[null,null,null,null,null,null,null,null,false,9549," "," "]
[null,null,null,null,null,null,null,null,false,9550," "," "]
[null,null,null,null,null,null,null,null,false,9551," "," "]
[null,null,null,null,null,null,null,null,false,9552," "," "]
[null,null,null,null,null,null,null,null,false,9553," "," "]
[null,null,null,null,null,null,null,null,false,9554," "," "]
[null,null,null,null,null,null,null,null,false,9555," "," "]
[null,null,null,null,null,null,null,null,false,9556," "," "]
[null,null,null,null,null,null,null,null,false,9557," "," "]
[null,null,null,null,null,null,null,null,false,9558," "," "]
[null,null,null,null,null,null,null,null,false,9559," "," "]
[null,null,null,null,null,null,null,null,false,9560," "," "]
[null,null,null,null,null,null,null,null,false,9561," "," "]
[null,null,null,null,null,null,null,null,false,9562," "," "]
[null,null,null,null,null,null,null,null,false,9563," "," "]
[null,null,null,null,null,null,null,null,false,9564," "," "]
[null,null,null,null,null,null,null,null,false,9565," "," "]
[null,null,null,null,null,null,null,null,false,9566," "," "]
[null,null,null,null,null,null,null,null,false,9567," "," "]
[null,null,null,null,null,null,null,null,false,9568," "," "]
[null,null,null,null,null,null,null,null,false,9569," "," "]
[null,null,null,null,null,null,null,null,false,9570," "," "]
[null,null,null,null,null,null,null,null,false,9571," "," "]
[null,null,null,null,null,null,null,null,false,9572," "," "]
[null,null,null,null,null,null,null,null,false,9573," "," "]
[null,null,null,null,null,null,null,null,false,9574," "," "]
[null,null,null,null,null,null,null,null,false,9575," "," "]
[null,null,null,null,null,null,null,null,false,9576," "," "]
[null,null,null,null,null,null,null,null,false,9577," "," "]
[null,null,null,null,null,null,null,null,false,9578," "," "]
[null,null,null,null,null,null,null,null,false,9579," "," "]
[null,null,null,null,null,null,null,null,false,9580," "," "]
[null,null,null,null,null,null,null,null,false,9581," "," "]
[null,null,null,null,null,null,null,null,false,9582," "," "]
[null,null,null,null,null,null,null,null,false,9583," "," "]
[null,null,null,null,null,null,null,null,false,9584," "," "]
[null,null,null,null,null,null,null,null,false,9585," "," "]
[null,null,null,null,null,null,null,null,false,9586," "," "]
[null,null,null,null,null,null,null,null,false,9587," "," "]
[null,null,null,null,null,null,null,null,false,9588," "," "]
[null,null,null,null,null,null,null,null,false,9589," "," "]
[null,null,null,null,null,null,null,null,false,9590," "," "]
[null,null,null,null,null,null,null,null,false,9591," "," "]
[null,null,null,null,null,null,null,null,false,9592," "," "]
[null,null,null,null,null,null,null,null,false,9593," "," "]
[null,null,null,null,null,null,null,null,false,9594," "," "]
[null,null,null,null,null,null,null,null,false,9595," "," "]
[null,null,null,null,null,null,null,null,false,9596," "," "]
[null,null,null,null,null,null,null,null,false,9597," "," "]
[null,null,null,null,null,null,null,null,false,9598," "," "]
[null,null,null,null,null,null,null,null,false,9599," "," "]
[null,null,null,null,null,null,null,null,false,9600," "," "]
[null,null,null,null,null,null,null,null,{"$f":"IF(H9603>0,RANDBETWEEN(1,$C$3))","v":false},9601,{"$f":"IF(J9603<=_xlnm.Criteria,G9603,\" \")","v":" "},{"$f":"IF(J9603<=_xlnm.Criteria,H9603,\" \")","v":" "}]
[null,null,null,null,null,null,null,null,false,9602," "," "]
[null,null,null,null,null,null,null,null,false,9603," "," "]
[null,null,null,null,null,null,null,null,false,9604," "," "]
[null,null,null,null,null,null,null,null,false,9605," "," "]
[null,null,null,null,null,null,null,null,false,9606," "," "]
[null,null,null,null,null,null,null,null,false,9607," "," "]
[null,null,null,null,null,null,null,null,false,9608," "," "]
[null,null,null,null,null,null,null,null,false,9609," "," "]
[null,null,null,null,null,null,null,null,false,9610," "," "]
[null,null,null,null,null,null,null,null,false,9611," "," "]
[null,null,null,null,null,null,null,null,false,9612," "," "]
[null,null,null,null,null,null,null,null,false,9613," "," "]
[null,null,null,null,null,null,null,null,false,9614," "," "]
[null,null,null,null,null,null,null,null,false,9615," "," "]
[null,null,null,null,null,null,null,null,false,9616," "," "]
[null,null,null,null,null,null,null,null,false,9617," "," "]
[null,null,null,null,null,null,null,null,false,9618," "," "]
[null,null,null,null,null,null,null,null,false,9619," "," "]
[null,null,null,null,null,null,null,null,false,9620," "," "]
[null,null,null,null,null,null,null,null,false,9621," "," "]
[null,null,null,null,null,null,null,null,false,9622," "," "]
[null,null,null,null,null,null,null,null,false,9623," "," "]
[null,null,null,null,null,null,null,null,false,9624," "," "]
[null,null,null,null,null,null,null,null,false,9625," "," "]
[null,null,null,null,null,null,null,null,false,9626," "," "]
[null,null,null,null,null,null,null,null,false,9627," "," "]
[null,null,null,null,null,null,null,null,false,9628," "," "]
[null,null,null,null,null,null,null,null,false,9629," "," "]
[null,null,null,null,null,null,null,null,false,9630," "," "]
[null,null,null,null,null,null,null,null,false,9631," "," "]
[null,null,null,null,null,null,null,null,false,9632," "," "]
[null,null,null,null,null,null,null,null,false,9633," "," "]
[null,null,null,null,null,null,null,null,false,9634," "," "]
[null,null,null,null,null,null,null,null,false,9635," "," "]
[null,null,null,null,null,null,null,null,false,9636," "," "]
[null,null,null,null,null,null,null,null,false,9637," "," "]
[null,null,null,null,null,null,null,null,false,9638," "," "]
[null,null,null,null,null,null,null,null,false,9639," "," "]
[null,null,null,null,null,null,null,null,false,9640," "," "]
[null,null,null,null,null,null,null,null,false,9641," "," "]
[null,null,null,null,null,null,null,null,false,9642," "," "]
[null,null,null,null,null,null,null,null,false,9643," "," "]
[null,null,null,null,null,null,null,null,false,9644," "," "]
[null,null,null,null,null,null,null,null,false,9645," "," "]
[null,null,null,null,null,null,null,null,false,9646," "," "]
[null,null,null,null,null,null,null,null,false,9647," "," "]
[null,null,null,null,null,null,null,null,false,9648," "," "]
[null,null,null,null,null,null,null,null,false,9649," "," "]
[null,null,null,null,null,null,null,null,false,9650," "," "]
[null,null,null,null,null,null,null,null,false,9651," "," "]
[null,null,null,null,null,null,null,null,false,9652," "," "]
[null,null,null,null,null,null,null,null,false,9653," "," "]
[null,null,null,null,null,null,null,null,false,9654," "," "]
[null,null,null,null,null,null,null,null,false,9655," "," "]
[null,null,null,null,null,null,null,null,false,9656," "," "]
[null,null,null,null,null,null,null,null,false,9657," "," "]
[null,null,null,null,null,null,null,null,false,9658," "," "]
[null,null,null,null,null,null,null,null,false,9659," "," "]
[null,null,null,null,null,null,null,null,false,9660," "," "]
[null,null,null,null,null,null,null,null,false,9661," "," "]
[null,null,null,null,null,null,null,null,false,9662," "," "]
[null,null,null,null,null,null,null,null,false,9663," "," "]
[null,null,null,null,null,null,null,null,false,9664," "," "]
[null,null,null,null,null,null,null,null,{"$f":"IF(H9667>0,RANDBETWEEN(1,$C$3))","v":false},9665,{"$f":"IF(J9667<=_xlnm.Criteria,G9667,\" \")","v":" "},{"$f":"IF(J9667<=_xlnm.Criteria,H9667,\" \")","v":" "}]
[null,null,null,null,null,null,null,null,false,9666," "," "]
[null,null,null,null,null,null,null,null,false,9667," "," "]
[null,null,null,null,null,null,null,null,false,9668," "," "]
[null,null,null,null,null,null,null,null,false,9669," "," "]
[null,null,null,null,null,null,null,null,false,9670," "," "]
[null,null,null,null,null,null,null,null,false,9671," "," "]
[null,null,null,null,null,null,null,null,false,9672," "," "]
[null,null,null,null,null,null,null,null,false,9673," "," "]
[null,null,null,null,null,null,null,null,false,9674," "," "]
[null,null,null,null,null,null,null,null,false,9675," "," "]
[null,null,null,null,null,null,null,null,false,9676," "," "]
[null,null,null,null,null,null,null,null,false,9677," "," "]
[null,null,null,null,null,null,null,null,false,9678," "," "]
[null,null,null,null,null,null,null,null,false,9679," "," "]
[null,null,null,null,null,null,null,null,false,9680," "," "]
[null,null,null,null,null,null,null,null,false,9681," "," "]
[null,null,null,null,null,null,null,null,false,9682," "," "]
[null,null,null,null,null,null,null,null,false,9683," "," "]
[null,null,null,null,null,null,null,null,false,9684," "," "]
[null,null,null,null,null,null,null,null,false,9685," "," "]
[null,null,null,null,null,null,null,null,false,9686," "," "]
[null,null,null,null,null,null,null,null,false,9687," "," "]
[null,null,null,null,null,null,null,null,false,9688," "," "]
[null,null,null,null,null,null,null,null,false,9689," "," "]
[null,null,null,null,null,null,null,null,false,9690," "," "]
[null,null,null,null,null,null,null,null,false,9691," "," "]
[null,null,null,null,null,null,null,null,false,9692," "," "]
[null,null,null,null,null,null,null,null,false,9693," "," "]
[null,null,null,null,null,null,null,null,false,9694," "," "]
[null,null,null,null,null,null,null,null,false,9695," "," "]
[null,null,null,null,null,null,null,null,false,9696," "," "]
[null,null,null,null,null,null,null,null,false,9697," "," "]
[null,null,null,null,null,null,null,null,false,9698," "," "]
[null,null,null,null,null,null,null,null,false,9699," "," "]
[null,null,null,null,null,null,null,null,false,9700," "," "]
[null,null,null,null,null,null,null,null,false,9701," "," "]
[null,null,null,null,null,null,null,null,false,9702," "," "]
[null,null,null,null,null,null,null,null,false,9703," "," "]
[null,null,null,null,null,null,null,null,false,9704," "," "]
[null,null,null,null,null,null,null,null,false,9705," "," "]
[null,null,null,null,null,null,null,null,false,9706," "," "]
[null,null,null,null,null,null,null,null,false,9707," "," "]
[null,null,null,null,null,null,null,null,false,9708," "," "]
[null,null,null,null,null,null,null,null,false,9709," "," "]
[null,null,null,null,null,null,null,null,false,9710," "," "]
[null,null,null,null,null,null,null,null,false,9711," "," "]
[null,null,null,null,null,null,null,null,false,9712," "," "]
[null,null,null,null,null,null,null,null,false,9713," "," "]
[null,null,null,null,null,null,null,null,false,9714," "," "]
[null,null,null,null,null,null,null,null,false,9715," "," "]
[null,null,null,null,null,null,null,null,false,9716," "," "]
[null,null,null,null,null,null,null,null,false,9717," "," "]
[null,null,null,null,null,null,null,null,false,9718," "," "]
[null,null,null,null,null,null,null,null,false,9719," "," "]
[null,null,null,null,null,null,null,null,false,9720," "," "]
[null,null,null,null,null,null,null,null,false,9721," "," "]
[null,null,null,null,null,null,null,null,false,9722," "," "]
[null,null,null,null,null,null,null,null,false,9723," "," "]
[null,null,null,null,null,null,null,null,false,9724," "," "]
[null,null,null,null,null,null,null,null,false,9725," "," "]
[null,null,null,null,null,null,null,null,false,9726," "," "]
[null,null,null,null,null,null,null,null,false,9727," "," "]
[null,null,null,null,null,null,null,null,false,9728," "," "]
[null,null,null,null,null,null,null,null,{"$f":"IF(H9731>0,RANDBETWEEN(1,$C$3))","v":false},9729,{"$f":"IF(J9731<=_xlnm.Criteria,G9731,\" \")","v":" "},{"$f":"IF(J9731<=_xlnm.Criteria,H9731,\" \")","v":" "}]
[null,null,null,null,null,null,null,null,false,9730," "," "]
[null,null,null,null,null,null,null,null,false,9731," "," "]
[null,null,null,null,null,null,null,null,false,9732," "," "]
[null,null,null,null,null,null,null,null,false,9733," "," "]
[null,null,null,null,null,null,null,null,false,9734," "," "]
[null,null,null,null,null,null,null,null,false,9735," "," "]
[null,null,null,null,null,null,null,null,false,9736," "," "]
[null,null,null,null,null,null,null,null,false,9737," "," "]
[null,null,null,null,null,null,null,null,false,9738," "," "]
[null,null,null,null,null,null,null,null,false,9739," "," "]
[null,null,null,null,null,null,null,null,false,9740," "," "]
[null,null,null,null,null,null,null,null,false,9741," "," "]
[null,null,null,null,null,null,null,null,false,9742," "," "]
[null,null,null,null,null,null,null,null,false,9743," "," "]
[null,null,null,null,null,null,null,null,false,9744," "," "]
[null,null,null,null,null,null,null,null,false,9745," "," "]
[null,null,null,null,null,null,null,null,false,9746," "," "]
[null,null,null,null,null,null,null,null,false,9747," "," "]
[null,null,null,null,null,null,null,null,false,9748," "," "]
[null,null,null,null,null,null,null,null,false,9749," "," "]
[null,null,null,null,null,null,null,null,false,9750," "," "]
[null,null,null,null,null,null,null,null,false,9751," "," "]
[null,null,null,null,null,null,null,null,false,9752," "," "]
[null,null,null,null,null,null,null,null,false,9753," "," "]
[null,null,null,null,null,null,null,null,false,9754," "," "]
[null,null,null,null,null,null,null,null,false,9755," "," "]
[null,null,null,null,null,null,null,null,false,9756," "," "]
[null,null,null,null,null,null,null,null,false,9757," "," "]
[null,null,null,null,null,null,null,null,false,9758," "," "]
[null,null,null,null,null,null,null,null,false,9759," "," "]
[null,null,null,null,null,null,null,null,false,9760," "," "]
[null,null,null,null,null,null,null,null,false,9761," "," "]
[null,null,null,null,null,null,null,null,false,9762," "," "]
[null,null,null,null,null,null,null,null,false,9763," "," "]
[null,null,null,null,null,null,null,null,false,9764," "," "]
[null,null,null,null,null,null,null,null,false,9765," "," "]
[null,null,null,null,null,null,null,null,false,9766," "," "]
[null,null,null,null,null,null,null,null,false,9767," "," "]
[null,null,null,null,null,null,null,null,false,9768," "," "]
[null,null,null,null,null,null,null,null,false,9769," "," "]
[null,null,null,null,null,null,null,null,false,9770," "," "]
[null,null,null,null,null,null,null,null,false,9771," "," "]
[null,null,null,null,null,null,null,null,false,9772," "," "]
[null,null,null,null,null,null,null,null,false,9773," "," "]
[null,null,null,null,null,null,null,null,false,9774," "," "]
[null,null,null,null,null,null,null,null,false,9775," "," "]
[null,null,null,null,null,null,null,null,false,9776," "," "]
[null,null,null,null,null,null,null,null,false,9777," "," "]
[null,null,null,null,null,null,null,null,false,9778," "," "]
[null,null,null,null,null,null,null,null,false,9779," "," "]
[null,null,null,null,null,null,null,null,false,9780," "," "]
[null,null,null,null,null,null,null,null,false,9781," "," "]
[null,null,null,null,null,null,null,null,false,9782," "," "]
[null,null,null,null,null,null,null,null,false,9783," "," "]
[null,null,null,null,null,null,null,null,false,9784," "," "]
[null,null,null,null,null,null,null,null,false,9785," "," "]
[null,null,null,null,null,null,null,null,false,9786," "," "]
[null,null,null,null,null,null,null,null,false,9787," "," "]
[null,null,null,null,null,null,null,null,false,9788," "," "]
[null,null,null,null,null,null,null,null,false,9789," "," "]
[null,null,null,null,null,null,null,null,false,9790," "," "]
[null,null,null,null,null,null,null,null,false,9791," "," "]
[null,null,null,null,null,null,null,null,false,9792," "," "]
[null,null,null,null,null,null,null,null,{"$f":"IF(H9795>0,RANDBETWEEN(1,$C$3))","v":false},9793,{"$f":"IF(J9795<=_xlnm.Criteria,G9795,\" \")","v":" "},{"$f":"IF(J9795<=_xlnm.Criteria,H9795,\" \")","v":" "}]
[null,null,null,null,null,null,null,null,false,9794," "," "]
[null,null,null,null,null,null,null,null,false,9795," "," "]
[null,null,null,null,null,null,null,null,false,9796," "," "]
[null,null,null,null,null,null,null,null,false,9797," "," "]
[null,null,null,null,null,null,null,null,false,9798," "," "]
[null,null,null,null,null,null,null,null,false,9799," "," "]
[null,null,null,null,null,null,null,null,false,9800," "," "]
[null,null,null,null,null,null,null,null,false,9801," "," "]
[null,null,null,null,null,null,null,null,false,9802," "," "]
[null,null,null,null,null,null,null,null,false,9803," "," "]
[null,null,null,null,null,null,null,null,false,9804," "," "]
[null,null,null,null,null,null,null,null,false,9805," "," "]
[null,null,null,null,null,null,null,null,false,9806," "," "]
[null,null,null,null,null,null,null,null,false,9807," "," "]
[null,null,null,null,null,null,null,null,false,9808," "," "]
[null,null,null,null,null,null,null,null,false,9809," "," "]
[null,null,null,null,null,null,null,null,false,9810," "," "]
[null,null,null,null,null,null,null,null,false,9811," "," "]
[null,null,null,null,null,null,null,null,false,9812," "," "]
[null,null,null,null,null,null,null,null,false,9813," "," "]
[null,null,null,null,null,null,null,null,false,9814," "," "]
[null,null,null,null,null,null,null,null,false,9815," "," "]
[null,null,null,null,null,null,null,null,false,9816," "," "]
[null,null,null,null,null,null,null,null,false,9817," "," "]
[null,null,null,null,null,null,null,null,false,9818," "," "]
[null,null,null,null,null,null,null,null,false,9819," "," "]
[null,null,null,null,null,null,null,null,false,9820," "," "]
[null,null,null,null,null,null,null,null,false,9821," "," "]
[null,null,null,null,null,null,null,null,false,9822," "," "]
[null,null,null,null,null,null,null,null,false,9823," "," "]
[null,null,null,null,null,null,null,null,false,9824," "," "]
[null,null,null,null,null,null,null,null,false,9825," "," "]
[null,null,null,null,null,null,null,null,false,9826," "," "]
[null,null,null,null,null,null,null,null,false,9827," "," "]
[null,null,null,null,null,null,null,null,false,9828," "," "]
[null,null,null,null,null,null,null,null,false,9829," "," "]
[null,null,null,null,null,null,null,null,false,9830," "," "]
[null,null,null,null,null,null,null,null,false,9831," "," "]
[null,null,null,null,null,null,null,null,false,9832," "," "]
[null,null,null,null,null,null,null,null,false,9833," "," "]
[null,null,null,null,null,null,null,null,false,9834," "," "]
[null,null,null,null,null,null,null,null,false,9835," "," "]
[null,null,null,null,null,null,null,null,false,9836," "," "]
[null,null,null,null,null,null,null,null,false,9837," "," "]
[null,null,null,null,null,null,null,null,false,9838," "," "]
[null,null,null,null,null,null,null,null,false,9839," "," "]
[null,null,null,null,null,null,null,null,false,9840," "," "]
[null,null,null,null,null,null,null,null,false,9841," "," "]
[null,null,null,null,null,null,null,null,false,9842," "," "]
[null,null,null,null,null,null,null,null,false,9843," "," "]
[null,null,null,null,null,null,null,null,false,9844," "," "]
[null,null,null,null,null,null,null,null,false,9845," "," "]
[null,null,null,null,null,null,null,null,false,9846," "," "]
[null,null,null,null,null,null,null,null,false,9847," "," "]
[null,null,null,null,null,null,null,null,false,9848," "," "]
[null,null,null,null,null,null,null,null,false,9849," "," "]
[null,null,null,null,null,null,null,null,false,9850," "," "]
[null,null,null,null,null,null,null,null,false,9851," "," "]
[null,null,null,null,null,null,null,null,false,9852," "," "]
[null,null,null,null,null,null,null,null,false,9853," "," "]
[null,null,null,null,null,null,null,null,false,9854," "," "]
[null,null,null,null,null,null,null,null,false,9855," "," "]
[null,null,null,null,null,null,null,null,false,9856," "," "]
[null,null,null,null,null,null,null,null,{"$f":"IF(H9859>0,RANDBETWEEN(1,$C$3))","v":false},9857,{"$f":"IF(J9859<=_xlnm.Criteria,G9859,\" \")","v":" "},{"$f":"IF(J9859<=_xlnm.Criteria,H9859,\" \")","v":" "}]
[null,null,null,null,null,null,null,null,false,9858," "," "]
[null,null,null,null,null,null,null,null,false,9859," "," "]
[null,null,null,null,null,null,null,null,false,9860," "," "]
[null,null,null,null,null,null,null,null,false,9861," "," "]
[null,null,null,null,null,null,null,null,false,9862," "," "]
[null,null,null,null,null,null,null,null,false,9863," "," "]
[null,null,null,null,null,null,null,null,false,9864," "," "]
[null,null,null,null,null,null,null,null,false,9865," "," "]
[null,null,null,null,null,null,null,null,false,9866," "," "]
[null,null,null,null,null,null,null,null,false,9867," "," "]
[null,null,null,null,null,null,null,null,false,9868," "," "]
[null,null,null,null,null,null,null,null,false,9869," "," "]
[null,null,null,null,null,null,null,null,false,9870," "," "]
[null,null,null,null,null,null,null,null,false,9871," "," "]
[null,null,null,null,null,null,null,null,false,9872," "," "]
[null,null,null,null,null,null,null,null,false,9873," "," "]
[null,null,null,null,null,null,null,null,false,9874," "," "]
[null,null,null,null,null,null,null,null,false,9875," "," "]
[null,null,null,null,null,null,null,null,false,9876," "," "]
[null,null,null,null,null,null,null,null,false,9877," "," "]
[null,null,null,null,null,null,null,null,false,9878," "," "]
[null,null,null,null,null,null,null,null,false,9879," "," "]
[null,null,null,null,null,null,null,null,false,9880," "," "]
[null,null,null,null,null,null,null,null,false,9881," "," "]
[null,null,null,null,null,null,null,null,false,9882," "," "]
[null,null,null,null,null,null,null,null,false,9883," "," "]
[null,null,null,null,null,null,null,null,false,9884," "," "]
[null,null,null,null,null,null,null,null,false,9885," "," "]
[null,null,null,null,null,null,null,null,false,9886," "," "]
[null,null,null,null,null,null,null,null,false,9887," "," "]
[null,null,null,null,null,null,null,null,false,9888," "," "]
[null,null,null,null,null,null,null,null,false,9889," "," "]
[null,null,null,null,null,null,null,null,false,9890," "," "]
[null,null,null,null,null,null,null,null,false,9891," "," "]
[null,null,null,null,null,null,null,null,false,9892," "," "]
[null,null,null,null,null,null,null,null,false,9893," "," "]
[null,null,null,null,null,null,null,null,false,9894," "," "]
[null,null,null,null,null,null,null,null,false,9895," "," "]
[null,null,null,null,null,null,null,null,false,9896," "," "]
[null,null,null,null,null,null,null,null,false,9897," "," "]
[null,null,null,null,null,null,null,null,false,9898," "," "]
[null,null,null,null,null,null,null,null,false,9899," "," "]
[null,null,null,null,null,null,null,null,false,9900," "," "]
[null,null,null,null,null,null,null,null,false,9901," "," "]
[null,null,null,null,null,null,null,null,false,9902," "," "]
[null,null,null,null,null,null,null,null,false,9903," "," "]
[null,null,null,null,null,null,null,null,false,9904," "," "]
[null,null,null,null,null,null,null,null,false,9905," "," "]
[null,null,null,null,null,null,null,null,false,9906," "," "]
[null,null,null,null,null,null,null,null,false,9907," "," "]
[null,null,null,null,null,null,null,null,false,9908," "," "]
[null,null,null,null,null,null,null,null,false,9909," "," "]
[null,null,null,null,null,null,null,null,false,9910," "," "]
[null,null,null,null,null,null,null,null,false,9911," "," "]
[null,null,null,null,null,null,null,null,false,9912," "," "]
[null,null,null,null,null,null,null,null,false,9913," "," "]
[null,null,null,null,null,null,null,null,false,9914," "," "]
[null,null,null,null,null,null,null,null,false,9915," "," "]
[null,null,null,null,null,null,null,null,false,9916," "," "]
[null,null,null,null,null,null,null,null,false,9917," "," "]
[null,null,null,null,null,null,null,null,false,9918," "," "]
[null,null,null,null,null,null,null,null,false,9919," "," "]
[null,null,null,null,null,null,null,null,false,9920," "," "]
[null,null,null,null,null,null,null,null,{"$f":"IF(H9923>0,RANDBETWEEN(1,$C$3))","v":false},9921,{"$f":"IF(J9923<=_xlnm.Criteria,G9923,\" \")","v":" "},{"$f":"IF(J9923<=_xlnm.Criteria,H9923,\" \")","v":" "}]
[null,null,null,null,null,null,null,null,false,9922," "," "]
[null,null,null,null,null,null,null,null,false,9923," "," "]
[null,null,null,null,null,null,null,null,false,9924," "," "]
[null,null,null,null,null,null,null,null,false,9925," "," "]
[null,null,null,null,null,null,null,null,false,9926," "," "]
[null,null,null,null,null,null,null,null,false,9927," "," "]
[null,null,null,null,null,null,null,null,false,9928," "," "]
[null,null,null,null,null,null,null,null,false,9929," "," "]
[null,null,null,null,null,null,null,null,false,9930," "," "]
[null,null,null,null,null,null,null,null,false,9931," "," "]
[null,null,null,null,null,null,null,null,false,9932," "," "]
[null,null,null,null,null,null,null,null,false,9933," "," "]
[null,null,null,null,null,null,null,null,false,9934," "," "]
[null,null,null,null,null,null,null,null,false,9935," "," "]
[null,null,null,null,null,null,null,null,false,9936," "," "]
[null,null,null,null,null,null,null,null,false,9937," "," "]
[null,null,null,null,null,null,null,null,false,9938," "," "]
[null,null,null,null,null,null,null,null,false,9939," "," "]
[null,null,null,null,null,null,null,null,false,9940," "," "]
[null,null,null,null,null,null,null,null,false,9941," "," "]
[null,null,null,null,null,null,null,null,false,9942," "," "]
[null,null,null,null,null,null,null,null,false,9943," "," "]
[null,null,null,null,null,null,null,null,false,9944," "," "]
[null,null,null,null,null,null,null,null,false,9945," "," "]
[null,null,null,null,null,null,null,null,false,9946," "," "]
[null,null,null,null,null,null,null,null,false,9947," "," "]
[null,null,null,null,null,null,null,null,false,9948," "," "]
[null,null,null,null,null,null,null,null,false,9949," "," "]
[null,null,null,null,null,null,null,null,false,9950," "," "]
[null,null,null,null,null,null,null,null,false,9951," "," "]
[null,null,null,null,null,null,null,null,false,9952," "," "]
[null,null,null,null,null,null,null,null,false,9953," "," "]
[null,null,null,null,null,null,null,null,false,9954," "," "]
[null,null,null,null,null,null,null,null,false,9955," "," "]
[null,null,null,null,null,null,null,null,false,9956," "," "]
[null,null,null,null,null,null,null,null,false,9957," "," "]
[null,null,null,null,null,null,null,null,false,9958," "," "]
[null,null,null,null,null,null,null,null,false,9959," "," "]
[null,null,null,null,null,null,null,null,false,9960," "," "]
[null,null,null,null,null,null,null,null,false,9961," "," "]
[null,null,null,null,null,null,null,null,false,9962," "," "]
[null,null,null,null,null,null,null,null,false,9963," "," "]
[null,null,null,null,null,null,null,null,false,9964," "," "]
[null,null,null,null,null,null,null,null,false,9965," "," "]
[null,null,null,null,null,null,null,null,false,9966," "," "]
[null,null,null,null,null,null,null,null,false,9967," "," "]
[null,null,null,null,null,null,null,null,false,9968," "," "]
[null,null,null,null,null,null,null,null,false,9969," "," "]
[null,null,null,null,null,null,null,null,false,9970," "," "]
[null,null,null,null,null,null,null,null,false,9971," "," "]
[null,null,null,null,null,null,null,null,false,9972," "," "]
[null,null,null,null,null,null,null,null,false,9973," "," "]
[null,null,null,null,null,null,null,null,false,9974," "," "]
[null,null,null,null,null,null,null,null,false,9975," "," "]
[null,null,null,null,null,null,null,null,false,9976," "," "]
[null,null,null,null,null,null,null,null,false,9977," "," "]
[null,null,null,null,null,null,null,null,false,9978," "," "]
[null,null,null,null,null,null,null,null,false,9979," "," "]
[null,null,null,null,null,null,null,null,false,9980," "," "]
[null,null,null,null,null,null,null,null,false,9981," "," "]
[null,null,null,null,null,null,null,null,false,9982," "," "]
[null,null,null,null,null,null,null,null,false,9983," "," "]
[null,null,null,null,null,null,null,null,false,9984," "," "]
[null,null,null,null,null,null,null,null,{"$f":"IF(H9987>0,RANDBETWEEN(1,$C$3))","v":false},9985,{"$f":"IF(J9987<=_xlnm.Criteria,G9987,\" \")","v":" "},{"$f":"IF(J9987<=_xlnm.Criteria,H9987,\" \")","v":" "}]
[null,null,null,null,null,null,null,null,false,9986," "," "]
[null,null,null,null,null,null,null,null,false,9987," "," "]
[null,null,null,null,null,null,null,null,false,9988," "," "]
[null,null,null,null,null,null,null,null,false,9989," "," "]
[null,null,null,null,null,null,null,null,false,9990," "," "]
[null,null,null,null,null,null,null,null,false,9991," "," "]
[null,null,null,null,null,null,null,null,false,9992," "," "]
[null,null,null,null,null,null,null,null,false,9993," "," "]
[null,null,null,null,null,null,null,null,false,9994," "," "]
[null,null,null,null,null,null,null,null,false,9995," "," "]
[null,null,null,null,null,null,null,null,false,9996," "," "]
[null,null,null,null,null,null,null,null,false,9997," "," "]
[null,null,null,null,null,null,null,null,false,9998," "," "]
[null,null,null,null,null,null,null,null,false,9999," "," "]
[null,null,null,null,null,null,null,null,false,10000," "," "]
[null,null,null,null,null,{"$f":"SUM(H3:H10002)","v":0}]

{"sheet":"Foglio1","index":2,"n_rows":0,"n_cols":0,"rows_kept":0,"cut":false,"hidden":false,"merged":[]}